DEPARTMENT,ENTITY,DATE OF PAYMENT,EXPENSE TYPE,EXPENSE AREA,SUPPLIER,TRANSACTION NUMBER,AMOUNT
UNITED KINGDOM ATOMIC ENERGY AUTHORITY,UNITED KINGDOM ATOMIC ENERGY AUTHORITY,01/08/2016,OTHER EXTERNAL COSTS,SUPPORT SERVICES,AXA PPP HEALTHCARE,1900061626,3768.19
UNITED KINGDOM ATOMIC ENERGY AUTHORITY,UNITED KINGDOM ATOMIC ENERGY AUTHORITY,01/08/2016,MATERIALS & SPARES,FUSION,UNDERWOODS ELECTRICAL DISTRIBUTORS,5100335210,429
UNITED KINGDOM ATOMIC ENERGY AUTHORITY,UNITED KINGDOM ATOMIC ENERGY AUTHORITY,01/08/2016,PROFESSIONAL SERVICES,FUSION,SWAGELOK LONDON,5100336283,15596.94
UNITED KINGDOM ATOMIC ENERGY AUTHORITY,UNITED KINGDOM ATOMIC ENERGY AUTHORITY,01/08/2016,PLANT & EQUIPMENT,FUSION,INDUSTRIAL APPARATUS CONSULTANTS LTD,5100337863,1706
UNITED KINGDOM ATOMIC ENERGY AUTHORITY,UNITED KINGDOM ATOMIC ENERGY AUTHORITY,01/08/2016,GASES,FUSION,BOC LTD,5100338473,2051.15
UNITED KINGDOM ATOMIC ENERGY AUTHORITY,UNITED KINGDOM ATOMIC ENERGY AUTHORITY,01/08/2016,PROFESSIONAL SERVICES,SUPPORT SERVICES,HAY GROUP,5100339000,1100
UNITED KINGDOM ATOMIC ENERGY AUTHORITY,UNITED KINGDOM ATOMIC ENERGY AUTHORITY,01/08/2016,GASES,FUSION,BOC LTD,5100339067,447.18
UNITED KINGDOM ATOMIC ENERGY AUTHORITY,UNITED KINGDOM ATOMIC ENERGY AUTHORITY,01/08/2016,BUILDING REPAIRS,FUSION,LORNE STEWART PLC,5100339175,23965.03
UNITED KINGDOM ATOMIC ENERGY AUTHORITY,UNITED KINGDOM ATOMIC ENERGY AUTHORITY,01/08/2016,BUILDING REPAIRS,PROPERTY,LORNE STEWART PLC,5100339176,17676.11
UNITED KINGDOM ATOMIC ENERGY AUTHORITY,UNITED KINGDOM ATOMIC ENERGY AUTHORITY,01/08/2016,BUILDING REPAIRS,PROPERTY,LORNE STEWART PLC,5100339181,2034.53
UNITED KINGDOM ATOMIC ENERGY AUTHORITY,UNITED KINGDOM ATOMIC ENERGY AUTHORITY,01/08/2016,BUILDING REPAIRS,PROPERTY,LORNE STEWART PLC,5100339184,8608.65
UNITED KINGDOM ATOMIC ENERGY AUTHORITY,UNITED KINGDOM ATOMIC ENERGY AUTHORITY,01/08/2016,BUILDING REPAIRS,PROPERTY,LORNE STEWART PLC,5100339185,157.5
UNITED KINGDOM ATOMIC ENERGY AUTHORITY,UNITED KINGDOM ATOMIC ENERGY AUTHORITY,01/08/2016,BUILDING REPAIRS,FUSION,LORNE STEWART PLC,5100339187,302.4
UNITED KINGDOM ATOMIC ENERGY AUTHORITY,UNITED KINGDOM ATOMIC ENERGY AUTHORITY,01/08/2016,BUILDING REPAIRS,PROPERTY,LORNE STEWART PLC,5100339188,9400.46
UNITED KINGDOM ATOMIC ENERGY AUTHORITY,UNITED KINGDOM ATOMIC ENERGY AUTHORITY,01/08/2016,BUILDING REPAIRS,FUSION,LORNE STEWART PLC,5100339191,3996.7
UNITED KINGDOM ATOMIC ENERGY AUTHORITY,UNITED KINGDOM ATOMIC ENERGY AUTHORITY,01/08/2016,BUILDING REPAIRS,FUSION,LORNE STEWART PLC,5100339192,30468.87
UNITED KINGDOM ATOMIC ENERGY AUTHORITY,UNITED KINGDOM ATOMIC ENERGY AUTHORITY,01/08/2016,BUILDING REPAIRS,FUSION,LORNE STEWART PLC,5100339193,125.51
UNITED KINGDOM ATOMIC ENERGY AUTHORITY,UNITED KINGDOM ATOMIC ENERGY AUTHORITY,01/08/2016,BUILDING REPAIRS,PROPERTY,LORNE STEWART PLC,5100339194,266.61
UNITED KINGDOM ATOMIC ENERGY AUTHORITY,UNITED KINGDOM ATOMIC ENERGY AUTHORITY,01/08/2016,BUILDING REPAIRS,PROPERTY,LORNE STEWART PLC,5100339195,5167.91
UNITED KINGDOM ATOMIC ENERGY AUTHORITY,UNITED KINGDOM ATOMIC ENERGY AUTHORITY,01/08/2016,BUILDING REPAIRS,PROPERTY,LORNE STEWART PLC,5100339196,20884.11
UNITED KINGDOM ATOMIC ENERGY AUTHORITY,UNITED KINGDOM ATOMIC ENERGY AUTHORITY,01/08/2016,BUILDING REPAIRS,SUPPORT SERVICES,LORNE STEWART PLC,5100339197,293.95
UNITED KINGDOM ATOMIC ENERGY AUTHORITY,UNITED KINGDOM ATOMIC ENERGY AUTHORITY,01/08/2016,BUILDING REPAIRS,SUPPORT SERVICES,LORNE STEWART PLC,5100339198,2570.66
UNITED KINGDOM ATOMIC ENERGY AUTHORITY,UNITED KINGDOM ATOMIC ENERGY AUTHORITY,01/08/2016,BUILDING REPAIRS,PROPERTY,LORNE STEWART PLC,5100339199,3459.77
UNITED KINGDOM ATOMIC ENERGY AUTHORITY,UNITED KINGDOM ATOMIC ENERGY AUTHORITY,01/08/2016,BUILDING REPAIRS,PROPERTY,LORNE STEWART PLC,5100339201,7296.64
UNITED KINGDOM ATOMIC ENERGY AUTHORITY,UNITED KINGDOM ATOMIC ENERGY AUTHORITY,01/08/2016,BUILDING REPAIRS,PROPERTY,LORNE STEWART PLC,5100339204,2778.16
UNITED KINGDOM ATOMIC ENERGY AUTHORITY,UNITED KINGDOM ATOMIC ENERGY AUTHORITY,01/08/2016,BUILDING REPAIRS,PROPERTY,LORNE STEWART PLC,5100339205,669.36
UNITED KINGDOM ATOMIC ENERGY AUTHORITY,UNITED KINGDOM ATOMIC ENERGY AUTHORITY,01/08/2016,BUILDING REPAIRS,PROPERTY,LORNE STEWART PLC,5100339206,9242.91
UNITED KINGDOM ATOMIC ENERGY AUTHORITY,UNITED KINGDOM ATOMIC ENERGY AUTHORITY,01/08/2016,BUILDING REPAIRS,PROPERTY,LORNE STEWART PLC,5100339207,111.56
UNITED KINGDOM ATOMIC ENERGY AUTHORITY,UNITED KINGDOM ATOMIC ENERGY AUTHORITY,01/08/2016,BUILDING REPAIRS,FUSION,LORNE STEWART PLC,5100339208,148.68
UNITED KINGDOM ATOMIC ENERGY AUTHORITY,UNITED KINGDOM ATOMIC ENERGY AUTHORITY,01/08/2016,BUILDING REPAIRS,FUSION,LORNE STEWART PLC,5100339209,351.12
UNITED KINGDOM ATOMIC ENERGY AUTHORITY,UNITED KINGDOM ATOMIC ENERGY AUTHORITY,01/08/2016,BUILDING REPAIRS,FUSION,LORNE STEWART PLC,5100339210,802.73
UNITED KINGDOM ATOMIC ENERGY AUTHORITY,UNITED KINGDOM ATOMIC ENERGY AUTHORITY,01/08/2016,MATERIALS & SPARES,FUSION,PILZ AUTOMATION TECHNOLOGY LTD,5100339215,1375.25
UNITED KINGDOM ATOMIC ENERGY AUTHORITY,UNITED KINGDOM ATOMIC ENERGY AUTHORITY,01/08/2016,MATERIALS & SPARES,FUSION,FARNELL ELECTRONIC,5100339269,118.26
UNITED KINGDOM ATOMIC ENERGY AUTHORITY,UNITED KINGDOM ATOMIC ENERGY AUTHORITY,01/08/2016,GASES,FUSION,BOC LTD,5100339355,626.67
UNITED KINGDOM ATOMIC ENERGY AUTHORITY,UNITED KINGDOM ATOMIC ENERGY AUTHORITY,01/08/2016,MATERIALS & SPARES,FUSION,RS COMPONENTS LTD,5100339431,459.69
UNITED KINGDOM ATOMIC ENERGY AUTHORITY,UNITED KINGDOM ATOMIC ENERGY AUTHORITY,01/08/2016,UTILITIES/ELECTRICITY,PROPERTY,SCOTTISH & SOUTHERN METERING SERVIC,5100339447,580
UNITED KINGDOM ATOMIC ENERGY AUTHORITY,UNITED KINGDOM ATOMIC ENERGY AUTHORITY,01/08/2016,PROFESSIONAL SERVICES,SUPPORT SERVICES,ONE FIX RECRUITMENT,5100339460,425
UNITED KINGDOM ATOMIC ENERGY AUTHORITY,UNITED KINGDOM ATOMIC ENERGY AUTHORITY,01/08/2016,PLANT SPARES,FUSION,BECKHOFF AUTOMATION LTD,5100339510,2756.64
UNITED KINGDOM ATOMIC ENERGY AUTHORITY,UNITED KINGDOM ATOMIC ENERGY AUTHORITY,01/08/2016,CAR HIRE,FUSION,LEASEDRIVE VELO,5100339526,123.72
UNITED KINGDOM ATOMIC ENERGY AUTHORITY,UNITED KINGDOM ATOMIC ENERGY AUTHORITY,01/08/2016,REPAIRS & MAINTENANCE,FUSION,FACTAIR LTD,5100339555,305
UNITED KINGDOM ATOMIC ENERGY AUTHORITY,UNITED KINGDOM ATOMIC ENERGY AUTHORITY,01/08/2016,SITE SUPPORT SERVICES,PROPERTY,GO PLANT LTD,5100339617,1206.8
UNITED KINGDOM ATOMIC ENERGY AUTHORITY,UNITED KINGDOM ATOMIC ENERGY AUTHORITY,01/08/2016,PLANT & EQUIPMENT,FUSION,MISCO,5100339656,105.39
UNITED KINGDOM ATOMIC ENERGY AUTHORITY,UNITED KINGDOM ATOMIC ENERGY AUTHORITY,01/08/2016,PLANT & EQUIPMENT,FUSION,EDWARDS LIMITED,5100339660,2887
UNITED KINGDOM ATOMIC ENERGY AUTHORITY,UNITED KINGDOM ATOMIC ENERGY AUTHORITY,01/08/2016,MATERIALS & SPARES,FUSION,SCREWFIX DIRECT LTD,5100339663,34.99
UNITED KINGDOM ATOMIC ENERGY AUTHORITY,UNITED KINGDOM ATOMIC ENERGY AUTHORITY,01/08/2016,MATERIALS & SPARES,FUSION,SCREWFIX DIRECT LTD,5100339664,8.33
UNITED KINGDOM ATOMIC ENERGY AUTHORITY,UNITED KINGDOM ATOMIC ENERGY AUTHORITY,01/08/2016,SECURITY & EMERGENCY,PROPERTY,RELIANCE SECURITY GROUP PLC,5100339667,123.78
UNITED KINGDOM ATOMIC ENERGY AUTHORITY,UNITED KINGDOM ATOMIC ENERGY AUTHORITY,01/08/2016,SECURITY & EMERGENCY,FUSION,RELIANCE SECURITY GROUP PLC,5100339668,327.12
UNITED KINGDOM ATOMIC ENERGY AUTHORITY,UNITED KINGDOM ATOMIC ENERGY AUTHORITY,01/08/2016,SECURITY & EMERGENCY,PROPERTY,RELIANCE SECURITY GROUP PLC,5100339669,926.96
UNITED KINGDOM ATOMIC ENERGY AUTHORITY,UNITED KINGDOM ATOMIC ENERGY AUTHORITY,01/08/2016,CONSUMABLES,FUSION,CERAMIC SEALS LTD,5100339670,461.68
UNITED KINGDOM ATOMIC ENERGY AUTHORITY,UNITED KINGDOM ATOMIC ENERGY AUTHORITY,01/08/2016,PLANT & EQUIPMENT,FUSION,DIRECTA (UK) LTD,5100339671,326
UNITED KINGDOM ATOMIC ENERGY AUTHORITY,UNITED KINGDOM ATOMIC ENERGY AUTHORITY,01/08/2016,MATERIALS & SPARES,FUSION,RS COMPONENTS LTD,5100339678,80.35
UNITED KINGDOM ATOMIC ENERGY AUTHORITY,UNITED KINGDOM ATOMIC ENERGY AUTHORITY,01/08/2016,MATERIALS & SPARES,FUSION,RS COMPONENTS LTD,5100339679,174.33
UNITED KINGDOM ATOMIC ENERGY AUTHORITY,UNITED KINGDOM ATOMIC ENERGY AUTHORITY,01/08/2016,GASES,FUSION,BOC LTD,5100339681,5.55
UNITED KINGDOM ATOMIC ENERGY AUTHORITY,UNITED KINGDOM ATOMIC ENERGY AUTHORITY,01/08/2016,MATERIALS & SPARES,FUSION,RS COMPONENTS LTD,5100339682,29.57
UNITED KINGDOM ATOMIC ENERGY AUTHORITY,UNITED KINGDOM ATOMIC ENERGY AUTHORITY,01/08/2016,MATERIALS & SPARES,FUSION,FARNELL ELECTRONIC,5100339683,12.61
UNITED KINGDOM ATOMIC ENERGY AUTHORITY,UNITED KINGDOM ATOMIC ENERGY AUTHORITY,01/08/2016,MATERIALS & SPARES,FUSION,FARNELL ELECTRONIC,5100339684,9.18
UNITED KINGDOM ATOMIC ENERGY AUTHORITY,UNITED KINGDOM ATOMIC ENERGY AUTHORITY,01/08/2016,MATERIALS & SPARES,FUSION,FARNELL ELECTRONIC,5100339685,182.65
UNITED KINGDOM ATOMIC ENERGY AUTHORITY,UNITED KINGDOM ATOMIC ENERGY AUTHORITY,01/08/2016,MATERIALS & SPARES,FUSION,FARNELL ELECTRONIC,5100339686,58.5
UNITED KINGDOM ATOMIC ENERGY AUTHORITY,UNITED KINGDOM ATOMIC ENERGY AUTHORITY,01/08/2016,MATERIALS & SPARES,FUSION,FARNELL ELECTRONIC,5100339687,196
UNITED KINGDOM ATOMIC ENERGY AUTHORITY,UNITED KINGDOM ATOMIC ENERGY AUTHORITY,01/08/2016,MATERIALS & SPARES,FUSION,FARNELL ELECTRONIC,5100339688,58.79
UNITED KINGDOM ATOMIC ENERGY AUTHORITY,UNITED KINGDOM ATOMIC ENERGY AUTHORITY,01/08/2016,MATERIALS & SPARES,FUSION,RS COMPONENTS LTD,5100339689,44.94
UNITED KINGDOM ATOMIC ENERGY AUTHORITY,UNITED KINGDOM ATOMIC ENERGY AUTHORITY,01/08/2016,MATERIALS & SPARES,FUSION,RS COMPONENTS LTD,5100339690,259.74
UNITED KINGDOM ATOMIC ENERGY AUTHORITY,UNITED KINGDOM ATOMIC ENERGY AUTHORITY,01/08/2016,MATERIALS & SPARES,FUSION,RS COMPONENTS LTD,5100339691,52.19
UNITED KINGDOM ATOMIC ENERGY AUTHORITY,UNITED KINGDOM ATOMIC ENERGY AUTHORITY,01/08/2016,MATERIALS & SPARES,FUSION,RS COMPONENTS LTD,5100339692,448.3
UNITED KINGDOM ATOMIC ENERGY AUTHORITY,UNITED KINGDOM ATOMIC ENERGY AUTHORITY,01/08/2016,MATERIALS & SPARES,FUSION,RS COMPONENTS LTD,5100339693,4.95
UNITED KINGDOM ATOMIC ENERGY AUTHORITY,UNITED KINGDOM ATOMIC ENERGY AUTHORITY,01/08/2016,MATERIALS & SPARES,FUSION,BSS OXFORD,5100339695,23.55
UNITED KINGDOM ATOMIC ENERGY AUTHORITY,UNITED KINGDOM ATOMIC ENERGY AUTHORITY,01/08/2016,MATERIALS & SPARES,FUSION,RS COMPONENTS LTD,5100339696,8.42
UNITED KINGDOM ATOMIC ENERGY AUTHORITY,UNITED KINGDOM ATOMIC ENERGY AUTHORITY,01/08/2016,MATERIALS & SPARES,FUSION,RS COMPONENTS LTD,5100339697,34.81
UNITED KINGDOM ATOMIC ENERGY AUTHORITY,UNITED KINGDOM ATOMIC ENERGY AUTHORITY,01/08/2016,MATERIALS & SPARES,FUSION,RS COMPONENTS LTD,5100339699,359.49
UNITED KINGDOM ATOMIC ENERGY AUTHORITY,UNITED KINGDOM ATOMIC ENERGY AUTHORITY,01/08/2016,MATERIALS & SPARES,FUSION,RS COMPONENTS LTD,5100339700,141.48
UNITED KINGDOM ATOMIC ENERGY AUTHORITY,UNITED KINGDOM ATOMIC ENERGY AUTHORITY,01/08/2016,MATERIALS & SPARES,FUSION,WIKA INSTRUMENTS LTD,5100339701,446.25
UNITED KINGDOM ATOMIC ENERGY AUTHORITY,UNITED KINGDOM ATOMIC ENERGY AUTHORITY,01/08/2016,MATERIALS & SPARES,FUSION,RS COMPONENTS LTD,5100339702,69.59
UNITED KINGDOM ATOMIC ENERGY AUTHORITY,UNITED KINGDOM ATOMIC ENERGY AUTHORITY,01/08/2016,MATERIALS & SPARES,FUSION,ETS CABLE COMPONENTS,5100339703,79.5
UNITED KINGDOM ATOMIC ENERGY AUTHORITY,UNITED KINGDOM ATOMIC ENERGY AUTHORITY,01/08/2016,MATERIALS & SPARES,FUSION,RS COMPONENTS LTD,5100339704,706.12
UNITED KINGDOM ATOMIC ENERGY AUTHORITY,UNITED KINGDOM ATOMIC ENERGY AUTHORITY,01/08/2016,MATERIALS & SPARES,FUSION,RS COMPONENTS LTD,5100339705,101.72
UNITED KINGDOM ATOMIC ENERGY AUTHORITY,UNITED KINGDOM ATOMIC ENERGY AUTHORITY,01/08/2016,PLANT & EQUIPMENT,FUSION,EDMUNDSON ELECTRICALS LTD,5100339706,193.66
UNITED KINGDOM ATOMIC ENERGY AUTHORITY,UNITED KINGDOM ATOMIC ENERGY AUTHORITY,01/08/2016,MATERIALS & SPARES,FUSION,RS COMPONENTS LTD,5100339707,3.6
UNITED KINGDOM ATOMIC ENERGY AUTHORITY,UNITED KINGDOM ATOMIC ENERGY AUTHORITY,01/08/2016,MATERIALS & SPARES,FUSION,RS COMPONENTS LTD,5100339709,29.57
UNITED KINGDOM ATOMIC ENERGY AUTHORITY,UNITED KINGDOM ATOMIC ENERGY AUTHORITY,01/08/2016,MATERIALS & SPARES,FUSION,RS COMPONENTS LTD,5100339710,32.06
UNITED KINGDOM ATOMIC ENERGY AUTHORITY,UNITED KINGDOM ATOMIC ENERGY AUTHORITY,01/08/2016,PLANT & EQUIPMENT,FUSION,EDMUNDSON ELECTRICALS LTD,5100339711,78.2
UNITED KINGDOM ATOMIC ENERGY AUTHORITY,UNITED KINGDOM ATOMIC ENERGY AUTHORITY,01/08/2016,MATERIALS & SPARES,FUSION,RS COMPONENTS LTD,5100339712,60.63
UNITED KINGDOM ATOMIC ENERGY AUTHORITY,UNITED KINGDOM ATOMIC ENERGY AUTHORITY,01/08/2016,PLANT & EQUIPMENT,FUSION,EDMUNDSON ELECTRICALS LTD,5100339713,558
UNITED KINGDOM ATOMIC ENERGY AUTHORITY,UNITED KINGDOM ATOMIC ENERGY AUTHORITY,01/08/2016,MATERIALS & SPARES,FUSION,RS COMPONENTS LTD,5100339714,68.54
UNITED KINGDOM ATOMIC ENERGY AUTHORITY,UNITED KINGDOM ATOMIC ENERGY AUTHORITY,01/08/2016,MATERIALS & SPARES,FUSION,BRUNEL ENGRAVING COMPANY LIMITED,5100339716,119.2
UNITED KINGDOM ATOMIC ENERGY AUTHORITY,UNITED KINGDOM ATOMIC ENERGY AUTHORITY,01/08/2016,PROFESSIONAL SERVICES,PROPERTY,SCIENTIFICS LTD,5100339717,1560
UNITED KINGDOM ATOMIC ENERGY AUTHORITY,UNITED KINGDOM ATOMIC ENERGY AUTHORITY,01/08/2016,MATERIALS & SPARES,FUSION,RS COMPONENTS LTD,5100339720,116.31
UNITED KINGDOM ATOMIC ENERGY AUTHORITY,UNITED KINGDOM ATOMIC ENERGY AUTHORITY,01/08/2016,MATERIALS & SPARES,FUSION,RS COMPONENTS LTD,5100339721,228.48
UNITED KINGDOM ATOMIC ENERGY AUTHORITY,UNITED KINGDOM ATOMIC ENERGY AUTHORITY,01/08/2016,MATERIALS & SPARES,FUSION,RS COMPONENTS LTD,5100339722,81.99
UNITED KINGDOM ATOMIC ENERGY AUTHORITY,UNITED KINGDOM ATOMIC ENERGY AUTHORITY,01/08/2016,MATERIALS & SPARES,FUSION,RS COMPONENTS LTD,5100339723,52.23
UNITED KINGDOM ATOMIC ENERGY AUTHORITY,UNITED KINGDOM ATOMIC ENERGY AUTHORITY,01/08/2016,MATERIALS & SPARES,FUSION,RS COMPONENTS LTD,5100339724,348.65
UNITED KINGDOM ATOMIC ENERGY AUTHORITY,UNITED KINGDOM ATOMIC ENERGY AUTHORITY,01/08/2016,MATERIALS & SPARES,FUSION,RS COMPONENTS LTD,5100339725,85.72
UNITED KINGDOM ATOMIC ENERGY AUTHORITY,UNITED KINGDOM ATOMIC ENERGY AUTHORITY,01/08/2016,MATERIALS & SPARES,FUSION,FARNELL ELECTRONIC,5100339726,12.5
UNITED KINGDOM ATOMIC ENERGY AUTHORITY,UNITED KINGDOM ATOMIC ENERGY AUTHORITY,01/08/2016,MATERIALS & SPARES,FUSION,FARNELL ELECTRONIC,5100339727,88.5
UNITED KINGDOM ATOMIC ENERGY AUTHORITY,UNITED KINGDOM ATOMIC ENERGY AUTHORITY,01/08/2016,MATERIALS & SPARES,FUSION,FARNELL ELECTRONIC,5100339728,163.65
UNITED KINGDOM ATOMIC ENERGY AUTHORITY,UNITED KINGDOM ATOMIC ENERGY AUTHORITY,01/08/2016,MATERIALS & SPARES,FUSION,FARNELL ELECTRONIC,5100339729,15.4
UNITED KINGDOM ATOMIC ENERGY AUTHORITY,UNITED KINGDOM ATOMIC ENERGY AUTHORITY,01/08/2016,BUILDING REPAIRS,FUSION,KNOWLES & SONS (OXFORD) LTD,5100339730,25
UNITED KINGDOM ATOMIC ENERGY AUTHORITY,UNITED KINGDOM ATOMIC ENERGY AUTHORITY,01/08/2016,BUILDING REPAIRS,PROPERTY,KNOWLES & SONS (OXFORD) LTD,5100339731,25
UNITED KINGDOM ATOMIC ENERGY AUTHORITY,UNITED KINGDOM ATOMIC ENERGY AUTHORITY,01/08/2016,BUILDING REPAIRS,FUSION,KNOWLES & SONS (OXFORD) LTD,5100339732,81
UNITED KINGDOM ATOMIC ENERGY AUTHORITY,UNITED KINGDOM ATOMIC ENERGY AUTHORITY,01/08/2016,BUILDING REPAIRS,FUSION,KNOWLES & SONS (OXFORD) LTD,5100339733,81
UNITED KINGDOM ATOMIC ENERGY AUTHORITY,UNITED KINGDOM ATOMIC ENERGY AUTHORITY,01/08/2016,BUILDING REPAIRS,SUPPORT SERVICES,KNOWLES & SONS (OXFORD) LTD,5100339734,54
UNITED KINGDOM ATOMIC ENERGY AUTHORITY,UNITED KINGDOM ATOMIC ENERGY AUTHORITY,01/08/2016,BUILDING REPAIRS,SUPPORT SERVICES,KNOWLES & SONS (OXFORD) LTD,5100339735,121.2
UNITED KINGDOM ATOMIC ENERGY AUTHORITY,UNITED KINGDOM ATOMIC ENERGY AUTHORITY,01/08/2016,BUILDING REPAIRS,SUPPORT SERVICES,KNOWLES & SONS (OXFORD) LTD,5100339736,54
UNITED KINGDOM ATOMIC ENERGY AUTHORITY,UNITED KINGDOM ATOMIC ENERGY AUTHORITY,01/08/2016,BUILDING REPAIRS,FUSION,KNOWLES & SONS (OXFORD) LTD,5100339737,60.61
UNITED KINGDOM ATOMIC ENERGY AUTHORITY,UNITED KINGDOM ATOMIC ENERGY AUTHORITY,01/08/2016,BUILDING REPAIRS,PROPERTY,KNOWLES & SONS (OXFORD) LTD,5100339738,48.95
UNITED KINGDOM ATOMIC ENERGY AUTHORITY,UNITED KINGDOM ATOMIC ENERGY AUTHORITY,01/08/2016,BUILDING REPAIRS,FUSION,KNOWLES & SONS (OXFORD) LTD,5100339739,28.02
UNITED KINGDOM ATOMIC ENERGY AUTHORITY,UNITED KINGDOM ATOMIC ENERGY AUTHORITY,01/08/2016,BUILDING REPAIRS,FUSION,KNOWLES & SONS (OXFORD) LTD,5100339740,43.57
UNITED KINGDOM ATOMIC ENERGY AUTHORITY,UNITED KINGDOM ATOMIC ENERGY AUTHORITY,01/08/2016,PROFESSIONAL SERVICES,FUSION,METRO ENGINEERING AND PLATING WORKS,5100339741,150
UNITED KINGDOM ATOMIC ENERGY AUTHORITY,UNITED KINGDOM ATOMIC ENERGY AUTHORITY,01/08/2016,BUILDING REPAIRS,PROPERTY,KNOWLES & SONS (OXFORD) LTD,5100339742,30.08
UNITED KINGDOM ATOMIC ENERGY AUTHORITY,UNITED KINGDOM ATOMIC ENERGY AUTHORITY,01/08/2016,BUILDING REPAIRS,FUSION,KNOWLES & SONS (OXFORD) LTD,5100339743,98.24
UNITED KINGDOM ATOMIC ENERGY AUTHORITY,UNITED KINGDOM ATOMIC ENERGY AUTHORITY,01/08/2016,MATERIALS & SPARES,FUSION,BUDGET FORKTRUCKS LTD,5100339744,793
UNITED KINGDOM ATOMIC ENERGY AUTHORITY,UNITED KINGDOM ATOMIC ENERGY AUTHORITY,01/08/2016,MATERIALS & SPARES,PROPERTY,BUDGET FORKTRUCKS LTD,5100339745,390
UNITED KINGDOM ATOMIC ENERGY AUTHORITY,UNITED KINGDOM ATOMIC ENERGY AUTHORITY,01/08/2016,BUILDING REPAIRS,FUSION,KNOWLES & SONS (OXFORD) LTD,5100339746,25.68
UNITED KINGDOM ATOMIC ENERGY AUTHORITY,UNITED KINGDOM ATOMIC ENERGY AUTHORITY,01/08/2016,BUILDING REPAIRS,FUSION,KNOWLES & SONS (OXFORD) LTD,5100339747,99.88
UNITED KINGDOM ATOMIC ENERGY AUTHORITY,UNITED KINGDOM ATOMIC ENERGY AUTHORITY,01/08/2016,MATERIALS & SPARES,FUSION,BUDGET FORKTRUCKS LTD,5100339748,390
UNITED KINGDOM ATOMIC ENERGY AUTHORITY,UNITED KINGDOM ATOMIC ENERGY AUTHORITY,01/08/2016,BUILDING REPAIRS,FUSION,KNOWLES & SONS (OXFORD) LTD,5100339749,28.02
UNITED KINGDOM ATOMIC ENERGY AUTHORITY,UNITED KINGDOM ATOMIC ENERGY AUTHORITY,01/08/2016,BUILDING REPAIRS,FUSION,KNOWLES & SONS (OXFORD) LTD,5100339750,135
UNITED KINGDOM ATOMIC ENERGY AUTHORITY,UNITED KINGDOM ATOMIC ENERGY AUTHORITY,01/08/2016,MATERIALS & SPARES,FUSION,BUDGET FORKTRUCKS LTD,5100339751,312
UNITED KINGDOM ATOMIC ENERGY AUTHORITY,UNITED KINGDOM ATOMIC ENERGY AUTHORITY,01/08/2016,MATERIALS & SPARES,FUSION,BUDGET FORKTRUCKS LTD,5100339752,390
UNITED KINGDOM ATOMIC ENERGY AUTHORITY,UNITED KINGDOM ATOMIC ENERGY AUTHORITY,01/08/2016,MATERIALS & SPARES,FUSION,BUDGET FORKTRUCKS LTD,5100339753,342.33
UNITED KINGDOM ATOMIC ENERGY AUTHORITY,UNITED KINGDOM ATOMIC ENERGY AUTHORITY,01/08/2016,BUILDING REPAIRS,SUPPORT SERVICES,KNOWLES & SONS (OXFORD) LTD,5100339754,499.5
UNITED KINGDOM ATOMIC ENERGY AUTHORITY,UNITED KINGDOM ATOMIC ENERGY AUTHORITY,01/08/2016,BUILDING REPAIRS,PROPERTY,KNOWLES & SONS (OXFORD) LTD,5100339755,512.2
UNITED KINGDOM ATOMIC ENERGY AUTHORITY,UNITED KINGDOM ATOMIC ENERGY AUTHORITY,01/08/2016,BUILDING REPAIRS,FUSION,KNOWLES & SONS (OXFORD) LTD,5100339756,1143.21
UNITED KINGDOM ATOMIC ENERGY AUTHORITY,UNITED KINGDOM ATOMIC ENERGY AUTHORITY,01/08/2016,BUILDING REPAIRS,FUSION,KNOWLES & SONS (OXFORD) LTD,5100339757,1175.13
UNITED KINGDOM ATOMIC ENERGY AUTHORITY,UNITED KINGDOM ATOMIC ENERGY AUTHORITY,01/08/2016,MATERIALS & SPARES,FUSION,FARNELL ELECTRONIC,5100339759,52.36
UNITED KINGDOM ATOMIC ENERGY AUTHORITY,UNITED KINGDOM ATOMIC ENERGY AUTHORITY,01/08/2016,MATERIALS & SPARES,FUSION,FARNELL ELECTRONIC,5100339761,126.54
UNITED KINGDOM ATOMIC ENERGY AUTHORITY,UNITED KINGDOM ATOMIC ENERGY AUTHORITY,01/08/2016,MATERIALS & SPARES,FUSION,FARNELL ELECTRONIC,5100339762,286.2
UNITED KINGDOM ATOMIC ENERGY AUTHORITY,UNITED KINGDOM ATOMIC ENERGY AUTHORITY,01/08/2016,MATERIALS & SPARES,FUSION,RS COMPONENTS LTD,5100339765,70.31
UNITED KINGDOM ATOMIC ENERGY AUTHORITY,UNITED KINGDOM ATOMIC ENERGY AUTHORITY,01/08/2016,MATERIALS & SPARES,FUSION,RS COMPONENTS LTD,5100339766,9.19
UNITED KINGDOM ATOMIC ENERGY AUTHORITY,UNITED KINGDOM ATOMIC ENERGY AUTHORITY,01/08/2016,MATERIALS & SPARES,FUSION,RS COMPONENTS LTD,5100339767,59.5
UNITED KINGDOM ATOMIC ENERGY AUTHORITY,UNITED KINGDOM ATOMIC ENERGY AUTHORITY,01/08/2016,PERSONAL PROTECTIVE EQUIPMENT,FUSION,ARCO LTD,5100339768,75.65
UNITED KINGDOM ATOMIC ENERGY AUTHORITY,UNITED KINGDOM ATOMIC ENERGY AUTHORITY,01/08/2016,PERSONAL PROTECTIVE EQUIPMENT,FUSION,ARCO LTD,5100339769,298.49
UNITED KINGDOM ATOMIC ENERGY AUTHORITY,UNITED KINGDOM ATOMIC ENERGY AUTHORITY,01/08/2016,MATERIALS & SPARES,FUSION,RS COMPONENTS LTD,5100339770,207.76
UNITED KINGDOM ATOMIC ENERGY AUTHORITY,UNITED KINGDOM ATOMIC ENERGY AUTHORITY,01/08/2016,PERSONAL PROTECTIVE EQUIPMENT,FUSION,ARCO LTD,5100339772,399.6
UNITED KINGDOM ATOMIC ENERGY AUTHORITY,UNITED KINGDOM ATOMIC ENERGY AUTHORITY,01/08/2016,PERSONAL PROTECTIVE EQUIPMENT,FUSION,ARCO LTD,5100339773,6.57
UNITED KINGDOM ATOMIC ENERGY AUTHORITY,UNITED KINGDOM ATOMIC ENERGY AUTHORITY,01/08/2016,MATERIALS & SPARES,FUSION,RS COMPONENTS LTD,5100339774,23.05
UNITED KINGDOM ATOMIC ENERGY AUTHORITY,UNITED KINGDOM ATOMIC ENERGY AUTHORITY,01/08/2016,MATERIALS & SPARES,FUSION,RS COMPONENTS LTD,5100339775,3.73
UNITED KINGDOM ATOMIC ENERGY AUTHORITY,UNITED KINGDOM ATOMIC ENERGY AUTHORITY,01/08/2016,MATERIALS & SPARES,FUSION,RS COMPONENTS LTD,5100339776,54.62
UNITED KINGDOM ATOMIC ENERGY AUTHORITY,UNITED KINGDOM ATOMIC ENERGY AUTHORITY,01/08/2016,MATERIALS & SPARES,FUSION,RS COMPONENTS LTD,5100339777,138.25
UNITED KINGDOM ATOMIC ENERGY AUTHORITY,UNITED KINGDOM ATOMIC ENERGY AUTHORITY,01/08/2016,MATERIALS & SPARES,FUSION,RS COMPONENTS LTD,5100339778,167.16
UNITED KINGDOM ATOMIC ENERGY AUTHORITY,UNITED KINGDOM ATOMIC ENERGY AUTHORITY,01/08/2016,MATERIALS & SPARES,FUSION,RS COMPONENTS LTD,5100339780,13.66
UNITED KINGDOM ATOMIC ENERGY AUTHORITY,UNITED KINGDOM ATOMIC ENERGY AUTHORITY,01/08/2016,CLEANING,FUSION,HYDROBLAST,5100339781,883
UNITED KINGDOM ATOMIC ENERGY AUTHORITY,UNITED KINGDOM ATOMIC ENERGY AUTHORITY,01/08/2016,MATERIALS & SPARES,FUSION,RS COMPONENTS LTD,5100339783,77.04
UNITED KINGDOM ATOMIC ENERGY AUTHORITY,UNITED KINGDOM ATOMIC ENERGY AUTHORITY,01/08/2016,MATERIALS & SPARES,FUSION,RS COMPONENTS LTD,5100339785,87.99
UNITED KINGDOM ATOMIC ENERGY AUTHORITY,UNITED KINGDOM ATOMIC ENERGY AUTHORITY,01/08/2016,MATERIALS & SPARES,FUSION,RS COMPONENTS LTD,5100339786,481.85
UNITED KINGDOM ATOMIC ENERGY AUTHORITY,UNITED KINGDOM ATOMIC ENERGY AUTHORITY,01/08/2016,PLANT & EQUIPMENT,FUSION,GLENAIR UK LTD,5100339787,291.92
UNITED KINGDOM ATOMIC ENERGY AUTHORITY,UNITED KINGDOM ATOMIC ENERGY AUTHORITY,01/08/2016,MATERIALS & SPARES,FUSION,KEY INDUSTRIAL EQUIPMENT LTD,5100339788,498.75
UNITED KINGDOM ATOMIC ENERGY AUTHORITY,UNITED KINGDOM ATOMIC ENERGY AUTHORITY,01/08/2016,PLANT & EQUIPMENT,FUSION,NOR-CAL UK LTD,5100339789,163.5
UNITED KINGDOM ATOMIC ENERGY AUTHORITY,UNITED KINGDOM ATOMIC ENERGY AUTHORITY,01/08/2016,PROFESSIONAL SERVICES,SUPPORT SERVICES,FINANCIAL REPORTING COUNCIL,5100339794,63.34
UNITED KINGDOM ATOMIC ENERGY AUTHORITY,UNITED KINGDOM ATOMIC ENERGY AUTHORITY,01/08/2016,IT SOFTWARE,SUPPORT SERVICES,UNIT 4 BUSINESS SOFTWARE,5100339796,12500
UNITED KINGDOM ATOMIC ENERGY AUTHORITY,UNITED KINGDOM ATOMIC ENERGY AUTHORITY,01/08/2016,MATERIALS & SPARES,FUSION,ANIXTER (UK) LTD,5100339798,131.62
UNITED KINGDOM ATOMIC ENERGY AUTHORITY,UNITED KINGDOM ATOMIC ENERGY AUTHORITY,01/08/2016,IT EQUIPMENT NON CAPITAL,FUSION,OMNIFLEX (UK) LTD,5100339799,968
UNITED KINGDOM ATOMIC ENERGY AUTHORITY,UNITED KINGDOM ATOMIC ENERGY AUTHORITY,01/08/2016,PLANT SPARES,FUSION,KNIGHT OPTICAL UK LTD,5100339800,40.04
UNITED KINGDOM ATOMIC ENERGY AUTHORITY,UNITED KINGDOM ATOMIC ENERGY AUTHORITY,01/08/2016,CONSUMABLES,FUSION,RAJAPACK LTD,5100339801,15.89
UNITED KINGDOM ATOMIC ENERGY AUTHORITY,UNITED KINGDOM ATOMIC ENERGY AUTHORITY,01/08/2016,PLANT & EQUIPMENT,FUSION,PFEIFFER VACUUM UK,5100339803,230.58
UNITED KINGDOM ATOMIC ENERGY AUTHORITY,UNITED KINGDOM ATOMIC ENERGY AUTHORITY,01/08/2016,MATERIALS & SPARES,FUSION,ABB LIMITED,5100339804,956
UNITED KINGDOM ATOMIC ENERGY AUTHORITY,UNITED KINGDOM ATOMIC ENERGY AUTHORITY,01/08/2016,PROFESSIONAL SERVICES,PROPERTY,KEMP & KEMP,5100339805,11105.25
UNITED KINGDOM ATOMIC ENERGY AUTHORITY,UNITED KINGDOM ATOMIC ENERGY AUTHORITY,01/08/2016,PLANT & EQUIPMENT,FUSION,AALCO LIMITED,5100339807,41
UNITED KINGDOM ATOMIC ENERGY AUTHORITY,UNITED KINGDOM ATOMIC ENERGY AUTHORITY,01/08/2016,MATERIALS & SPARES,FUSION,RADDEC LTD,5100339808,200
UNITED KINGDOM ATOMIC ENERGY AUTHORITY,UNITED KINGDOM ATOMIC ENERGY AUTHORITY,01/08/2016,MATERIALS & SPARES,FUSION,OXFORD BOLTS & BEARINGS,5100339809,95.5
UNITED KINGDOM ATOMIC ENERGY AUTHORITY,UNITED KINGDOM ATOMIC ENERGY AUTHORITY,01/08/2016,MATERIALS & SPARES,FUSION,OXFORD BOLTS & BEARINGS,5100339811,295.62
UNITED KINGDOM ATOMIC ENERGY AUTHORITY,UNITED KINGDOM ATOMIC ENERGY AUTHORITY,01/08/2016,PROFESSIONAL SERVICES,SUPPORT SERVICES,GOVERNMENT ACTUARY'S DEPARTMENT,5100339813,42740.99
UNITED KINGDOM ATOMIC ENERGY AUTHORITY,UNITED KINGDOM ATOMIC ENERGY AUTHORITY,01/08/2016,CAR HIRE,FUSION,LEASEDRIVE VELO,5100339814,74.31
UNITED KINGDOM ATOMIC ENERGY AUTHORITY,UNITED KINGDOM ATOMIC ENERGY AUTHORITY,01/08/2016,PROFESSIONAL SERVICES,SUPPORT SERVICES,AON HEWITT LTD,5100339815,152459.27
UNITED KINGDOM ATOMIC ENERGY AUTHORITY,UNITED KINGDOM ATOMIC ENERGY AUTHORITY,01/08/2016,CAR HIRE,FUSION,LEASEDRIVE VELO,5100339816,34.61
UNITED KINGDOM ATOMIC ENERGY AUTHORITY,UNITED KINGDOM ATOMIC ENERGY AUTHORITY,01/08/2016,MATERIALS & SPARES,FUSION,ROCHLING ENGINEERING PLASTICS,5100339817,4941.71
UNITED KINGDOM ATOMIC ENERGY AUTHORITY,UNITED KINGDOM ATOMIC ENERGY AUTHORITY,01/08/2016,MATERIALS & SPARES,FUSION,AMPLICON LIVELINE LTD,5100339818,417.1
UNITED KINGDOM ATOMIC ENERGY AUTHORITY,UNITED KINGDOM ATOMIC ENERGY AUTHORITY,01/08/2016,CAR HIRE,FUSION,LEASEDRIVE VELO,5100339819,42.57
UNITED KINGDOM ATOMIC ENERGY AUTHORITY,UNITED KINGDOM ATOMIC ENERGY AUTHORITY,01/08/2016,PLANT & EQUIPMENT,FUSION,FISHER SCIENTIFIC UK LTD,5100339820,43.47
UNITED KINGDOM ATOMIC ENERGY AUTHORITY,UNITED KINGDOM ATOMIC ENERGY AUTHORITY,01/08/2016,CAR HIRE,FUSION,LEASEDRIVE VELO,5100339821,113.2
UNITED KINGDOM ATOMIC ENERGY AUTHORITY,UNITED KINGDOM ATOMIC ENERGY AUTHORITY,01/08/2016,PLANT SPARES,FUSION,AURIGA EUROPE PLC,5100339823,23
UNITED KINGDOM ATOMIC ENERGY AUTHORITY,UNITED KINGDOM ATOMIC ENERGY AUTHORITY,01/08/2016,PLANT & EQUIPMENT,FUSION,EDMUNDSON ELECTRICALS LTD,5100339825,1171.98
UNITED KINGDOM ATOMIC ENERGY AUTHORITY,UNITED KINGDOM ATOMIC ENERGY AUTHORITY,01/08/2016,MATERIALS & SPARES,FUSION,RS COMPONENTS LTD,5100339828,91.03
UNITED KINGDOM ATOMIC ENERGY AUTHORITY,UNITED KINGDOM ATOMIC ENERGY AUTHORITY,01/08/2016,MATERIALS & SPARES,FUSION,RS COMPONENTS LTD,5100339829,158.91
UNITED KINGDOM ATOMIC ENERGY AUTHORITY,UNITED KINGDOM ATOMIC ENERGY AUTHORITY,01/08/2016,MATERIALS & SPARES,FUSION,RS COMPONENTS LTD,5100339831,13.96
UNITED KINGDOM ATOMIC ENERGY AUTHORITY,UNITED KINGDOM ATOMIC ENERGY AUTHORITY,01/08/2016,MATERIALS & SPARES,FUSION,RS COMPONENTS LTD,5100339833,108.46
UNITED KINGDOM ATOMIC ENERGY AUTHORITY,UNITED KINGDOM ATOMIC ENERGY AUTHORITY,01/08/2016,MATERIALS & SPARES,FUSION,FARNELL ELECTRONIC,5100339835,90.13
UNITED KINGDOM ATOMIC ENERGY AUTHORITY,UNITED KINGDOM ATOMIC ENERGY AUTHORITY,01/08/2016,MATERIALS & SPARES,FUSION,FARNELL ELECTRONIC,5100339838,86.65
UNITED KINGDOM ATOMIC ENERGY AUTHORITY,UNITED KINGDOM ATOMIC ENERGY AUTHORITY,01/08/2016,MATERIALS & SPARES,FUSION,FARNELL ELECTRONIC,5100339839,37.8
UNITED KINGDOM ATOMIC ENERGY AUTHORITY,UNITED KINGDOM ATOMIC ENERGY AUTHORITY,01/08/2016,MATERIALS & SPARES,FUSION,FARNELL ELECTRONIC,5100339840,19.68
UNITED KINGDOM ATOMIC ENERGY AUTHORITY,UNITED KINGDOM ATOMIC ENERGY AUTHORITY,01/08/2016,MATERIALS & SPARES,FUSION,FARNELL ELECTRONIC,5100339841,52.2
UNITED KINGDOM ATOMIC ENERGY AUTHORITY,UNITED KINGDOM ATOMIC ENERGY AUTHORITY,01/08/2016,MATERIALS & SPARES,FUSION,FARNELL ELECTRONIC,5100339842,601.2
UNITED KINGDOM ATOMIC ENERGY AUTHORITY,UNITED KINGDOM ATOMIC ENERGY AUTHORITY,01/08/2016,MATERIALS & SPARES,FUSION,RS COMPONENTS LTD,5100339843,394.44
UNITED KINGDOM ATOMIC ENERGY AUTHORITY,UNITED KINGDOM ATOMIC ENERGY AUTHORITY,01/08/2016,MATERIALS & SPARES,FUSION,RS COMPONENTS LTD,5100339844,63.02
UNITED KINGDOM ATOMIC ENERGY AUTHORITY,UNITED KINGDOM ATOMIC ENERGY AUTHORITY,01/08/2016,MATERIALS & SPARES,FUSION,RS COMPONENTS LTD,5100339845,235.86
UNITED KINGDOM ATOMIC ENERGY AUTHORITY,UNITED KINGDOM ATOMIC ENERGY AUTHORITY,01/08/2016,MATERIALS & SPARES,FUSION,RS COMPONENTS LTD,5100339846,96.17
UNITED KINGDOM ATOMIC ENERGY AUTHORITY,UNITED KINGDOM ATOMIC ENERGY AUTHORITY,01/08/2016,MATERIALS & SPARES,FUSION,GEAR CUTTING LTD,5100339848,1244
UNITED KINGDOM ATOMIC ENERGY AUTHORITY,UNITED KINGDOM ATOMIC ENERGY AUTHORITY,01/08/2016,PERSONAL PROTECTIVE EQUIPMENT,FUSION,ARCO LTD,5100339849,18.93
UNITED KINGDOM ATOMIC ENERGY AUTHORITY,UNITED KINGDOM ATOMIC ENERGY AUTHORITY,01/08/2016,MATERIALS & SPARES,FUSION,UNDERWOODS ELECTRICAL DISTRIBUTORS,5100339852,1379
UNITED KINGDOM ATOMIC ENERGY AUTHORITY,UNITED KINGDOM ATOMIC ENERGY AUTHORITY,01/08/2016,MATERIALS & SPARES,FUSION,INDUSTRIAL TECHNICAL LTD,5100339854,70
UNITED KINGDOM ATOMIC ENERGY AUTHORITY,UNITED KINGDOM ATOMIC ENERGY AUTHORITY,01/08/2016,PLANT SPARES,PROPERTY,AURIGA EUROPE PLC,5100339855,204
UNITED KINGDOM ATOMIC ENERGY AUTHORITY,UNITED KINGDOM ATOMIC ENERGY AUTHORITY,01/08/2016,MATERIALS & SPARES,FUSION,INDUSTRIAL TECHNICAL LTD,5100339856,13.4
UNITED KINGDOM ATOMIC ENERGY AUTHORITY,UNITED KINGDOM ATOMIC ENERGY AUTHORITY,01/08/2016,PLANT & EQUIPMENT,FUSION,IPM FITTINGS,5100339857,420.59
UNITED KINGDOM ATOMIC ENERGY AUTHORITY,UNITED KINGDOM ATOMIC ENERGY AUTHORITY,01/08/2016,PLANT & EQUIPMENT,FUSION,IPM FITTINGS,5100339859,7.08
UNITED KINGDOM ATOMIC ENERGY AUTHORITY,UNITED KINGDOM ATOMIC ENERGY AUTHORITY,01/08/2016,MATERIALS & SPARES,FUSION,OXFORD BOLTS & BEARINGS,5100339860,224.85
UNITED KINGDOM ATOMIC ENERGY AUTHORITY,UNITED KINGDOM ATOMIC ENERGY AUTHORITY,01/08/2016,MATERIALS & SPARES,SUPPORT SERVICES,RS COMPONENTS LTD,5100339861,106.51
UNITED KINGDOM ATOMIC ENERGY AUTHORITY,UNITED KINGDOM ATOMIC ENERGY AUTHORITY,01/08/2016,MATERIALS & SPARES,FUSION,RS COMPONENTS LTD,5100339862,41.16
UNITED KINGDOM ATOMIC ENERGY AUTHORITY,UNITED KINGDOM ATOMIC ENERGY AUTHORITY,01/08/2016,MATERIALS & SPARES,FUSION,RS COMPONENTS LTD,5100339864,77.91
UNITED KINGDOM ATOMIC ENERGY AUTHORITY,UNITED KINGDOM ATOMIC ENERGY AUTHORITY,01/08/2016,MATERIALS & SPARES,FUSION,RS COMPONENTS LTD,5100339865,193.72
UNITED KINGDOM ATOMIC ENERGY AUTHORITY,UNITED KINGDOM ATOMIC ENERGY AUTHORITY,01/08/2016,MATERIALS & SPARES,FUSION,OXFORD BOLTS & BEARINGS,5100339866,305.04
UNITED KINGDOM ATOMIC ENERGY AUTHORITY,UNITED KINGDOM ATOMIC ENERGY AUTHORITY,01/08/2016,MATERIALS & SPARES,FUSION,OXFORD BOLTS & BEARINGS,5100339868,45.8
UNITED KINGDOM ATOMIC ENERGY AUTHORITY,UNITED KINGDOM ATOMIC ENERGY AUTHORITY,01/08/2016,MATERIALS & SPARES,FUSION,RS COMPONENTS LTD,5100339869,82.84
UNITED KINGDOM ATOMIC ENERGY AUTHORITY,UNITED KINGDOM ATOMIC ENERGY AUTHORITY,01/08/2016,MATERIALS & SPARES,FUSION,RAPIED ELECTRONICS LTD,5100339870,7.96
UNITED KINGDOM ATOMIC ENERGY AUTHORITY,UNITED KINGDOM ATOMIC ENERGY AUTHORITY,01/08/2016,PROFESSIONAL SERVICES,SUPPORT SERVICES,CSC COMPUTER SERVICES,5100339871,32620.13
UNITED KINGDOM ATOMIC ENERGY AUTHORITY,UNITED KINGDOM ATOMIC ENERGY AUTHORITY,01/08/2016,MATERIALS & SPARES,FUSION,RS COMPONENTS LTD,5100339872,10.6
UNITED KINGDOM ATOMIC ENERGY AUTHORITY,UNITED KINGDOM ATOMIC ENERGY AUTHORITY,01/08/2016,IT MANAGED SERVICE,FUSION,SAMUI DESIGN & MANAGEMENT,5100339873,7
UNITED KINGDOM ATOMIC ENERGY AUTHORITY,UNITED KINGDOM ATOMIC ENERGY AUTHORITY,01/08/2016,MATERIALS & SPARES,FUSION,RS COMPONENTS LTD,5100339874,219.58
UNITED KINGDOM ATOMIC ENERGY AUTHORITY,UNITED KINGDOM ATOMIC ENERGY AUTHORITY,01/08/2016,MATERIALS & SPARES,FUSION,RS COMPONENTS LTD,5100339875,249.96
UNITED KINGDOM ATOMIC ENERGY AUTHORITY,UNITED KINGDOM ATOMIC ENERGY AUTHORITY,01/08/2016,MATERIALS & SPARES,FUSION,KEMET INTERNATIONAL LTD,5100339879,212.5
UNITED KINGDOM ATOMIC ENERGY AUTHORITY,UNITED KINGDOM ATOMIC ENERGY AUTHORITY,01/08/2016,STATIONERY,FUSION,LYRECO UK LIMITED,5100339881,187.74
UNITED KINGDOM ATOMIC ENERGY AUTHORITY,UNITED KINGDOM ATOMIC ENERGY AUTHORITY,01/08/2016,MATERIALS & SPARES,FUSION,RS COMPONENTS LTD,5100339882,204.73
UNITED KINGDOM ATOMIC ENERGY AUTHORITY,UNITED KINGDOM ATOMIC ENERGY AUTHORITY,01/08/2016,MATERIALS & SPARES,FUSION,RS COMPONENTS LTD,5100339883,59.58
UNITED KINGDOM ATOMIC ENERGY AUTHORITY,UNITED KINGDOM ATOMIC ENERGY AUTHORITY,01/08/2016,MATERIALS & SPARES,FUSION,RS COMPONENTS LTD,5100339884,72.4
UNITED KINGDOM ATOMIC ENERGY AUTHORITY,UNITED KINGDOM ATOMIC ENERGY AUTHORITY,01/08/2016,MATERIALS & SPARES,FUSION,RS COMPONENTS LTD,5100339885,6.23
UNITED KINGDOM ATOMIC ENERGY AUTHORITY,UNITED KINGDOM ATOMIC ENERGY AUTHORITY,01/08/2016,MATERIALS & SPARES,FUSION,RS COMPONENTS LTD,5100339886,24.03
UNITED KINGDOM ATOMIC ENERGY AUTHORITY,UNITED KINGDOM ATOMIC ENERGY AUTHORITY,01/08/2016,MATERIALS & SPARES,FUSION,RS COMPONENTS LTD,5100339887,398.61
UNITED KINGDOM ATOMIC ENERGY AUTHORITY,UNITED KINGDOM ATOMIC ENERGY AUTHORITY,01/08/2016,MATERIALS & SPARES,FUSION,RS COMPONENTS LTD,5100339888,25.69
UNITED KINGDOM ATOMIC ENERGY AUTHORITY,UNITED KINGDOM ATOMIC ENERGY AUTHORITY,01/08/2016,STATIONERY,SUPPORT SERVICES,LYRECO UK LIMITED,5100339890,11.9
UNITED KINGDOM ATOMIC ENERGY AUTHORITY,UNITED KINGDOM ATOMIC ENERGY AUTHORITY,01/08/2016,RENT OF VEHICLE & EQUIPMENT,FUSION,KONSTRUCTA SITE ACCOMMODATION HIRE,5100339892,402
UNITED KINGDOM ATOMIC ENERGY AUTHORITY,UNITED KINGDOM ATOMIC ENERGY AUTHORITY,01/08/2016,MATERIALS & SPARES,FUSION,HV WOODING LIMITED,5100339894,127.64
UNITED KINGDOM ATOMIC ENERGY AUTHORITY,UNITED KINGDOM ATOMIC ENERGY AUTHORITY,01/08/2016,STATIONERY,FUSION,LYRECO UK LIMITED,5100339895,-2.34
UNITED KINGDOM ATOMIC ENERGY AUTHORITY,UNITED KINGDOM ATOMIC ENERGY AUTHORITY,01/08/2016,MATERIALS & SPARES,FUSION,RS COMPONENTS LTD,5100339898,-63.87
UNITED KINGDOM ATOMIC ENERGY AUTHORITY,UNITED KINGDOM ATOMIC ENERGY AUTHORITY,01/08/2016,MATERIALS & SPARES,FUSION,RS COMPONENTS LTD,5100339901,55.37
UNITED KINGDOM ATOMIC ENERGY AUTHORITY,UNITED KINGDOM ATOMIC ENERGY AUTHORITY,01/08/2016,MATERIALS & SPARES,FUSION,RS COMPONENTS LTD,5100339902,90.42
UNITED KINGDOM ATOMIC ENERGY AUTHORITY,UNITED KINGDOM ATOMIC ENERGY AUTHORITY,01/08/2016,MATERIALS & SPARES,FUSION,RS COMPONENTS LTD,5100339904,72.2
UNITED KINGDOM ATOMIC ENERGY AUTHORITY,UNITED KINGDOM ATOMIC ENERGY AUTHORITY,01/08/2016,MATERIALS & SPARES,FUSION,RS COMPONENTS LTD,5100339905,127.6
UNITED KINGDOM ATOMIC ENERGY AUTHORITY,UNITED KINGDOM ATOMIC ENERGY AUTHORITY,01/08/2016,MATERIALS & SPARES,FUSION,RS COMPONENTS LTD,5100339906,12.21
UNITED KINGDOM ATOMIC ENERGY AUTHORITY,UNITED KINGDOM ATOMIC ENERGY AUTHORITY,01/08/2016,MATERIALS & SPARES,FUSION,FARNELL ELECTRONIC,5100339907,31.43
UNITED KINGDOM ATOMIC ENERGY AUTHORITY,UNITED KINGDOM ATOMIC ENERGY AUTHORITY,01/08/2016,MATERIALS & SPARES,FUSION,FARNELL ELECTRONIC,5100339908,141.28
UNITED KINGDOM ATOMIC ENERGY AUTHORITY,UNITED KINGDOM ATOMIC ENERGY AUTHORITY,01/08/2016,MATERIALS & SPARES,FUSION,FARNELL ELECTRONIC,5100339909,85.67
UNITED KINGDOM ATOMIC ENERGY AUTHORITY,UNITED KINGDOM ATOMIC ENERGY AUTHORITY,01/08/2016,BUILDING REPAIRS,FUSION,KNOWLES & SONS (OXFORD) LTD,5100339910,558.83
UNITED KINGDOM ATOMIC ENERGY AUTHORITY,UNITED KINGDOM ATOMIC ENERGY AUTHORITY,01/08/2016,CONSUMABLES,FUSION,SHROPSHIRE STAINLESS & ALUMINIUM LTD,5100339911,194
UNITED KINGDOM ATOMIC ENERGY AUTHORITY,UNITED KINGDOM ATOMIC ENERGY AUTHORITY,01/08/2016,CONSUMABLES,FUSION,SHROPSHIRE STAINLESS & ALUMINIUM LTD,5100339912,257.5
UNITED KINGDOM ATOMIC ENERGY AUTHORITY,UNITED KINGDOM ATOMIC ENERGY AUTHORITY,01/08/2016,CONSUMABLES,FUSION,SHROPSHIRE STAINLESS & ALUMINIUM LTD,5100339913,29.9
UNITED KINGDOM ATOMIC ENERGY AUTHORITY,UNITED KINGDOM ATOMIC ENERGY AUTHORITY,01/08/2016,CONSUMABLES,FUSION,REAGENT,5100339917,99.26
UNITED KINGDOM ATOMIC ENERGY AUTHORITY,UNITED KINGDOM ATOMIC ENERGY AUTHORITY,01/08/2016,CLEANING,PROPERTY,OCS CLEANING & SUPPORT SERVICES,5100339919,1530.27
UNITED KINGDOM ATOMIC ENERGY AUTHORITY,UNITED KINGDOM ATOMIC ENERGY AUTHORITY,01/08/2016,CONSUMABLES,FUSION,SHROPSHIRE STAINLESS & ALUMINIUM LTD,5100339920,45.25
UNITED KINGDOM ATOMIC ENERGY AUTHORITY,UNITED KINGDOM ATOMIC ENERGY AUTHORITY,01/08/2016,CONSUMABLES,FUSION,SHROPSHIRE STAINLESS & ALUMINIUM LTD,5100339921,50.73
UNITED KINGDOM ATOMIC ENERGY AUTHORITY,UNITED KINGDOM ATOMIC ENERGY AUTHORITY,01/08/2016,MATERIALS & SPARES,FUSION,UNDERWOODS ELECTRICAL DISTRIBUTORS,5100339922,774.45
UNITED KINGDOM ATOMIC ENERGY AUTHORITY,UNITED KINGDOM ATOMIC ENERGY AUTHORITY,01/08/2016,CONSUMABLES,FUSION,SHROPSHIRE STAINLESS & ALUMINIUM LTD,5100339923,165
UNITED KINGDOM ATOMIC ENERGY AUTHORITY,UNITED KINGDOM ATOMIC ENERGY AUTHORITY,01/08/2016,CONSUMABLES,FUSION,SHROPSHIRE STAINLESS & ALUMINIUM LTD,5100339924,47.85
UNITED KINGDOM ATOMIC ENERGY AUTHORITY,UNITED KINGDOM ATOMIC ENERGY AUTHORITY,01/08/2016,GASES,FUSION,BOC LTD,5100339925,41.1
UNITED KINGDOM ATOMIC ENERGY AUTHORITY,UNITED KINGDOM ATOMIC ENERGY AUTHORITY,01/08/2016,CLEANING,FUSION,OCS CLEANING & SUPPORT SERVICES,5100339926,2024.74
UNITED KINGDOM ATOMIC ENERGY AUTHORITY,UNITED KINGDOM ATOMIC ENERGY AUTHORITY,01/08/2016,MATERIALS & SPARES,FUSION,UNDERWOODS ELECTRICAL DISTRIBUTORS,5100339928,372.45
UNITED KINGDOM ATOMIC ENERGY AUTHORITY,UNITED KINGDOM ATOMIC ENERGY AUTHORITY,01/08/2016,CONSUMABLES,FUSION,SEAWARD ELECTRONIC LTD,5100339929,827
UNITED KINGDOM ATOMIC ENERGY AUTHORITY,UNITED KINGDOM ATOMIC ENERGY AUTHORITY,01/08/2016,CONSUMABLES,FUSION,CARILLON INDUSTRIAL SERVICES LTD,5100339930,95.76
UNITED KINGDOM ATOMIC ENERGY AUTHORITY,UNITED KINGDOM ATOMIC ENERGY AUTHORITY,01/08/2016,SECURITY & EMERGENCY,FUSION,TRINITY PROTETION SYSTEMS,5100339931,826.71
UNITED KINGDOM ATOMIC ENERGY AUTHORITY,UNITED KINGDOM ATOMIC ENERGY AUTHORITY,01/08/2016,SECURITY & EMERGENCY,PROPERTY,TRINITY PROTETION SYSTEMS,5100339932,748.52
UNITED KINGDOM ATOMIC ENERGY AUTHORITY,UNITED KINGDOM ATOMIC ENERGY AUTHORITY,01/08/2016,MATERIALS & SPARES,FUSION,THURLBY THANDAR INSTRUMENTS LTD,5100339934,1458.73
UNITED KINGDOM ATOMIC ENERGY AUTHORITY,UNITED KINGDOM ATOMIC ENERGY AUTHORITY,01/08/2016,MATERIALS & SPARES,FUSION,WADSWORTH (A DIVISION OF PRISM DATA,5100339935,29.9
UNITED KINGDOM ATOMIC ENERGY AUTHORITY,UNITED KINGDOM ATOMIC ENERGY AUTHORITY,01/08/2016,MATERIALS & SPARES,FUSION,UNDERWOODS ELECTRICAL DISTRIBUTORS,5100339936,-119.25
UNITED KINGDOM ATOMIC ENERGY AUTHORITY,UNITED KINGDOM ATOMIC ENERGY AUTHORITY,01/08/2016,PLANT SPARES,FUSION,CUTWEL LTD,5100339938,439.44
UNITED KINGDOM ATOMIC ENERGY AUTHORITY,UNITED KINGDOM ATOMIC ENERGY AUTHORITY,01/08/2016,MATERIALS & SPARES,FUSION,TR FASTENINGS LTD,5100339939,134.36
UNITED KINGDOM ATOMIC ENERGY AUTHORITY,UNITED KINGDOM ATOMIC ENERGY AUTHORITY,01/08/2016,MATERIALS & SPARES,FUSION,TR FASTENINGS LTD,5100339940,42.8
UNITED KINGDOM ATOMIC ENERGY AUTHORITY,UNITED KINGDOM ATOMIC ENERGY AUTHORITY,01/08/2016,PROFESSIONAL SERVICES,FUSION,BNS NUCLEAR SERVICES,5100339941,24058.88
UNITED KINGDOM ATOMIC ENERGY AUTHORITY,UNITED KINGDOM ATOMIC ENERGY AUTHORITY,01/08/2016,PROFESSIONAL SERVICES,FUSION,BNS NUCLEAR SERVICES,5100339942,25069.04
UNITED KINGDOM ATOMIC ENERGY AUTHORITY,UNITED KINGDOM ATOMIC ENERGY AUTHORITY,01/08/2016,PROFESSIONAL SERVICES,FUSION,BNS NUCLEAR SERVICES,5100339943,25459.11
UNITED KINGDOM ATOMIC ENERGY AUTHORITY,UNITED KINGDOM ATOMIC ENERGY AUTHORITY,01/08/2016,MATERIALS & SPARES,FUSION,INDUSTRIAL TECHNICAL LTD,5100339944,129.6
UNITED KINGDOM ATOMIC ENERGY AUTHORITY,UNITED KINGDOM ATOMIC ENERGY AUTHORITY,01/08/2016,PLANT & EQUIPMENT,FUSION,DIRECTA (UK) LTD,5100339949,1066.2
UNITED KINGDOM ATOMIC ENERGY AUTHORITY,UNITED KINGDOM ATOMIC ENERGY AUTHORITY,01/08/2016,PLANT & EQUIPMENT,FUSION,DIRECTA (UK) LTD,5100339950,10.4
UNITED KINGDOM ATOMIC ENERGY AUTHORITY,UNITED KINGDOM ATOMIC ENERGY AUTHORITY,01/08/2016,CLEANING,PROPERTY,OCS CLEANING & SUPPORT SERVICES,5100339951,3570.33
UNITED KINGDOM ATOMIC ENERGY AUTHORITY,UNITED KINGDOM ATOMIC ENERGY AUTHORITY,01/08/2016,MATERIALS & SPARES,FUSION,FARNELL ELECTRONIC,5100339952,12.18
UNITED KINGDOM ATOMIC ENERGY AUTHORITY,UNITED KINGDOM ATOMIC ENERGY AUTHORITY,01/08/2016,PROFESSIONAL SERVICES,FUSION,SCIENTIFICS LTD,5100339954,1350
UNITED KINGDOM ATOMIC ENERGY AUTHORITY,UNITED KINGDOM ATOMIC ENERGY AUTHORITY,01/08/2016,MATERIALS & SPARES,FUSION,FARNELL ELECTRONIC,5100339955,180.1
UNITED KINGDOM ATOMIC ENERGY AUTHORITY,UNITED KINGDOM ATOMIC ENERGY AUTHORITY,01/08/2016,MATERIALS & SPARES,FUSION,FARNELL ELECTRONIC,5100339956,8.39
UNITED KINGDOM ATOMIC ENERGY AUTHORITY,UNITED KINGDOM ATOMIC ENERGY AUTHORITY,01/08/2016,PROFESSIONAL SERVICES,FUSION,SCHNEIDER ELECTRIC,5100339957,1695
UNITED KINGDOM ATOMIC ENERGY AUTHORITY,UNITED KINGDOM ATOMIC ENERGY AUTHORITY,01/08/2016,GASES,FUSION,BOC LTD,5100339959,11.3
UNITED KINGDOM ATOMIC ENERGY AUTHORITY,UNITED KINGDOM ATOMIC ENERGY AUTHORITY,01/08/2016,STATIONERY,FUSION,LASER ENGRAVING LTD,5100339960,125
UNITED KINGDOM ATOMIC ENERGY AUTHORITY,UNITED KINGDOM ATOMIC ENERGY AUTHORITY,01/08/2016,PLANT & EQUIPMENT,FUSION,LEMO UK LTD,5100339963,500.6
UNITED KINGDOM ATOMIC ENERGY AUTHORITY,UNITED KINGDOM ATOMIC ENERGY AUTHORITY,01/08/2016,MATERIALS & SPARES,FUSION,RS COMPONENTS LTD,5100339964,44.36
UNITED KINGDOM ATOMIC ENERGY AUTHORITY,UNITED KINGDOM ATOMIC ENERGY AUTHORITY,01/08/2016,MATERIALS & SPARES,FUSION,R&M ELECTRICAL GROUP LTD,5100339968,253.94
UNITED KINGDOM ATOMIC ENERGY AUTHORITY,UNITED KINGDOM ATOMIC ENERGY AUTHORITY,01/08/2016,MATERIALS & SPARES,FUSION,R&M ELECTRICAL GROUP LTD,5100339969,615.03
UNITED KINGDOM ATOMIC ENERGY AUTHORITY,UNITED KINGDOM ATOMIC ENERGY AUTHORITY,01/08/2016,MATERIALS & SPARES,FUSION,R&M ELECTRICAL GROUP LTD,5100339971,249.23
UNITED KINGDOM ATOMIC ENERGY AUTHORITY,UNITED KINGDOM ATOMIC ENERGY AUTHORITY,01/08/2016,MATERIALS & SPARES,FUSION,R&M ELECTRICAL GROUP LTD,5100339972,168.28
UNITED KINGDOM ATOMIC ENERGY AUTHORITY,UNITED KINGDOM ATOMIC ENERGY AUTHORITY,01/08/2016,MATERIALS & SPARES,FUSION,R&M ELECTRICAL GROUP LTD,5100339973,39
UNITED KINGDOM ATOMIC ENERGY AUTHORITY,UNITED KINGDOM ATOMIC ENERGY AUTHORITY,01/08/2016,MATERIALS & SPARES,FUSION,R&M ELECTRICAL GROUP LTD,5100339974,153.2
UNITED KINGDOM ATOMIC ENERGY AUTHORITY,UNITED KINGDOM ATOMIC ENERGY AUTHORITY,01/08/2016,MATERIALS & SPARES,FUSION,RS COMPONENTS LTD,5100339976,2.12
UNITED KINGDOM ATOMIC ENERGY AUTHORITY,UNITED KINGDOM ATOMIC ENERGY AUTHORITY,01/08/2016,MATERIALS & SPARES,FUSION,R&M ELECTRICAL GROUP LTD,5100339977,4.88
UNITED KINGDOM ATOMIC ENERGY AUTHORITY,UNITED KINGDOM ATOMIC ENERGY AUTHORITY,01/08/2016,MATERIALS & SPARES,FUSION,RS COMPONENTS LTD,5100339978,40.42
UNITED KINGDOM ATOMIC ENERGY AUTHORITY,UNITED KINGDOM ATOMIC ENERGY AUTHORITY,01/08/2016,MATERIALS & SPARES,FUSION,RS COMPONENTS LTD,5100339980,168.34
UNITED KINGDOM ATOMIC ENERGY AUTHORITY,UNITED KINGDOM ATOMIC ENERGY AUTHORITY,01/08/2016,MATERIALS & SPARES,FUSION,R&M ELECTRICAL GROUP LTD,5100339981,3.9
UNITED KINGDOM ATOMIC ENERGY AUTHORITY,UNITED KINGDOM ATOMIC ENERGY AUTHORITY,01/08/2016,MATERIALS & SPARES,FUSION,R&M ELECTRICAL GROUP LTD,5100339982,130
UNITED KINGDOM ATOMIC ENERGY AUTHORITY,UNITED KINGDOM ATOMIC ENERGY AUTHORITY,01/08/2016,MATERIALS & SPARES,FUSION,RS COMPONENTS LTD,5100339987,51.97
UNITED KINGDOM ATOMIC ENERGY AUTHORITY,UNITED KINGDOM ATOMIC ENERGY AUTHORITY,01/08/2016,CAR HIRE,FUSION,LEASEDRIVE VELO,5100339988,229.2
UNITED KINGDOM ATOMIC ENERGY AUTHORITY,UNITED KINGDOM ATOMIC ENERGY AUTHORITY,01/08/2016,MATERIALS & SPARES,FUSION,RS COMPONENTS LTD,5100339989,17.31
UNITED KINGDOM ATOMIC ENERGY AUTHORITY,UNITED KINGDOM ATOMIC ENERGY AUTHORITY,01/08/2016,MATERIALS & SPARES,FUSION,RS COMPONENTS LTD,5100339990,25.17
UNITED KINGDOM ATOMIC ENERGY AUTHORITY,UNITED KINGDOM ATOMIC ENERGY AUTHORITY,01/08/2016,MATERIALS & SPARES,FUSION,RS COMPONENTS LTD,5100339991,11.11
UNITED KINGDOM ATOMIC ENERGY AUTHORITY,UNITED KINGDOM ATOMIC ENERGY AUTHORITY,01/08/2016,MATERIALS & SPARES,FUSION,RS COMPONENTS LTD,5100339993,77.49
UNITED KINGDOM ATOMIC ENERGY AUTHORITY,UNITED KINGDOM ATOMIC ENERGY AUTHORITY,01/08/2016,MATERIALS & SPARES,FUSION,RS COMPONENTS LTD,5100339995,72.62
UNITED KINGDOM ATOMIC ENERGY AUTHORITY,UNITED KINGDOM ATOMIC ENERGY AUTHORITY,01/08/2016,MATERIALS & SPARES,FUSION,RS COMPONENTS LTD,5100339996,38.93
UNITED KINGDOM ATOMIC ENERGY AUTHORITY,UNITED KINGDOM ATOMIC ENERGY AUTHORITY,01/08/2016,LEGAL FEES,SUPPORT SERVICES,KEOGHS,5100340000,157.5
UNITED KINGDOM ATOMIC ENERGY AUTHORITY,UNITED KINGDOM ATOMIC ENERGY AUTHORITY,01/08/2016,LEGAL FEES,SUPPORT SERVICES,KEOGHS,5100340001,1260
UNITED KINGDOM ATOMIC ENERGY AUTHORITY,UNITED KINGDOM ATOMIC ENERGY AUTHORITY,01/08/2016,CONSUMABLES,SUPPORT SERVICES,VENUSWORKS LTD,5100340002,1500
UNITED KINGDOM ATOMIC ENERGY AUTHORITY,UNITED KINGDOM ATOMIC ENERGY AUTHORITY,01/08/2016,CONSUMABLES,SUPPORT SERVICES,VENUSWORKS LTD,5100340003,1500
UNITED KINGDOM ATOMIC ENERGY AUTHORITY,UNITED KINGDOM ATOMIC ENERGY AUTHORITY,01/08/2016,LEGAL FEES,SUPPORT SERVICES,KEOGHS,5100340004,567
UNITED KINGDOM ATOMIC ENERGY AUTHORITY,UNITED KINGDOM ATOMIC ENERGY AUTHORITY,01/08/2016,PLANT SPARES,FUSION,BECKHOFF AUTOMATION LTD,5100340015,140.8
UNITED KINGDOM ATOMIC ENERGY AUTHORITY,UNITED KINGDOM ATOMIC ENERGY AUTHORITY,01/08/2016,PLANT SPARES,FUSION,CONDEC INDUSTRIAL MAINTENANCE,5100340019,220
UNITED KINGDOM ATOMIC ENERGY AUTHORITY,UNITED KINGDOM ATOMIC ENERGY AUTHORITY,03/08/2016,OTHER EXTERNAL COSTS,FUSION,GUARANT INTERNATIONAL POL.S.R.O,1900061630,681.88
UNITED KINGDOM ATOMIC ENERGY AUTHORITY,UNITED KINGDOM ATOMIC ENERGY AUTHORITY,03/08/2016,DELIVERY & CARRIAGE,FUSION,ING PAVEL BECK BECKSPEDITION,1900061631,209.61
UNITED KINGDOM ATOMIC ENERGY AUTHORITY,UNITED KINGDOM ATOMIC ENERGY AUTHORITY,03/08/2016,MATERIALS & SPARES,FUSION,RS COMPONENTS LTD,5100338953,24.03
UNITED KINGDOM ATOMIC ENERGY AUTHORITY,UNITED KINGDOM ATOMIC ENERGY AUTHORITY,03/08/2016,HEALTH PHYSICS,FUSION,NUVIA LIMITED,5100338976,48984.18
UNITED KINGDOM ATOMIC ENERGY AUTHORITY,UNITED KINGDOM ATOMIC ENERGY AUTHORITY,03/08/2016,MATERIALS & SPARES,FUSION,WELLINGTON ENGINEERING,5100339026,2533.72
UNITED KINGDOM ATOMIC ENERGY AUTHORITY,UNITED KINGDOM ATOMIC ENERGY AUTHORITY,03/08/2016,MATERIALS & SPARES,FUSION,RS COMPONENTS LTD,5100339448,197.97
UNITED KINGDOM ATOMIC ENERGY AUTHORITY,UNITED KINGDOM ATOMIC ENERGY AUTHORITY,03/08/2016,STATIONERY,PROPERTY,IDENTILAM PLC,5100339463,962
UNITED KINGDOM ATOMIC ENERGY AUTHORITY,UNITED KINGDOM ATOMIC ENERGY AUTHORITY,03/08/2016,CONSUMABLES,PROPERTY,ABLOY SECURITY,5100339486,47.37
UNITED KINGDOM ATOMIC ENERGY AUTHORITY,UNITED KINGDOM ATOMIC ENERGY AUTHORITY,03/08/2016,PROFESSIONAL SERVICES,FUSION,MICROLEASE PLC,5100339517,5276
UNITED KINGDOM ATOMIC ENERGY AUTHORITY,UNITED KINGDOM ATOMIC ENERGY AUTHORITY,03/08/2016,SOFTWARE,FUSION,APPLIED CAE,5100339521,3713
UNITED KINGDOM ATOMIC ENERGY AUTHORITY,UNITED KINGDOM ATOMIC ENERGY AUTHORITY,03/08/2016,PROFESSIONAL SERVICES,FUSION,VT NUCLEAR SERVICES LTD,5100339597,523.89
UNITED KINGDOM ATOMIC ENERGY AUTHORITY,UNITED KINGDOM ATOMIC ENERGY AUTHORITY,03/08/2016,MATERIALS & SPARES,FUSION,UNDERWOODS ELECTRICAL DISTRIBUTORS,5100339607,5293.75
UNITED KINGDOM ATOMIC ENERGY AUTHORITY,UNITED KINGDOM ATOMIC ENERGY AUTHORITY,03/08/2016,PROFESSIONAL SERVICES,FUSION,SWAGELOK LONDON,5100339642,753.72
UNITED KINGDOM ATOMIC ENERGY AUTHORITY,UNITED KINGDOM ATOMIC ENERGY AUTHORITY,03/08/2016,UNIVERSITY PLACEMENT,FUSION,UNIVERSITY OF YORK,5100339653,1642.86
UNITED KINGDOM ATOMIC ENERGY AUTHORITY,UNITED KINGDOM ATOMIC ENERGY AUTHORITY,03/08/2016,HIRED STAFF,FUSION,TRASYS,5100339657,9453.15
UNITED KINGDOM ATOMIC ENERGY AUTHORITY,UNITED KINGDOM ATOMIC ENERGY AUTHORITY,03/08/2016,HIRED STAFF,FUSION,TRASYS,5100339658,9297.75
UNITED KINGDOM ATOMIC ENERGY AUTHORITY,UNITED KINGDOM ATOMIC ENERGY AUTHORITY,03/08/2016,HIRED STAFF,FUSION,TRASYS,5100339659,5721.38
UNITED KINGDOM ATOMIC ENERGY AUTHORITY,UNITED KINGDOM ATOMIC ENERGY AUTHORITY,03/08/2016,PLANT & EQUIPMENT,FUSION,H L HYDRAULIK GMBH,5100339763,282.95
UNITED KINGDOM ATOMIC ENERGY AUTHORITY,UNITED KINGDOM ATOMIC ENERGY AUTHORITY,03/08/2016,MATERIALS & SPARES,FUSION,VACOM VAKUUM KOMPONENTEN,5100339764,617.2
UNITED KINGDOM ATOMIC ENERGY AUTHORITY,UNITED KINGDOM ATOMIC ENERGY AUTHORITY,03/08/2016,MATERIALS & SPARES,FUSION,RS COMPONENTS LTD,5100339771,36.82
UNITED KINGDOM ATOMIC ENERGY AUTHORITY,UNITED KINGDOM ATOMIC ENERGY AUTHORITY,03/08/2016,MATERIALS & SPARES,FUSION,VACOM VAKUUM KOMPONENTEN,5100339779,877.59
UNITED KINGDOM ATOMIC ENERGY AUTHORITY,UNITED KINGDOM ATOMIC ENERGY AUTHORITY,03/08/2016,MATERIALS & SPARES,FUSION,VACOM VAKUUM KOMPONENTEN,5100339790,356.17
UNITED KINGDOM ATOMIC ENERGY AUTHORITY,UNITED KINGDOM ATOMIC ENERGY AUTHORITY,03/08/2016,MATERIALS & SPARES,FUSION,VACOM VAKUUM KOMPONENTEN,5100339791,351.54
UNITED KINGDOM ATOMIC ENERGY AUTHORITY,UNITED KINGDOM ATOMIC ENERGY AUTHORITY,03/08/2016,MATERIALS & SPARES,FUSION,VACOM VAKUUM KOMPONENTEN,5100339793,351.54
UNITED KINGDOM ATOMIC ENERGY AUTHORITY,UNITED KINGDOM ATOMIC ENERGY AUTHORITY,03/08/2016,PLANT & EQUIPMENT,FUSION,NOR-CAL UK LTD,5100339797,165
UNITED KINGDOM ATOMIC ENERGY AUTHORITY,UNITED KINGDOM ATOMIC ENERGY AUTHORITY,03/08/2016,MATERIALS & SPARES,PROPERTY,INSULATION CONTRACTING SERVICES,5100339806,3089.92
UNITED KINGDOM ATOMIC ENERGY AUTHORITY,UNITED KINGDOM ATOMIC ENERGY AUTHORITY,03/08/2016,MATERIALS & SPARES,FUSION,FANUC UK LTD,5100339822,976
UNITED KINGDOM ATOMIC ENERGY AUTHORITY,UNITED KINGDOM ATOMIC ENERGY AUTHORITY,03/08/2016,HEALTH PHYSICS,FUSION,NUVIA LIMITED,5100339826,27912.68
UNITED KINGDOM ATOMIC ENERGY AUTHORITY,UNITED KINGDOM ATOMIC ENERGY AUTHORITY,03/08/2016,TRAINING COURSE FEES,FUSION,OXFORD UNIVERSITY,5100339850,21888.86
UNITED KINGDOM ATOMIC ENERGY AUTHORITY,UNITED KINGDOM ATOMIC ENERGY AUTHORITY,03/08/2016,IT EQUIPMENT NON CAPITAL,FUSION,PROBRAND LIMITED,5100339858,2515.06
UNITED KINGDOM ATOMIC ENERGY AUTHORITY,UNITED KINGDOM ATOMIC ENERGY AUTHORITY,03/08/2016,MATERIALS & SPARES,FUSION,ROCHLING ENGINEERING PLASTICS,5100339867,842.03
UNITED KINGDOM ATOMIC ENERGY AUTHORITY,UNITED KINGDOM ATOMIC ENERGY AUTHORITY,03/08/2016,STATIONERY,FUSION,LYRECO UK LIMITED,5100339889,759
UNITED KINGDOM ATOMIC ENERGY AUTHORITY,UNITED KINGDOM ATOMIC ENERGY AUTHORITY,03/08/2016,PROFESSIONAL SERVICES,FUSION,EUROPEAN INSTRUMENTS,5100339915,1842.5
UNITED KINGDOM ATOMIC ENERGY AUTHORITY,UNITED KINGDOM ATOMIC ENERGY AUTHORITY,03/08/2016,PLANT SPARES,FUSION,A W CLARKE,5100339916,2166.1
UNITED KINGDOM ATOMIC ENERGY AUTHORITY,UNITED KINGDOM ATOMIC ENERGY AUTHORITY,03/08/2016,GASES,FUSION,BOC LTD,5100339927,283.99
UNITED KINGDOM ATOMIC ENERGY AUTHORITY,UNITED KINGDOM ATOMIC ENERGY AUTHORITY,03/08/2016,PROFESSIONAL SERVICES,FUSION,SCIENTIFICS LTD,5100339948,297
UNITED KINGDOM ATOMIC ENERGY AUTHORITY,UNITED KINGDOM ATOMIC ENERGY AUTHORITY,03/08/2016,PLANT & EQUIPMENT,FUSION,FISHER SCIENTIFIC UK LTD,5100339965,422.38
UNITED KINGDOM ATOMIC ENERGY AUTHORITY,UNITED KINGDOM ATOMIC ENERGY AUTHORITY,03/08/2016,MATERIALS & SPARES,FUSION,R&M ELECTRICAL GROUP LTD,5100339983,47.5
UNITED KINGDOM ATOMIC ENERGY AUTHORITY,UNITED KINGDOM ATOMIC ENERGY AUTHORITY,03/08/2016,BOOKS & PUBLICATIONS,FUSION,IOP PUBLISHING LTD - EUR,5100340005,1031.25
UNITED KINGDOM ATOMIC ENERGY AUTHORITY,UNITED KINGDOM ATOMIC ENERGY AUTHORITY,03/08/2016,BOOKS & PUBLICATIONS,FUSION,IOP PUBLISHING LTD - EUR,5100340006,937.5
UNITED KINGDOM ATOMIC ENERGY AUTHORITY,UNITED KINGDOM ATOMIC ENERGY AUTHORITY,03/08/2016,BOOKS & PUBLICATIONS,FUSION,IOP PUBLISHING LTD - EUR,5100340007,843.75
UNITED KINGDOM ATOMIC ENERGY AUTHORITY,UNITED KINGDOM ATOMIC ENERGY AUTHORITY,03/08/2016,BOOKS & PUBLICATIONS,FUSION,IOP PUBLISHING LTD - EUR,5100340008,1125
UNITED KINGDOM ATOMIC ENERGY AUTHORITY,UNITED KINGDOM ATOMIC ENERGY AUTHORITY,03/08/2016,BOOKS & PUBLICATIONS,FUSION,IOP PUBLISHING LTD - EUR,5100340009,562.5
UNITED KINGDOM ATOMIC ENERGY AUTHORITY,UNITED KINGDOM ATOMIC ENERGY AUTHORITY,03/08/2016,BOOKS & PUBLICATIONS,FUSION,IOP PUBLISHING LTD - EUR,5100340010,1312.49
UNITED KINGDOM ATOMIC ENERGY AUTHORITY,UNITED KINGDOM ATOMIC ENERGY AUTHORITY,03/08/2016,PLANT & EQUIPMENT,FUSION,FIKE U.K,5100340051,2176
UNITED KINGDOM ATOMIC ENERGY AUTHORITY,UNITED KINGDOM ATOMIC ENERGY AUTHORITY,03/08/2016,PLANT & EQUIPMENT,FUSION,MISCO,5100340052,152.89
UNITED KINGDOM ATOMIC ENERGY AUTHORITY,UNITED KINGDOM ATOMIC ENERGY AUTHORITY,03/08/2016,PLANT & EQUIPMENT,FUSION,MISCO,5100340053,41.85
UNITED KINGDOM ATOMIC ENERGY AUTHORITY,UNITED KINGDOM ATOMIC ENERGY AUTHORITY,03/08/2016,PLANT & EQUIPMENT,FUSION,MULTI-CONTACT (UK) LTD,5100340141,-1019.95
UNITED KINGDOM ATOMIC ENERGY AUTHORITY,UNITED KINGDOM ATOMIC ENERGY AUTHORITY,03/08/2016,PLANT & EQUIPMENT,FUSION,MULTI-CONTACT (UK) LTD,5100340144,849.96
UNITED KINGDOM ATOMIC ENERGY AUTHORITY,UNITED KINGDOM ATOMIC ENERGY AUTHORITY,03/08/2016,LEGAL FEES,SUPPORT SERVICES,KEOGHS,5100340151,199.5
UNITED KINGDOM ATOMIC ENERGY AUTHORITY,UNITED KINGDOM ATOMIC ENERGY AUTHORITY,03/08/2016,LEGAL FEES,SUPPORT SERVICES,KEOGHS,5100340152,1050
UNITED KINGDOM ATOMIC ENERGY AUTHORITY,UNITED KINGDOM ATOMIC ENERGY AUTHORITY,03/08/2016,LEGAL FEES,SUPPORT SERVICES,KEOGHS,5100340153,724.5
UNITED KINGDOM ATOMIC ENERGY AUTHORITY,UNITED KINGDOM ATOMIC ENERGY AUTHORITY,03/08/2016,LEGAL FEES,SUPPORT SERVICES,KEOGHS,5100340154,483
UNITED KINGDOM ATOMIC ENERGY AUTHORITY,UNITED KINGDOM ATOMIC ENERGY AUTHORITY,04/08/2016,CONFERENCES/MEETINGS,FUSION,ACTIVE COMMUNICATIONS EUROPE LTD,1900061632,1310
UNITED KINGDOM ATOMIC ENERGY AUTHORITY,UNITED KINGDOM ATOMIC ENERGY AUTHORITY,04/08/2016,EXTERNAL SALES,FUSION,UNIVERSITY OF YORK,1900061633,20
UNITED KINGDOM ATOMIC ENERGY AUTHORITY,UNITED KINGDOM ATOMIC ENERGY AUTHORITY,04/08/2016,OTHER EXTERNAL COSTS,FUSION,MRS S A M HOWARD,1900061634,240
UNITED KINGDOM ATOMIC ENERGY AUTHORITY,UNITED KINGDOM ATOMIC ENERGY AUTHORITY,05/08/2016,PLANT & EQUIPMENT,FUSION,THERMO ELECTRON LED GMBH,1900061636,955
UNITED KINGDOM ATOMIC ENERGY AUTHORITY,UNITED KINGDOM ATOMIC ENERGY AUTHORITY,05/08/2016,OTHER EXTERNAL COSTS,FUSION,THERMO ELECTRON LED GMBH,1900061637,4200
UNITED KINGDOM ATOMIC ENERGY AUTHORITY,UNITED KINGDOM ATOMIC ENERGY AUTHORITY,05/08/2016,COMPENSATION & LEGAL FEES,,ROBERTS JACKSON SOLICITORS,1900061638,869.78
UNITED KINGDOM ATOMIC ENERGY AUTHORITY,UNITED KINGDOM ATOMIC ENERGY AUTHORITY,05/08/2016,COMPENSATION & LEGAL FEES,,SLATER & GORDON UK LLP,1900061640,2702.5
UNITED KINGDOM ATOMIC ENERGY AUTHORITY,UNITED KINGDOM ATOMIC ENERGY AUTHORITY,06/08/2016,MILEAGE ALLOWANCE,FUSION,EMPLOYEE EXPENSES,100816597,7.20
UNITED KINGDOM ATOMIC ENERGY AUTHORITY,UNITED KINGDOM ATOMIC ENERGY AUTHORITY,06/08/2016,SUBSISTENCE,FUSION,EMPLOYEE EXPENSES,100816598,3.79
UNITED KINGDOM ATOMIC ENERGY AUTHORITY,UNITED KINGDOM ATOMIC ENERGY AUTHORITY,06/08/2016,OTHER EMPLOYEE EXPENSES,FUSION,EMPLOYEE EXPENSES,100816598,27.61
UNITED KINGDOM ATOMIC ENERGY AUTHORITY,UNITED KINGDOM ATOMIC ENERGY AUTHORITY,06/08/2016,TAXIS,FUSION,EMPLOYEE EXPENSES,100816598,32.52
UNITED KINGDOM ATOMIC ENERGY AUTHORITY,UNITED KINGDOM ATOMIC ENERGY AUTHORITY,06/08/2016,RAIL TRAVEL,FUSION,EMPLOYEE EXPENSES,100816598,33.60
UNITED KINGDOM ATOMIC ENERGY AUTHORITY,UNITED KINGDOM ATOMIC ENERGY AUTHORITY,06/08/2016,RAIL TRAVEL,FUSION,EMPLOYEE EXPENSES,100816598,78.48
UNITED KINGDOM ATOMIC ENERGY AUTHORITY,UNITED KINGDOM ATOMIC ENERGY AUTHORITY,06/08/2016,SUBSISTENCE,FUSION,EMPLOYEE EXPENSES,100816598,947.98
UNITED KINGDOM ATOMIC ENERGY AUTHORITY,UNITED KINGDOM ATOMIC ENERGY AUTHORITY,06/08/2016,SUBSISTENCE,FUSION,EMPLOYEE EXPENSES,100816599,9.00
UNITED KINGDOM ATOMIC ENERGY AUTHORITY,UNITED KINGDOM ATOMIC ENERGY AUTHORITY,06/08/2016,MILEAGE ALLOWANCE,FUSION,EMPLOYEE EXPENSES,100816599,54.00
UNITED KINGDOM ATOMIC ENERGY AUTHORITY,UNITED KINGDOM ATOMIC ENERGY AUTHORITY,06/08/2016,OTHER EMPLOYEE EXPENSES,FUSION,EMPLOYEE EXPENSES,100816600,3.73
UNITED KINGDOM ATOMIC ENERGY AUTHORITY,UNITED KINGDOM ATOMIC ENERGY AUTHORITY,06/08/2016,PROFESSIONAL SUBSCRIPTION,FUSION,EMPLOYEE EXPENSES,100816600,124.74
UNITED KINGDOM ATOMIC ENERGY AUTHORITY,UNITED KINGDOM ATOMIC ENERGY AUTHORITY,06/08/2016,MILEAGE ALLOWANCE,FUSION,EMPLOYEE EXPENSES,100816601,152.10
UNITED KINGDOM ATOMIC ENERGY AUTHORITY,UNITED KINGDOM ATOMIC ENERGY AUTHORITY,06/08/2016,ROAD TRAVEL,FUSION,EMPLOYEE EXPENSES,100816602,6.25
UNITED KINGDOM ATOMIC ENERGY AUTHORITY,UNITED KINGDOM ATOMIC ENERGY AUTHORITY,06/08/2016,RAIL TRAVEL,FUSION,EMPLOYEE EXPENSES,100816602,163.10
UNITED KINGDOM ATOMIC ENERGY AUTHORITY,UNITED KINGDOM ATOMIC ENERGY AUTHORITY,06/08/2016,ROAD TRAVEL,FUSION,EMPLOYEE EXPENSES,100816603,29.82
UNITED KINGDOM ATOMIC ENERGY AUTHORITY,UNITED KINGDOM ATOMIC ENERGY AUTHORITY,06/08/2016,SUBSISTENCE,FUSION,EMPLOYEE EXPENSES,100816604,2.83
UNITED KINGDOM ATOMIC ENERGY AUTHORITY,UNITED KINGDOM ATOMIC ENERGY AUTHORITY,06/08/2016,ROAD TRAVEL,FUSION,EMPLOYEE EXPENSES,100816604,44.42
UNITED KINGDOM ATOMIC ENERGY AUTHORITY,UNITED KINGDOM ATOMIC ENERGY AUTHORITY,06/08/2016,CAR HIRE,FUSION,EMPLOYEE EXPENSES,100816604,131.50
UNITED KINGDOM ATOMIC ENERGY AUTHORITY,UNITED KINGDOM ATOMIC ENERGY AUTHORITY,06/08/2016,SUBSISTENCE,FUSION,EMPLOYEE EXPENSES,100816604,283.38
UNITED KINGDOM ATOMIC ENERGY AUTHORITY,UNITED KINGDOM ATOMIC ENERGY AUTHORITY,06/08/2016,SUBSISTENCE,SUPPORT SERVICES,EMPLOYEE EXPENSES,100816605,9.33
UNITED KINGDOM ATOMIC ENERGY AUTHORITY,UNITED KINGDOM ATOMIC ENERGY AUTHORITY,06/08/2016,ROAD TRAVEL,SUPPORT SERVICES,EMPLOYEE EXPENSES,100816605,13.00
UNITED KINGDOM ATOMIC ENERGY AUTHORITY,UNITED KINGDOM ATOMIC ENERGY AUTHORITY,06/08/2016,RAIL TRAVEL,FUSION,EMPLOYEE EXPENSES,100816606,13.16
UNITED KINGDOM ATOMIC ENERGY AUTHORITY,UNITED KINGDOM ATOMIC ENERGY AUTHORITY,06/08/2016,SUBSISTENCE,FUSION,EMPLOYEE EXPENSES,100816606,127.91
UNITED KINGDOM ATOMIC ENERGY AUTHORITY,UNITED KINGDOM ATOMIC ENERGY AUTHORITY,06/08/2016,SUBSISTENCE,FUSION,EMPLOYEE EXPENSES,100816607,537.35
UNITED KINGDOM ATOMIC ENERGY AUTHORITY,UNITED KINGDOM ATOMIC ENERGY AUTHORITY,06/08/2016,TRAINING COURSE FEES,FUSION,EMPLOYEE EXPENSES,100816608,51.00
UNITED KINGDOM ATOMIC ENERGY AUTHORITY,UNITED KINGDOM ATOMIC ENERGY AUTHORITY,06/08/2016,SUBSISTENCE,FUSION,EMPLOYEE EXPENSES,100816609,22.37
UNITED KINGDOM ATOMIC ENERGY AUTHORITY,UNITED KINGDOM ATOMIC ENERGY AUTHORITY,06/08/2016,TAXIS,FUSION,EMPLOYEE EXPENSES,100816609,25.00
UNITED KINGDOM ATOMIC ENERGY AUTHORITY,UNITED KINGDOM ATOMIC ENERGY AUTHORITY,06/08/2016,SUBSISTENCE,FUSION,EMPLOYEE EXPENSES,100816609,229.90
UNITED KINGDOM ATOMIC ENERGY AUTHORITY,UNITED KINGDOM ATOMIC ENERGY AUTHORITY,06/08/2016,ROAD TRAVEL,FUSION,EMPLOYEE EXPENSES,100816610,2.00
UNITED KINGDOM ATOMIC ENERGY AUTHORITY,UNITED KINGDOM ATOMIC ENERGY AUTHORITY,06/08/2016,ROAD TRAVEL,FUSION,EMPLOYEE EXPENSES,100816610,18.00
UNITED KINGDOM ATOMIC ENERGY AUTHORITY,UNITED KINGDOM ATOMIC ENERGY AUTHORITY,06/08/2016,PROFESSIONAL SUBSCRIPTION,PROPERTY,EMPLOYEE EXPENSES,100816611,238.00
UNITED KINGDOM ATOMIC ENERGY AUTHORITY,UNITED KINGDOM ATOMIC ENERGY AUTHORITY,06/08/2016,EFDA TRAVEL EXPENSES,FUSION,EMPLOYEE EXPENSES,100816612,"1,377.33"
UNITED KINGDOM ATOMIC ENERGY AUTHORITY,UNITED KINGDOM ATOMIC ENERGY AUTHORITY,06/08/2016,TAXIS,FUSION,EMPLOYEE EXPENSES,100816613,27.04
UNITED KINGDOM ATOMIC ENERGY AUTHORITY,UNITED KINGDOM ATOMIC ENERGY AUTHORITY,06/08/2016,ROAD TRAVEL,FUSION,EMPLOYEE EXPENSES,100816613,30.00
UNITED KINGDOM ATOMIC ENERGY AUTHORITY,UNITED KINGDOM ATOMIC ENERGY AUTHORITY,06/08/2016,SUBSISTENCE,FUSION,EMPLOYEE EXPENSES,100816613,"1,561.27"
UNITED KINGDOM ATOMIC ENERGY AUTHORITY,UNITED KINGDOM ATOMIC ENERGY AUTHORITY,06/08/2016,MILEAGE ALLOWANCE,FUSION,EMPLOYEE EXPENSES,100816614,6.30
UNITED KINGDOM ATOMIC ENERGY AUTHORITY,UNITED KINGDOM ATOMIC ENERGY AUTHORITY,06/08/2016,SUBSISTENCE,FUSION,EMPLOYEE EXPENSES,100816614,6.75
UNITED KINGDOM ATOMIC ENERGY AUTHORITY,UNITED KINGDOM ATOMIC ENERGY AUTHORITY,06/08/2016,RAIL TRAVEL,FUSION,EMPLOYEE EXPENSES,100816614,12.13
UNITED KINGDOM ATOMIC ENERGY AUTHORITY,UNITED KINGDOM ATOMIC ENERGY AUTHORITY,06/08/2016,TAXIS,FUSION,EMPLOYEE EXPENSES,100816614,15.00
UNITED KINGDOM ATOMIC ENERGY AUTHORITY,UNITED KINGDOM ATOMIC ENERGY AUTHORITY,06/08/2016,ROAD TRAVEL,FUSION,EMPLOYEE EXPENSES,100816614,32.50
UNITED KINGDOM ATOMIC ENERGY AUTHORITY,UNITED KINGDOM ATOMIC ENERGY AUTHORITY,06/08/2016,RAIL TRAVEL,FUSION,EMPLOYEE EXPENSES,100816614,55.80
UNITED KINGDOM ATOMIC ENERGY AUTHORITY,UNITED KINGDOM ATOMIC ENERGY AUTHORITY,06/08/2016,SUBSISTENCE,FUSION,EMPLOYEE EXPENSES,100816614,530.87
UNITED KINGDOM ATOMIC ENERGY AUTHORITY,UNITED KINGDOM ATOMIC ENERGY AUTHORITY,06/08/2016,ROAD TRAVEL,FUSION,EMPLOYEE EXPENSES,100816615,14.92
UNITED KINGDOM ATOMIC ENERGY AUTHORITY,UNITED KINGDOM ATOMIC ENERGY AUTHORITY,06/08/2016,ROAD TRAVEL,FUSION,EMPLOYEE EXPENSES,100816616,4.80
UNITED KINGDOM ATOMIC ENERGY AUTHORITY,UNITED KINGDOM ATOMIC ENERGY AUTHORITY,06/08/2016,SUBSISTENCE,FUSION,EMPLOYEE EXPENSES,100816616,4.92
UNITED KINGDOM ATOMIC ENERGY AUTHORITY,UNITED KINGDOM ATOMIC ENERGY AUTHORITY,06/08/2016,SUBSISTENCE,FUSION,EMPLOYEE EXPENSES,100816616,5.42
UNITED KINGDOM ATOMIC ENERGY AUTHORITY,UNITED KINGDOM ATOMIC ENERGY AUTHORITY,06/08/2016,RAIL TRAVEL,FUSION,EMPLOYEE EXPENSES,100816616,158.20
UNITED KINGDOM ATOMIC ENERGY AUTHORITY,UNITED KINGDOM ATOMIC ENERGY AUTHORITY,06/08/2016,SUBSISTENCE,FUSION,EMPLOYEE EXPENSES,100816617,1.33
UNITED KINGDOM ATOMIC ENERGY AUTHORITY,UNITED KINGDOM ATOMIC ENERGY AUTHORITY,06/08/2016,TAXIS,FUSION,EMPLOYEE EXPENSES,100816617,8.05
UNITED KINGDOM ATOMIC ENERGY AUTHORITY,UNITED KINGDOM ATOMIC ENERGY AUTHORITY,06/08/2016,SUBSISTENCE,FUSION,EMPLOYEE EXPENSES,100816617,178.92
UNITED KINGDOM ATOMIC ENERGY AUTHORITY,UNITED KINGDOM ATOMIC ENERGY AUTHORITY,06/08/2016,BUSINESS ENTERTAINMENT,FUSION,EMPLOYEE EXPENSES,100816618,199.65
UNITED KINGDOM ATOMIC ENERGY AUTHORITY,UNITED KINGDOM ATOMIC ENERGY AUTHORITY,06/08/2016,RAIL TRAVEL,FUSION,EMPLOYEE EXPENSES,100816619,11.51
UNITED KINGDOM ATOMIC ENERGY AUTHORITY,UNITED KINGDOM ATOMIC ENERGY AUTHORITY,06/08/2016,ROAD TRAVEL,FUSION,EMPLOYEE EXPENSES,100816619,28.00
UNITED KINGDOM ATOMIC ENERGY AUTHORITY,UNITED KINGDOM ATOMIC ENERGY AUTHORITY,06/08/2016,SUBSISTENCE,FUSION,EMPLOYEE EXPENSES,100816619,334.69
UNITED KINGDOM ATOMIC ENERGY AUTHORITY,UNITED KINGDOM ATOMIC ENERGY AUTHORITY,06/08/2016,OTHER EMPLOYEE EXPENSES,FUSION,EMPLOYEE EXPENSES,100816620,680.98
UNITED KINGDOM ATOMIC ENERGY AUTHORITY,UNITED KINGDOM ATOMIC ENERGY AUTHORITY,06/08/2016,OTHER EMPLOYEE EXPENSES,FUSION,EMPLOYEE EXPENSES,100816621,10.00
UNITED KINGDOM ATOMIC ENERGY AUTHORITY,UNITED KINGDOM ATOMIC ENERGY AUTHORITY,06/08/2016,SUBSISTENCE,FUSION,EMPLOYEE EXPENSES,100816621,10.62
UNITED KINGDOM ATOMIC ENERGY AUTHORITY,UNITED KINGDOM ATOMIC ENERGY AUTHORITY,06/08/2016,MILEAGE ALLOWANCE,FUSION,EMPLOYEE EXPENSES,100816622,187.20
UNITED KINGDOM ATOMIC ENERGY AUTHORITY,UNITED KINGDOM ATOMIC ENERGY AUTHORITY,06/08/2016,SUBSISTENCE,FUSION,EMPLOYEE EXPENSES,100816623,96.07
UNITED KINGDOM ATOMIC ENERGY AUTHORITY,UNITED KINGDOM ATOMIC ENERGY AUTHORITY,06/08/2016,PROFESSIONAL SUBSCRIPTION,FUSION,EMPLOYEE EXPENSES,100816624,54.00
UNITED KINGDOM ATOMIC ENERGY AUTHORITY,UNITED KINGDOM ATOMIC ENERGY AUTHORITY,06/08/2016,SUBSISTENCE,FUSION,EMPLOYEE EXPENSES,100816625,15.00
UNITED KINGDOM ATOMIC ENERGY AUTHORITY,UNITED KINGDOM ATOMIC ENERGY AUTHORITY,06/08/2016,SUBSISTENCE,FUSION,EMPLOYEE EXPENSES,100816625,40.13
UNITED KINGDOM ATOMIC ENERGY AUTHORITY,UNITED KINGDOM ATOMIC ENERGY AUTHORITY,06/08/2016,RAIL TRAVEL,FUSION,EMPLOYEE EXPENSES,100816625,48.30
UNITED KINGDOM ATOMIC ENERGY AUTHORITY,UNITED KINGDOM ATOMIC ENERGY AUTHORITY,06/08/2016,SUBSISTENCE,FUSION,EMPLOYEE EXPENSES,100816625,183.47
UNITED KINGDOM ATOMIC ENERGY AUTHORITY,UNITED KINGDOM ATOMIC ENERGY AUTHORITY,06/08/2016,OTHER EMPLOYEE EXPENSES,FUSION,EMPLOYEE EXPENSES,100816626,578.18
UNITED KINGDOM ATOMIC ENERGY AUTHORITY,UNITED KINGDOM ATOMIC ENERGY AUTHORITY,06/08/2016,SUBSISTENCE,FUSION,EMPLOYEE EXPENSES,100816627,5.00
UNITED KINGDOM ATOMIC ENERGY AUTHORITY,UNITED KINGDOM ATOMIC ENERGY AUTHORITY,06/08/2016,TAXIS,FUSION,EMPLOYEE EXPENSES,100816627,5.80
UNITED KINGDOM ATOMIC ENERGY AUTHORITY,UNITED KINGDOM ATOMIC ENERGY AUTHORITY,06/08/2016,RAIL TRAVEL,FUSION,EMPLOYEE EXPENSES,100816627,64.20
UNITED KINGDOM ATOMIC ENERGY AUTHORITY,UNITED KINGDOM ATOMIC ENERGY AUTHORITY,06/08/2016,SUBSISTENCE,FUSION,EMPLOYEE EXPENSES,100816627,253.67
UNITED KINGDOM ATOMIC ENERGY AUTHORITY,UNITED KINGDOM ATOMIC ENERGY AUTHORITY,06/08/2016,RELOCATION COSTS,FUSION,EMPLOYEE EXPENSES,100816628,"3,300.97"
UNITED KINGDOM ATOMIC ENERGY AUTHORITY,UNITED KINGDOM ATOMIC ENERGY AUTHORITY,06/08/2016,RELOCATION COSTS,FUSION,EMPLOYEE EXPENSES,100816629,"1,701.43"
UNITED KINGDOM ATOMIC ENERGY AUTHORITY,UNITED KINGDOM ATOMIC ENERGY AUTHORITY,06/08/2016,ROAD TRAVEL,FUSION,EMPLOYEE EXPENSES,100816630,7.50
UNITED KINGDOM ATOMIC ENERGY AUTHORITY,UNITED KINGDOM ATOMIC ENERGY AUTHORITY,06/08/2016,ROAD TRAVEL,FUSION,EMPLOYEE EXPENSES,100816630,8.40
UNITED KINGDOM ATOMIC ENERGY AUTHORITY,UNITED KINGDOM ATOMIC ENERGY AUTHORITY,06/08/2016,SUBSISTENCE,FUSION,EMPLOYEE EXPENSES,100816630,47.08
UNITED KINGDOM ATOMIC ENERGY AUTHORITY,UNITED KINGDOM ATOMIC ENERGY AUTHORITY,06/08/2016,OTHER EMPLOYEE EXPENSES,FUSION,EMPLOYEE EXPENSES,100816630,69.60
UNITED KINGDOM ATOMIC ENERGY AUTHORITY,UNITED KINGDOM ATOMIC ENERGY AUTHORITY,06/08/2016,SUBSISTENCE,FUSION,EMPLOYEE EXPENSES,100816630,383.25
UNITED KINGDOM ATOMIC ENERGY AUTHORITY,UNITED KINGDOM ATOMIC ENERGY AUTHORITY,08/08/2016,MATERIALS & SPARES,FUSION,RS COMPONENTS LTD,5100338444,5.41
UNITED KINGDOM ATOMIC ENERGY AUTHORITY,UNITED KINGDOM ATOMIC ENERGY AUTHORITY,08/08/2016,PROFESSIONAL SERVICES,FUSION,SWAGELOK LONDON,5100338730,32780.4
UNITED KINGDOM ATOMIC ENERGY AUTHORITY,UNITED KINGDOM ATOMIC ENERGY AUTHORITY,08/08/2016,MATERIALS & SPARES,FUSION,RS COMPONENTS LTD,5100338814,190.36
UNITED KINGDOM ATOMIC ENERGY AUTHORITY,UNITED KINGDOM ATOMIC ENERGY AUTHORITY,08/08/2016,OPERATING LEASE,FUSION,ANNODATA BUSINESS COMMUNICATIONS,5100339047,9755.89
UNITED KINGDOM ATOMIC ENERGY AUTHORITY,UNITED KINGDOM ATOMIC ENERGY AUTHORITY,08/08/2016,PLANT & EQUIPMENT,FUSION,NOR-CAL UK LTD,5100339230,1698.5
UNITED KINGDOM ATOMIC ENERGY AUTHORITY,UNITED KINGDOM ATOMIC ENERGY AUTHORITY,08/08/2016,BOOKS & PUBLICATIONS,SUPPORT SERVICES,BRITISH STANDARDS INSTITUTION,5100339251,6018
UNITED KINGDOM ATOMIC ENERGY AUTHORITY,UNITED KINGDOM ATOMIC ENERGY AUTHORITY,08/08/2016,PROFESSIONAL SERVICES,FUSION,SWAGELOK LONDON,5100339322,17627.4
UNITED KINGDOM ATOMIC ENERGY AUTHORITY,UNITED KINGDOM ATOMIC ENERGY AUTHORITY,08/08/2016,MATERIALS & SPARES,FUSION,GODIAC LTD,5100339434,1813.1
UNITED KINGDOM ATOMIC ENERGY AUTHORITY,UNITED KINGDOM ATOMIC ENERGY AUTHORITY,08/08/2016,MATERIALS & SPARES,FUSION,FARNELL ELECTRONIC,5100339469,14.2
UNITED KINGDOM ATOMIC ENERGY AUTHORITY,UNITED KINGDOM ATOMIC ENERGY AUTHORITY,08/08/2016,HIRED STAFF,FUSION,PELICAN SOFTWARE LTD,5100339500,5161.05
UNITED KINGDOM ATOMIC ENERGY AUTHORITY,UNITED KINGDOM ATOMIC ENERGY AUTHORITY,08/08/2016,HIRED STAFF,FUSION,PELICAN SOFTWARE LTD,5100339502,6927.14
UNITED KINGDOM ATOMIC ENERGY AUTHORITY,UNITED KINGDOM ATOMIC ENERGY AUTHORITY,08/08/2016,OPERATING LEASE,FUSION,ANNODATA BUSINESS COMMUNICATIONS,5100339509,2775.45
UNITED KINGDOM ATOMIC ENERGY AUTHORITY,UNITED KINGDOM ATOMIC ENERGY AUTHORITY,08/08/2016,PLANT & EQUIPMENT,FUSION,TRUSTCO PLC ,5100339569,3931.4
UNITED KINGDOM ATOMIC ENERGY AUTHORITY,UNITED KINGDOM ATOMIC ENERGY AUTHORITY,08/08/2016,PLANT & EQUIPMENT,FUSION,TRUSTCO PLC ,5100339570,1081.36
UNITED KINGDOM ATOMIC ENERGY AUTHORITY,UNITED KINGDOM ATOMIC ENERGY AUTHORITY,08/08/2016,MATERIALS & SPARES,FUSION,RS COMPONENTS LTD,5100339601,165.82
UNITED KINGDOM ATOMIC ENERGY AUTHORITY,UNITED KINGDOM ATOMIC ENERGY AUTHORITY,08/08/2016,MATERIALS & SPARES,FUSION,RS COMPONENTS LTD,5100339698,26.06
UNITED KINGDOM ATOMIC ENERGY AUTHORITY,UNITED KINGDOM ATOMIC ENERGY AUTHORITY,08/08/2016,MATERIALS & SPARES,FUSION,RS COMPONENTS LTD,5100339708,18.31
UNITED KINGDOM ATOMIC ENERGY AUTHORITY,UNITED KINGDOM ATOMIC ENERGY AUTHORITY,08/08/2016,MATERIALS & SPARES,FUSION,FARNELL ELECTRONIC,5100339760,136.7
UNITED KINGDOM ATOMIC ENERGY AUTHORITY,UNITED KINGDOM ATOMIC ENERGY AUTHORITY,08/08/2016,PROFESSIONAL SERVICES,SUPPORT SERVICES,VANIX LLP,5100339802,2043.17
UNITED KINGDOM ATOMIC ENERGY AUTHORITY,UNITED KINGDOM ATOMIC ENERGY AUTHORITY,08/08/2016,MATERIALS & SPARES,FUSION,RS COMPONENTS LTD,5100339830,126.59
UNITED KINGDOM ATOMIC ENERGY AUTHORITY,UNITED KINGDOM ATOMIC ENERGY AUTHORITY,08/08/2016,MATERIALS & SPARES,FUSION,RS COMPONENTS LTD,5100339832,328.79
UNITED KINGDOM ATOMIC ENERGY AUTHORITY,UNITED KINGDOM ATOMIC ENERGY AUTHORITY,08/08/2016,PROFESSIONAL SERVICES,FUSION,ONE FIX RECRUITMENT,5100339876,774
UNITED KINGDOM ATOMIC ENERGY AUTHORITY,UNITED KINGDOM ATOMIC ENERGY AUTHORITY,08/08/2016,MATERIALS & SPARES,FUSION,RS COMPONENTS LTD,5100339896,280.24
UNITED KINGDOM ATOMIC ENERGY AUTHORITY,UNITED KINGDOM ATOMIC ENERGY AUTHORITY,08/08/2016,MATERIALS & SPARES,FUSION,THE VALVE AND ACTUATOR LTD,5100339918,2242
UNITED KINGDOM ATOMIC ENERGY AUTHORITY,UNITED KINGDOM ATOMIC ENERGY AUTHORITY,08/08/2016,CLEANING,FUSION,HYDROBLAST,5100339962,785
UNITED KINGDOM ATOMIC ENERGY AUTHORITY,UNITED KINGDOM ATOMIC ENERGY AUTHORITY,08/08/2016,CONSUMABLES,FUSION,PALATINE PRECISION LTD,5100339966,2800
UNITED KINGDOM ATOMIC ENERGY AUTHORITY,UNITED KINGDOM ATOMIC ENERGY AUTHORITY,08/08/2016,MATERIALS & SPARES,FUSION,FORWARD 2000 LTD,5100339967,9070.14
UNITED KINGDOM ATOMIC ENERGY AUTHORITY,UNITED KINGDOM ATOMIC ENERGY AUTHORITY,08/08/2016,MATERIALS & SPARES,FUSION,RS COMPONENTS LTD,5100339979,250.18
UNITED KINGDOM ATOMIC ENERGY AUTHORITY,UNITED KINGDOM ATOMIC ENERGY AUTHORITY,08/08/2016,PLANT & EQUIPMENT,FUSION,NEW PIG LTD,5100339984,329.63
UNITED KINGDOM ATOMIC ENERGY AUTHORITY,UNITED KINGDOM ATOMIC ENERGY AUTHORITY,08/08/2016,MATERIALS & SPARES,FUSION,RS COMPONENTS LTD,5100339994,384.2
UNITED KINGDOM ATOMIC ENERGY AUTHORITY,UNITED KINGDOM ATOMIC ENERGY AUTHORITY,08/08/2016,CONSUMABLES,FUSION,PRECISION WATERJET LTD,5100339998,2908.88
UNITED KINGDOM ATOMIC ENERGY AUTHORITY,UNITED KINGDOM ATOMIC ENERGY AUTHORITY,08/08/2016,CONSUMABLES,FUSION,PRECISION WATERJET LTD,5100339999,1161.12
UNITED KINGDOM ATOMIC ENERGY AUTHORITY,UNITED KINGDOM ATOMIC ENERGY AUTHORITY,08/08/2016,PROFESSIONAL SERVICES,PROPERTY,BSP CONSULTING,5100340016,3450
UNITED KINGDOM ATOMIC ENERGY AUTHORITY,UNITED KINGDOM ATOMIC ENERGY AUTHORITY,08/08/2016,PROFESSIONAL SERVICES,FUSION,ESR TECHNOLOGY LTD,5100340017,2499
UNITED KINGDOM ATOMIC ENERGY AUTHORITY,UNITED KINGDOM ATOMIC ENERGY AUTHORITY,08/08/2016,PROFESSIONAL SERVICES,FUSION,VT NUCLEAR SERVICES LTD,5100340018,1127.72
UNITED KINGDOM ATOMIC ENERGY AUTHORITY,UNITED KINGDOM ATOMIC ENERGY AUTHORITY,08/08/2016,PROFESSIONAL SERVICES,SUPPORT SERVICES,LOGICA CMG UK LTD,5100340023,3750.31
UNITED KINGDOM ATOMIC ENERGY AUTHORITY,UNITED KINGDOM ATOMIC ENERGY AUTHORITY,08/08/2016,MATERIALS & SPARES,FUSION,METSPIN LTD,5100340024,843.5
UNITED KINGDOM ATOMIC ENERGY AUTHORITY,UNITED KINGDOM ATOMIC ENERGY AUTHORITY,08/08/2016,MATERIALS & SPARES,FUSION,MARKER TECH LTD,5100340025,340
UNITED KINGDOM ATOMIC ENERGY AUTHORITY,UNITED KINGDOM ATOMIC ENERGY AUTHORITY,08/08/2016,SITE SUPPORT SERVICES,PROPERTY,SCION ESTATES,5100340026,10704.02
UNITED KINGDOM ATOMIC ENERGY AUTHORITY,UNITED KINGDOM ATOMIC ENERGY AUTHORITY,08/08/2016,SITE SUPPORT SERVICES,PROPERTY,SCION ESTATES,5100340027,1396.88
UNITED KINGDOM ATOMIC ENERGY AUTHORITY,UNITED KINGDOM ATOMIC ENERGY AUTHORITY,08/08/2016,SITE SUPPORT SERVICES,PROPERTY,SCION ESTATES,5100340028,80
UNITED KINGDOM ATOMIC ENERGY AUTHORITY,UNITED KINGDOM ATOMIC ENERGY AUTHORITY,08/08/2016,SECURITY & EMERGENCY,PROPERTY,RELIANCE SECURITY GROUP PLC,5100340029,89798.74
UNITED KINGDOM ATOMIC ENERGY AUTHORITY,UNITED KINGDOM ATOMIC ENERGY AUTHORITY,08/08/2016,REPAIRS & MAINTENANCE,FUSION,BEAVER 84 LIMITED,5100340031,988.6
UNITED KINGDOM ATOMIC ENERGY AUTHORITY,UNITED KINGDOM ATOMIC ENERGY AUTHORITY,08/08/2016,MATERIALS & SPARES,FUSION,VWR INTERNATIONAL LTD,5100340032,265
UNITED KINGDOM ATOMIC ENERGY AUTHORITY,UNITED KINGDOM ATOMIC ENERGY AUTHORITY,08/08/2016,CONSUMABLES,FUSION,SYNERGYHEALTH (UK) LIMITED,5100340033,691.2
UNITED KINGDOM ATOMIC ENERGY AUTHORITY,UNITED KINGDOM ATOMIC ENERGY AUTHORITY,08/08/2016,MATERIALS & SPARES,FUSION,CROMWELL LTD,5100340034,77.73
UNITED KINGDOM ATOMIC ENERGY AUTHORITY,UNITED KINGDOM ATOMIC ENERGY AUTHORITY,08/08/2016,MATERIALS & SPARES,FUSION,CROMWELL LTD,5100340035,540.96
UNITED KINGDOM ATOMIC ENERGY AUTHORITY,UNITED KINGDOM ATOMIC ENERGY AUTHORITY,08/08/2016,HIRED STAFF,FUSION,MORSON INTERNATIONAL,5100340037,375.74
UNITED KINGDOM ATOMIC ENERGY AUTHORITY,UNITED KINGDOM ATOMIC ENERGY AUTHORITY,08/08/2016,TAXIS,FUSION,HAROLDS CARS,5100340038,6216.29
UNITED KINGDOM ATOMIC ENERGY AUTHORITY,UNITED KINGDOM ATOMIC ENERGY AUTHORITY,08/08/2016,MATERIALS & SPARES,FUSION,PI-KEM LTD,5100340039,1746.35
UNITED KINGDOM ATOMIC ENERGY AUTHORITY,UNITED KINGDOM ATOMIC ENERGY AUTHORITY,08/08/2016,CONSUMABLES,FUSION,CARILLON INDUSTRIAL SERVICES LTD,5100340040,23.45
UNITED KINGDOM ATOMIC ENERGY AUTHORITY,UNITED KINGDOM ATOMIC ENERGY AUTHORITY,08/08/2016,PROFESSIONAL SUBSCRIPTION,FUSION,RADSAFE CLG,5100340041,17000
UNITED KINGDOM ATOMIC ENERGY AUTHORITY,UNITED KINGDOM ATOMIC ENERGY AUTHORITY,08/08/2016,CONSUMABLES,FUSION,CARILLON INDUSTRIAL SERVICES LTD,5100340042,158.34
UNITED KINGDOM ATOMIC ENERGY AUTHORITY,UNITED KINGDOM ATOMIC ENERGY AUTHORITY,08/08/2016,MATERIALS & SPARES,FUSION,OXFORD BOLTS & BEARINGS,5100340050,304
UNITED KINGDOM ATOMIC ENERGY AUTHORITY,UNITED KINGDOM ATOMIC ENERGY AUTHORITY,08/08/2016,PROFESSIONAL SERVICES,FUSION,MARCHAM SCIENTIFIC LTD,5100340054,3250
UNITED KINGDOM ATOMIC ENERGY AUTHORITY,UNITED KINGDOM ATOMIC ENERGY AUTHORITY,08/08/2016,MATERIALS & SPARES,FUSION,OXFORD BOLTS & BEARINGS,5100340056,20.88
UNITED KINGDOM ATOMIC ENERGY AUTHORITY,UNITED KINGDOM ATOMIC ENERGY AUTHORITY,08/08/2016,MATERIALS & SPARES,FUSION,SCREWFIX DIRECT LTD,5100340061,52.86
UNITED KINGDOM ATOMIC ENERGY AUTHORITY,UNITED KINGDOM ATOMIC ENERGY AUTHORITY,08/08/2016,CONSUMABLES,FUSION,AGATE PRODUCTS LTD,5100340062,85
UNITED KINGDOM ATOMIC ENERGY AUTHORITY,UNITED KINGDOM ATOMIC ENERGY AUTHORITY,08/08/2016,PROFESSIONAL SERVICES,FUSION,NATIONAL PHYSICAL LABORATORY MGT LT,5100340063,1500
UNITED KINGDOM ATOMIC ENERGY AUTHORITY,UNITED KINGDOM ATOMIC ENERGY AUTHORITY,08/08/2016,MATERIALS & SPARES,FUSION,NEWCASTLE OPTICAL ENGINEERING LTD,5100340064,1310
UNITED KINGDOM ATOMIC ENERGY AUTHORITY,UNITED KINGDOM ATOMIC ENERGY AUTHORITY,08/08/2016,HIRED STAFF,FUSION,BLACK DIAMOND UMBRELLA LTD,5100340068,5246.68
UNITED KINGDOM ATOMIC ENERGY AUTHORITY,UNITED KINGDOM ATOMIC ENERGY AUTHORITY,08/08/2016,LEGAL FEES,PROPERTY,MORGAN COLE,5100340069,2929
UNITED KINGDOM ATOMIC ENERGY AUTHORITY,UNITED KINGDOM ATOMIC ENERGY AUTHORITY,08/08/2016,MATERIALS & SPARES,FUSION,NEWEY & EYRE LTD,5100340072,746.51
UNITED KINGDOM ATOMIC ENERGY AUTHORITY,UNITED KINGDOM ATOMIC ENERGY AUTHORITY,08/08/2016,SECURITY & EMERGENCY,PROPERTY,RELIANCE SECURITY GROUP PLC,5100340073,-396.98
UNITED KINGDOM ATOMIC ENERGY AUTHORITY,UNITED KINGDOM ATOMIC ENERGY AUTHORITY,08/08/2016,PLANT & EQUIPMENT,FUSION,PFEIFFER VACUUM UK,5100340075,1007.15
UNITED KINGDOM ATOMIC ENERGY AUTHORITY,UNITED KINGDOM ATOMIC ENERGY AUTHORITY,08/08/2016,PLANT & EQUIPMENT,FUSION,PHS GROUP PLC,5100340077,45.28
UNITED KINGDOM ATOMIC ENERGY AUTHORITY,UNITED KINGDOM ATOMIC ENERGY AUTHORITY,08/08/2016,MATERIALS & SPARES,FUSION,RAMTUC,5100340078,3000
UNITED KINGDOM ATOMIC ENERGY AUTHORITY,UNITED KINGDOM ATOMIC ENERGY AUTHORITY,08/08/2016,REPAIRS & MAINTENANCE,PROPERTY,ZURICH MANAGEMENT SERVICES LTD,5100340081,3253.46
UNITED KINGDOM ATOMIC ENERGY AUTHORITY,UNITED KINGDOM ATOMIC ENERGY AUTHORITY,08/08/2016,PLANT SPARES,FUSION,AURIGA EUROPE PLC,5100340084,160.47
UNITED KINGDOM ATOMIC ENERGY AUTHORITY,UNITED KINGDOM ATOMIC ENERGY AUTHORITY,08/08/2016,UNIVERSITY PLACEMENT,FUSION,UNIVERSITY OF YORK,5100340087,2168.77
UNITED KINGDOM ATOMIC ENERGY AUTHORITY,UNITED KINGDOM ATOMIC ENERGY AUTHORITY,08/08/2016,UNIVERSITY PLACEMENT,FUSION,UNIVERSITY OF YORK,5100340089,2754.97
UNITED KINGDOM ATOMIC ENERGY AUTHORITY,UNITED KINGDOM ATOMIC ENERGY AUTHORITY,08/08/2016,UNIVERSITY PLACEMENT,FUSION,UNIVERSITY OF YORK,5100340090,6571.16
UNITED KINGDOM ATOMIC ENERGY AUTHORITY,UNITED KINGDOM ATOMIC ENERGY AUTHORITY,08/08/2016,MATERIALS & SPARES,FUSION,COMPRESSORS & PNEUMATIC SYSTEMS LTD,5100340091,49715.39
UNITED KINGDOM ATOMIC ENERGY AUTHORITY,UNITED KINGDOM ATOMIC ENERGY AUTHORITY,08/08/2016,PLANT SPARES,FUSION,CUTWEL LTD,5100340092,198.72
UNITED KINGDOM ATOMIC ENERGY AUTHORITY,UNITED KINGDOM ATOMIC ENERGY AUTHORITY,08/08/2016,MATERIALS & SPARES,FUSION,CITY ELECTRICAL FACTORS,5100340093,56
UNITED KINGDOM ATOMIC ENERGY AUTHORITY,UNITED KINGDOM ATOMIC ENERGY AUTHORITY,08/08/2016,PLANT & EQUIPMENT,FUSION,THAMES VALLEY SAW SERVICE LTD,5100340094,1249
UNITED KINGDOM ATOMIC ENERGY AUTHORITY,UNITED KINGDOM ATOMIC ENERGY AUTHORITY,08/08/2016,UNIVERSITY PLACEMENT,FUSION,UNIVERSITY OF YORK,5100340095,2576.82
UNITED KINGDOM ATOMIC ENERGY AUTHORITY,UNITED KINGDOM ATOMIC ENERGY AUTHORITY,08/08/2016,PLANT & EQUIPMENT,FUSION,THAMES VALLEY SAW SERVICE LTD,5100340096,44.14
UNITED KINGDOM ATOMIC ENERGY AUTHORITY,UNITED KINGDOM ATOMIC ENERGY AUTHORITY,08/08/2016,PLANT & EQUIPMENT,FUSION,MSC/J & L INDUSTRIAL SUPPLY,5100340097,482.24
UNITED KINGDOM ATOMIC ENERGY AUTHORITY,UNITED KINGDOM ATOMIC ENERGY AUTHORITY,08/08/2016,PROFESSIONAL SERVICES,FUSION,EDM PRECISION TECHNOLOGIES,5100340098,640
UNITED KINGDOM ATOMIC ENERGY AUTHORITY,UNITED KINGDOM ATOMIC ENERGY AUTHORITY,08/08/2016,PROFESSIONAL SERVICES,FUSION,EDM PRECISION TECHNOLOGIES,5100340099,1614
UNITED KINGDOM ATOMIC ENERGY AUTHORITY,UNITED KINGDOM ATOMIC ENERGY AUTHORITY,08/08/2016,F&F,SUPPORT SERVICES,BROADSTOCK OFFICE FURNITURE LTD,5100340101,1840
UNITED KINGDOM ATOMIC ENERGY AUTHORITY,UNITED KINGDOM ATOMIC ENERGY AUTHORITY,08/08/2016,F&F,FUSION,BROADSTOCK OFFICE FURNITURE LTD,5100340103,31
UNITED KINGDOM ATOMIC ENERGY AUTHORITY,UNITED KINGDOM ATOMIC ENERGY AUTHORITY,08/08/2016,PERSONAL PROTECTIVE EQUIPMENT,SUPPORT SERVICES,ARCO LTD,5100340108,624.84
UNITED KINGDOM ATOMIC ENERGY AUTHORITY,UNITED KINGDOM ATOMIC ENERGY AUTHORITY,08/08/2016,PERSONAL PROTECTIVE EQUIPMENT,FUSION,ARCO LTD,5100340109,708.79
UNITED KINGDOM ATOMIC ENERGY AUTHORITY,UNITED KINGDOM ATOMIC ENERGY AUTHORITY,08/08/2016,PERSONAL PROTECTIVE EQUIPMENT,FUSION,ARCO LTD,5100340110,23.89
UNITED KINGDOM ATOMIC ENERGY AUTHORITY,UNITED KINGDOM ATOMIC ENERGY AUTHORITY,08/08/2016,MATERIALS & SPARES,PROPERTY,CUT KEYS DIRECT LTD,5100340111,5.6
UNITED KINGDOM ATOMIC ENERGY AUTHORITY,UNITED KINGDOM ATOMIC ENERGY AUTHORITY,08/08/2016,PERSONAL PROTECTIVE EQUIPMENT,FUSION,ARCO LTD,5100340116,690.34
UNITED KINGDOM ATOMIC ENERGY AUTHORITY,UNITED KINGDOM ATOMIC ENERGY AUTHORITY,08/08/2016,CONSUMABLES,PROPERTY,ABLOY SECURITY,5100340118,45.46
UNITED KINGDOM ATOMIC ENERGY AUTHORITY,UNITED KINGDOM ATOMIC ENERGY AUTHORITY,08/08/2016,BOOKS & PUBLICATIONS,SUPPORT SERVICES,THE BRITISH LIBRARY,5100340119,42.4
UNITED KINGDOM ATOMIC ENERGY AUTHORITY,UNITED KINGDOM ATOMIC ENERGY AUTHORITY,08/08/2016,PLANT & EQUIPMENT,SUPPORT SERVICES,FISHER SCIENTIFIC UK LTD,5100340120,142.87
UNITED KINGDOM ATOMIC ENERGY AUTHORITY,UNITED KINGDOM ATOMIC ENERGY AUTHORITY,08/08/2016,MATERIALS & SPARES,FUSION,MEGGITT AEROSPACE LIMITED T/A MEGGITT,5100340121,4022.98
UNITED KINGDOM ATOMIC ENERGY AUTHORITY,UNITED KINGDOM ATOMIC ENERGY AUTHORITY,08/08/2016,MATERIALS & SPARES,FUSION,GEAR CUTTING LTD,5100340123,1891.8
UNITED KINGDOM ATOMIC ENERGY AUTHORITY,UNITED KINGDOM ATOMIC ENERGY AUTHORITY,08/08/2016,VEHICLE REPAIRS,FUSION,SUTTON COURTENAY TYRES,5100340125,185.06
UNITED KINGDOM ATOMIC ENERGY AUTHORITY,UNITED KINGDOM ATOMIC ENERGY AUTHORITY,08/08/2016,MATERIALS & SPARES,FUSION,WELLINGTON TUBE SUPPLIES LTD,5100340127,241.35
UNITED KINGDOM ATOMIC ENERGY AUTHORITY,UNITED KINGDOM ATOMIC ENERGY AUTHORITY,08/08/2016,MATERIALS & SPARES,FUSION,MECHANICAL CLEANSING SERVICES LIMITED,5100340129,375.7
UNITED KINGDOM ATOMIC ENERGY AUTHORITY,UNITED KINGDOM ATOMIC ENERGY AUTHORITY,08/08/2016,MATERIALS & SPARES,FUSION,MOUSER ELECTRONICS,5100340130,33.6
UNITED KINGDOM ATOMIC ENERGY AUTHORITY,UNITED KINGDOM ATOMIC ENERGY AUTHORITY,08/08/2016,PLANT & EQUIPMENT,FUSION,VIRAC MARKETING LTD,5100340131,232.5
UNITED KINGDOM ATOMIC ENERGY AUTHORITY,UNITED KINGDOM ATOMIC ENERGY AUTHORITY,08/08/2016,PLANT & EQUIPMENT,FUSION,DONALDSON FILTRATION (GB) LIMITED,5100340132,2464.33
UNITED KINGDOM ATOMIC ENERGY AUTHORITY,UNITED KINGDOM ATOMIC ENERGY AUTHORITY,08/08/2016,CONSUMABLES,FUSION,SHROPSHIRE STAINLESS & ALUMINIUM LTD,5100340133,85.6
UNITED KINGDOM ATOMIC ENERGY AUTHORITY,UNITED KINGDOM ATOMIC ENERGY AUTHORITY,08/08/2016,CONSUMABLES,FUSION,SHROPSHIRE STAINLESS & ALUMINIUM LTD,5100340134,113.9
UNITED KINGDOM ATOMIC ENERGY AUTHORITY,UNITED KINGDOM ATOMIC ENERGY AUTHORITY,08/08/2016,PERSONAL PROTECTIVE EQUIPMENT,FUSION,ARCO LTD,5100340135,69.12
UNITED KINGDOM ATOMIC ENERGY AUTHORITY,UNITED KINGDOM ATOMIC ENERGY AUTHORITY,08/08/2016,CONSUMABLES,FUSION,RAJAPACK LTD,5100340137,45.47
UNITED KINGDOM ATOMIC ENERGY AUTHORITY,UNITED KINGDOM ATOMIC ENERGY AUTHORITY,08/08/2016,MATERIALS & SPARES,FUSION,KURT J LESKER,5100340140,1307
UNITED KINGDOM ATOMIC ENERGY AUTHORITY,UNITED KINGDOM ATOMIC ENERGY AUTHORITY,08/08/2016,PLANT SPARES,FUSION,A D INSTALLATION LTD,5100340142,1340
UNITED KINGDOM ATOMIC ENERGY AUTHORITY,UNITED KINGDOM ATOMIC ENERGY AUTHORITY,08/08/2016,MATERIALS & SPARES,FUSION,OXFORD BOLTS & BEARINGS,5100340143,71.49
UNITED KINGDOM ATOMIC ENERGY AUTHORITY,UNITED KINGDOM ATOMIC ENERGY AUTHORITY,08/08/2016,MATERIALS & SPARES,FUSION,ROCHLING ENGINEERING PLASTICS,5100340147,125
UNITED KINGDOM ATOMIC ENERGY AUTHORITY,UNITED KINGDOM ATOMIC ENERGY AUTHORITY,08/08/2016,SECURITY & EMERGENCY,PROPERTY,RELIANCE SECURITY GROUP PLC,5100340148,-17.17
UNITED KINGDOM ATOMIC ENERGY AUTHORITY,UNITED KINGDOM ATOMIC ENERGY AUTHORITY,08/08/2016,PLANT & EQUIPMENT,FUSION,QUARTZELEC LTD,5100340150,60152.18
UNITED KINGDOM ATOMIC ENERGY AUTHORITY,UNITED KINGDOM ATOMIC ENERGY AUTHORITY,08/08/2016,PLANT & EQUIPMENT,FUSION,TESCAN-UK LTD,5100340156,17262.5
UNITED KINGDOM ATOMIC ENERGY AUTHORITY,UNITED KINGDOM ATOMIC ENERGY AUTHORITY,08/08/2016,PROFESSIONAL SERVICES,SUPPORT SERVICES,MEDIGOLD HEALTH CONSULTANCY LTD,5100340157,170
UNITED KINGDOM ATOMIC ENERGY AUTHORITY,UNITED KINGDOM ATOMIC ENERGY AUTHORITY,08/08/2016,PROFESSIONAL SERVICES,SUPPORT SERVICES,MEDIGOLD HEALTH CONSULTANCY LTD,5100340158,205
UNITED KINGDOM ATOMIC ENERGY AUTHORITY,UNITED KINGDOM ATOMIC ENERGY AUTHORITY,08/08/2016,PROFESSIONAL SERVICES,SUPPORT SERVICES,MEDIGOLD HEALTH CONSULTANCY LTD,5100340161,170
UNITED KINGDOM ATOMIC ENERGY AUTHORITY,UNITED KINGDOM ATOMIC ENERGY AUTHORITY,08/08/2016,PROFESSIONAL SERVICES,FUSION,MMI ENGINEERING,5100340163,7500
UNITED KINGDOM ATOMIC ENERGY AUTHORITY,UNITED KINGDOM ATOMIC ENERGY AUTHORITY,08/08/2016,PLANT SPARES,FUSION,CONDEC INDUSTRIAL MAINTENANCE,5100340169,2220
UNITED KINGDOM ATOMIC ENERGY AUTHORITY,UNITED KINGDOM ATOMIC ENERGY AUTHORITY,08/08/2016,CLEANING,PROPERTY,OCS CLEANING & SUPPORT SERVICES,5100340170,2815.73
UNITED KINGDOM ATOMIC ENERGY AUTHORITY,UNITED KINGDOM ATOMIC ENERGY AUTHORITY,08/08/2016,MATERIALS & SPARES,FUSION,FARNELL ELECTRONIC,5100340174,10.1
UNITED KINGDOM ATOMIC ENERGY AUTHORITY,UNITED KINGDOM ATOMIC ENERGY AUTHORITY,08/08/2016,MATERIALS & SPARES,FUSION,FARNELL ELECTRONIC,5100340175,37.86
UNITED KINGDOM ATOMIC ENERGY AUTHORITY,UNITED KINGDOM ATOMIC ENERGY AUTHORITY,08/08/2016,MATERIALS & SPARES,FUSION,RS COMPONENTS LTD,5100340176,16.4
UNITED KINGDOM ATOMIC ENERGY AUTHORITY,UNITED KINGDOM ATOMIC ENERGY AUTHORITY,08/08/2016,MATERIALS & SPARES,FUSION,RS COMPONENTS LTD,5100340177,20.47
UNITED KINGDOM ATOMIC ENERGY AUTHORITY,UNITED KINGDOM ATOMIC ENERGY AUTHORITY,08/08/2016,MATERIALS & SPARES,FUSION,RS COMPONENTS LTD,5100340178,53.63
UNITED KINGDOM ATOMIC ENERGY AUTHORITY,UNITED KINGDOM ATOMIC ENERGY AUTHORITY,08/08/2016,MATERIALS & SPARES,FUSION,RS COMPONENTS LTD,5100340179,275.48
UNITED KINGDOM ATOMIC ENERGY AUTHORITY,UNITED KINGDOM ATOMIC ENERGY AUTHORITY,08/08/2016,MATERIALS & SPARES,FUSION,RS COMPONENTS LTD,5100340180,37.86
UNITED KINGDOM ATOMIC ENERGY AUTHORITY,UNITED KINGDOM ATOMIC ENERGY AUTHORITY,08/08/2016,PROFESSIONAL SERVICES,FUSION,MACHINING TECHNOLOGY (MACH-TECH),5100340181,429.33
UNITED KINGDOM ATOMIC ENERGY AUTHORITY,UNITED KINGDOM ATOMIC ENERGY AUTHORITY,08/08/2016,MATERIALS & SPARES,FUSION,RS COMPONENTS LTD,5100340183,212.31
UNITED KINGDOM ATOMIC ENERGY AUTHORITY,UNITED KINGDOM ATOMIC ENERGY AUTHORITY,08/08/2016,SITE SUPPORT SERVICES,PROPERTY,SCION ESTATES,5100340184,1256.2
UNITED KINGDOM ATOMIC ENERGY AUTHORITY,UNITED KINGDOM ATOMIC ENERGY AUTHORITY,08/08/2016,MATERIALS & SPARES,FUSION,B&M ENGINEERING LTD,5100340185,595
UNITED KINGDOM ATOMIC ENERGY AUTHORITY,UNITED KINGDOM ATOMIC ENERGY AUTHORITY,08/08/2016,MATERIALS & SPARES,FUSION,B&M ENGINEERING LTD,5100340186,400
UNITED KINGDOM ATOMIC ENERGY AUTHORITY,UNITED KINGDOM ATOMIC ENERGY AUTHORITY,08/08/2016,MATERIALS & SPARES,FUSION,B&M ENGINEERING LTD,5100340187,290
UNITED KINGDOM ATOMIC ENERGY AUTHORITY,UNITED KINGDOM ATOMIC ENERGY AUTHORITY,08/08/2016,MATERIALS & SPARES,FUSION,B&M ENGINEERING LTD,5100340189,440
UNITED KINGDOM ATOMIC ENERGY AUTHORITY,UNITED KINGDOM ATOMIC ENERGY AUTHORITY,08/08/2016,MATERIALS & SPARES,FUSION,B&M ENGINEERING LTD,5100340190,410
UNITED KINGDOM ATOMIC ENERGY AUTHORITY,UNITED KINGDOM ATOMIC ENERGY AUTHORITY,08/08/2016,MATERIALS & SPARES,FUSION,B&M ENGINEERING LTD,5100340191,270
UNITED KINGDOM ATOMIC ENERGY AUTHORITY,UNITED KINGDOM ATOMIC ENERGY AUTHORITY,08/08/2016,MATERIALS & SPARES,PROPERTY,B&M ENGINEERING LTD,5100340192,147
UNITED KINGDOM ATOMIC ENERGY AUTHORITY,UNITED KINGDOM ATOMIC ENERGY AUTHORITY,08/08/2016,MATERIALS & SPARES,FUSION,B&M ENGINEERING LTD,5100340193,600
UNITED KINGDOM ATOMIC ENERGY AUTHORITY,UNITED KINGDOM ATOMIC ENERGY AUTHORITY,08/08/2016,MATERIALS & SPARES,FUSION,RS COMPONENTS LTD,5100340194,50.68
UNITED KINGDOM ATOMIC ENERGY AUTHORITY,UNITED KINGDOM ATOMIC ENERGY AUTHORITY,08/08/2016,MATERIALS & SPARES,FUSION,B&M ENGINEERING LTD,5100340195,240
UNITED KINGDOM ATOMIC ENERGY AUTHORITY,UNITED KINGDOM ATOMIC ENERGY AUTHORITY,08/08/2016,MATERIALS & SPARES,FUSION,B&M ENGINEERING LTD,5100340196,100
UNITED KINGDOM ATOMIC ENERGY AUTHORITY,UNITED KINGDOM ATOMIC ENERGY AUTHORITY,08/08/2016,PLANT & EQUIPMENT,FUSION,MILLHILL TOOLS LTD,5100340200,9.7
UNITED KINGDOM ATOMIC ENERGY AUTHORITY,UNITED KINGDOM ATOMIC ENERGY AUTHORITY,08/08/2016,PLANT & EQUIPMENT,FUSION,MILLHILL TOOLS LTD,5100340201,8.5
UNITED KINGDOM ATOMIC ENERGY AUTHORITY,UNITED KINGDOM ATOMIC ENERGY AUTHORITY,08/08/2016,PLANT & EQUIPMENT,FUSION,MILLHILL TOOLS LTD,5100340202,5
UNITED KINGDOM ATOMIC ENERGY AUTHORITY,UNITED KINGDOM ATOMIC ENERGY AUTHORITY,08/08/2016,PLANT & EQUIPMENT,FUSION,MILLHILL TOOLS LTD,5100340203,16.65
UNITED KINGDOM ATOMIC ENERGY AUTHORITY,UNITED KINGDOM ATOMIC ENERGY AUTHORITY,08/08/2016,PLANT & EQUIPMENT,FUSION,MILLHILL TOOLS LTD,5100340204,66.89
UNITED KINGDOM ATOMIC ENERGY AUTHORITY,UNITED KINGDOM ATOMIC ENERGY AUTHORITY,08/08/2016,PLANT & EQUIPMENT,FUSION,MILLHILL TOOLS LTD,5100340205,105.62
UNITED KINGDOM ATOMIC ENERGY AUTHORITY,UNITED KINGDOM ATOMIC ENERGY AUTHORITY,08/08/2016,PLANT & EQUIPMENT,FUSION,MILLHILL TOOLS LTD,5100340206,149.8
UNITED KINGDOM ATOMIC ENERGY AUTHORITY,UNITED KINGDOM ATOMIC ENERGY AUTHORITY,08/08/2016,UTILITIES/WATER,PROPERTY,THAMES WATER UTILITIES,5100340207,10515.82
UNITED KINGDOM ATOMIC ENERGY AUTHORITY,UNITED KINGDOM ATOMIC ENERGY AUTHORITY,08/08/2016,UTILITIES/WATER,PROPERTY,THAMES WATER UTILITIES,5100340209,6564.01
UNITED KINGDOM ATOMIC ENERGY AUTHORITY,UNITED KINGDOM ATOMIC ENERGY AUTHORITY,08/08/2016,PLANT SPARES,FUSION,BRITE PRECISION,5100340211,720
UNITED KINGDOM ATOMIC ENERGY AUTHORITY,UNITED KINGDOM ATOMIC ENERGY AUTHORITY,08/08/2016,HIRED STAFF,FUSION,TESSELLA PLC,5100340213,11683.04
UNITED KINGDOM ATOMIC ENERGY AUTHORITY,UNITED KINGDOM ATOMIC ENERGY AUTHORITY,08/08/2016,HIRED STAFF,FUSION,TESSELLA PLC,5100340214,12645.52
UNITED KINGDOM ATOMIC ENERGY AUTHORITY,UNITED KINGDOM ATOMIC ENERGY AUTHORITY,08/08/2016,MATERIALS & SPARES,FUSION,RS COMPONENTS LTD,5100340215,152.96
UNITED KINGDOM ATOMIC ENERGY AUTHORITY,UNITED KINGDOM ATOMIC ENERGY AUTHORITY,08/08/2016,MATERIALS & SPARES,FUSION,MARKER TECH LTD,5100340216,122.66
UNITED KINGDOM ATOMIC ENERGY AUTHORITY,UNITED KINGDOM ATOMIC ENERGY AUTHORITY,08/08/2016,MATERIALS & SPARES,FUSION,RS COMPONENTS LTD,5100340217,63.04
UNITED KINGDOM ATOMIC ENERGY AUTHORITY,UNITED KINGDOM ATOMIC ENERGY AUTHORITY,08/08/2016,MATERIALS & SPARES,FUSION,CABLECRAFT LTD,5100340218,63.66
UNITED KINGDOM ATOMIC ENERGY AUTHORITY,UNITED KINGDOM ATOMIC ENERGY AUTHORITY,08/08/2016,HIRED STAFF,FUSION,MORSON INTERNATIONAL,5100340220,329503.12
UNITED KINGDOM ATOMIC ENERGY AUTHORITY,UNITED KINGDOM ATOMIC ENERGY AUTHORITY,08/08/2016,MATERIALS & SPARES,FUSION,RS COMPONENTS LTD,5100340221,56.91
UNITED KINGDOM ATOMIC ENERGY AUTHORITY,UNITED KINGDOM ATOMIC ENERGY AUTHORITY,08/08/2016,PLANT SPARES,FUSION,TESTBOURNE LTD,5100340222,368
UNITED KINGDOM ATOMIC ENERGY AUTHORITY,UNITED KINGDOM ATOMIC ENERGY AUTHORITY,08/08/2016,MATERIALS & SPARES,FUSION,RS COMPONENTS LTD,5100340223,230.43
UNITED KINGDOM ATOMIC ENERGY AUTHORITY,UNITED KINGDOM ATOMIC ENERGY AUTHORITY,08/08/2016,MATERIALS & SPARES,FUSION,RS COMPONENTS LTD,5100340226,510.41
UNITED KINGDOM ATOMIC ENERGY AUTHORITY,UNITED KINGDOM ATOMIC ENERGY AUTHORITY,08/08/2016,MATERIALS & SPARES,FUSION,ACRONA ENGINEERING LTD,5100340227,2075.2
UNITED KINGDOM ATOMIC ENERGY AUTHORITY,UNITED KINGDOM ATOMIC ENERGY AUTHORITY,08/08/2016,MATERIALS & SPARES,FUSION,RS COMPONENTS LTD,5100340228,130.77
UNITED KINGDOM ATOMIC ENERGY AUTHORITY,UNITED KINGDOM ATOMIC ENERGY AUTHORITY,08/08/2016,MATERIALS & SPARES,FUSION,ACRONA ENGINEERING LTD,5100340229,697.92
UNITED KINGDOM ATOMIC ENERGY AUTHORITY,UNITED KINGDOM ATOMIC ENERGY AUTHORITY,08/08/2016,MATERIALS & SPARES,FUSION,ACRONA ENGINEERING LTD,5100340230,288.06
UNITED KINGDOM ATOMIC ENERGY AUTHORITY,UNITED KINGDOM ATOMIC ENERGY AUTHORITY,08/08/2016,MATERIALS & SPARES,FUSION,ACRONA ENGINEERING LTD,5100340232,4037.58
UNITED KINGDOM ATOMIC ENERGY AUTHORITY,UNITED KINGDOM ATOMIC ENERGY AUTHORITY,08/08/2016,MATERIALS & SPARES,FUSION,ACRONA ENGINEERING LTD,5100340233,460.92
UNITED KINGDOM ATOMIC ENERGY AUTHORITY,UNITED KINGDOM ATOMIC ENERGY AUTHORITY,08/08/2016,MATERIALS & SPARES,FUSION,RS COMPONENTS LTD,5100340234,83.98
UNITED KINGDOM ATOMIC ENERGY AUTHORITY,UNITED KINGDOM ATOMIC ENERGY AUTHORITY,08/08/2016,BOOKS & PUBLICATIONS,SUPPORT SERVICES,BRITISH STANDARDS INSTITUTION,5100340235,10435.8
UNITED KINGDOM ATOMIC ENERGY AUTHORITY,UNITED KINGDOM ATOMIC ENERGY AUTHORITY,08/08/2016,MATERIALS & SPARES,FUSION,RS COMPONENTS LTD,5100340244,19.42
UNITED KINGDOM ATOMIC ENERGY AUTHORITY,UNITED KINGDOM ATOMIC ENERGY AUTHORITY,08/08/2016,MATERIALS & SPARES,FUSION,NEWEY & EYRE LTD,5100340245,294.35
UNITED KINGDOM ATOMIC ENERGY AUTHORITY,UNITED KINGDOM ATOMIC ENERGY AUTHORITY,08/08/2016,PROFESSIONAL SERVICES,FUSION,BNS NUCLEAR SERVICES,5100340246,30389.55
UNITED KINGDOM ATOMIC ENERGY AUTHORITY,UNITED KINGDOM ATOMIC ENERGY AUTHORITY,08/08/2016,MATERIALS & SPARES,FUSION,RS COMPONENTS LTD,5100340247,5.07
UNITED KINGDOM ATOMIC ENERGY AUTHORITY,UNITED KINGDOM ATOMIC ENERGY AUTHORITY,08/08/2016,MATERIALS & SPARES,FUSION,RS COMPONENTS LTD,5100340250,72.88
UNITED KINGDOM ATOMIC ENERGY AUTHORITY,UNITED KINGDOM ATOMIC ENERGY AUTHORITY,08/08/2016,PROFESSIONAL SERVICES,FUSION,ALLIANZ ENGINEERING,5100340258,130
UNITED KINGDOM ATOMIC ENERGY AUTHORITY,UNITED KINGDOM ATOMIC ENERGY AUTHORITY,08/08/2016,PROFESSIONAL SERVICES,FUSION,ALLIANZ ENGINEERING,5100340259,130
UNITED KINGDOM ATOMIC ENERGY AUTHORITY,UNITED KINGDOM ATOMIC ENERGY AUTHORITY,08/08/2016,MATERIALS & SPARES,FUSION,FARNELL ELECTRONIC,5100340260,49.37
UNITED KINGDOM ATOMIC ENERGY AUTHORITY,UNITED KINGDOM ATOMIC ENERGY AUTHORITY,08/08/2016,MATERIALS & SPARES,FUSION,OERLIKON LEYBOLD VACUUM UK LTD,5100340262,207.63
UNITED KINGDOM ATOMIC ENERGY AUTHORITY,UNITED KINGDOM ATOMIC ENERGY AUTHORITY,08/08/2016,IT EQUIPMENT NON CAPITAL,FUSION,SCAN COMPUTERS INTERNATIONAL LTD,5100340272,1576.47
UNITED KINGDOM ATOMIC ENERGY AUTHORITY,UNITED KINGDOM ATOMIC ENERGY AUTHORITY,08/08/2016,BUILDING REPAIRS,FUSION,LORNE STEWART PLC,5100340273,56.88
UNITED KINGDOM ATOMIC ENERGY AUTHORITY,UNITED KINGDOM ATOMIC ENERGY AUTHORITY,08/08/2016,BUILDING REPAIRS,PROPERTY,LORNE STEWART PLC,5100340274,211.05
UNITED KINGDOM ATOMIC ENERGY AUTHORITY,UNITED KINGDOM ATOMIC ENERGY AUTHORITY,08/08/2016,BUILDING REPAIRS,FUSION,LORNE STEWART PLC,5100340276,97.62
UNITED KINGDOM ATOMIC ENERGY AUTHORITY,UNITED KINGDOM ATOMIC ENERGY AUTHORITY,08/08/2016,BUILDING REPAIRS,FUSION,LORNE STEWART PLC,5100340278,669.86
UNITED KINGDOM ATOMIC ENERGY AUTHORITY,UNITED KINGDOM ATOMIC ENERGY AUTHORITY,08/08/2016,BUILDING REPAIRS,PROPERTY,LORNE STEWART PLC,5100340279,3316.06
UNITED KINGDOM ATOMIC ENERGY AUTHORITY,UNITED KINGDOM ATOMIC ENERGY AUTHORITY,08/08/2016,STATIONERY,FUSION,LYRECO UK LIMITED,5100340280,166.56
UNITED KINGDOM ATOMIC ENERGY AUTHORITY,UNITED KINGDOM ATOMIC ENERGY AUTHORITY,08/08/2016,BUILDING REPAIRS,FUSION,LORNE STEWART PLC,5100340281,17638.33
UNITED KINGDOM ATOMIC ENERGY AUTHORITY,UNITED KINGDOM ATOMIC ENERGY AUTHORITY,08/08/2016,BUILDING REPAIRS,FUSION,LORNE STEWART PLC,5100340282,27.89
UNITED KINGDOM ATOMIC ENERGY AUTHORITY,UNITED KINGDOM ATOMIC ENERGY AUTHORITY,08/08/2016,BUILDING REPAIRS,PROPERTY,LORNE STEWART PLC,5100340283,2034.06
UNITED KINGDOM ATOMIC ENERGY AUTHORITY,UNITED KINGDOM ATOMIC ENERGY AUTHORITY,08/08/2016,BUILDING REPAIRS,PROPERTY,LORNE STEWART PLC,5100340284,13581.46
UNITED KINGDOM ATOMIC ENERGY AUTHORITY,UNITED KINGDOM ATOMIC ENERGY AUTHORITY,08/08/2016,MATERIALS & SPARES,FUSION,FARNELL ELECTRONIC,5100340286,193.53
UNITED KINGDOM ATOMIC ENERGY AUTHORITY,UNITED KINGDOM ATOMIC ENERGY AUTHORITY,08/08/2016,PLANT & EQUIPMENT,FUSION,ISLAND OPTICS LTD,5100340287,1415
UNITED KINGDOM ATOMIC ENERGY AUTHORITY,UNITED KINGDOM ATOMIC ENERGY AUTHORITY,08/08/2016,MATERIALS & SPARES,FUSION,FORWARD 2000 LTD,5100340301,62.14
UNITED KINGDOM ATOMIC ENERGY AUTHORITY,UNITED KINGDOM ATOMIC ENERGY AUTHORITY,08/08/2016,PROFESSIONAL SERVICES,SUPPORT SERVICES,JON SPIRO,5100340302,100
UNITED KINGDOM ATOMIC ENERGY AUTHORITY,UNITED KINGDOM ATOMIC ENERGY AUTHORITY,08/08/2016,PERSONAL PROTECTIVE EQUIPMENT,FUSION,ARCO LTD,5100340306,80.74
UNITED KINGDOM ATOMIC ENERGY AUTHORITY,UNITED KINGDOM ATOMIC ENERGY AUTHORITY,08/08/2016,PLANT & EQUIPMENT,FUSION,EDMUNDSON ELECTRICALS LTD,5100340308,96
UNITED KINGDOM ATOMIC ENERGY AUTHORITY,UNITED KINGDOM ATOMIC ENERGY AUTHORITY,08/08/2016,MATERIALS & SPARES,FUSION,FARNELL ELECTRONIC,5100340320,321.96
UNITED KINGDOM ATOMIC ENERGY AUTHORITY,UNITED KINGDOM ATOMIC ENERGY AUTHORITY,08/08/2016,MATERIALS & SPARES,FUSION,FARNELL ELECTRONIC,5100340321,42.23
UNITED KINGDOM ATOMIC ENERGY AUTHORITY,UNITED KINGDOM ATOMIC ENERGY AUTHORITY,08/08/2016,MATERIALS & SPARES,FUSION,FARNELL ELECTRONIC,5100340322,349.01
UNITED KINGDOM ATOMIC ENERGY AUTHORITY,UNITED KINGDOM ATOMIC ENERGY AUTHORITY,08/08/2016,MATERIALS & SPARES,FUSION,FARNELL ELECTRONIC,5100340325,315.67
UNITED KINGDOM ATOMIC ENERGY AUTHORITY,UNITED KINGDOM ATOMIC ENERGY AUTHORITY,08/08/2016,MATERIALS & SPARES,FUSION,CROMWELL LTD,5100340326,38.52
UNITED KINGDOM ATOMIC ENERGY AUTHORITY,UNITED KINGDOM ATOMIC ENERGY AUTHORITY,08/08/2016,PROFESSIONAL SERVICES,SUPPORT SERVICES,BDO LLP,5100340328,2955
UNITED KINGDOM ATOMIC ENERGY AUTHORITY,UNITED KINGDOM ATOMIC ENERGY AUTHORITY,08/08/2016,PROFESSIONAL SERVICES,FUSION,ZUNA WEB LIMITED,5100340341,4260
UNITED KINGDOM ATOMIC ENERGY AUTHORITY,UNITED KINGDOM ATOMIC ENERGY AUTHORITY,08/08/2016,PERSONAL PROTECTIVE EQUIPMENT,FUSION,ARCO LTD,5100340348,272.4
UNITED KINGDOM ATOMIC ENERGY AUTHORITY,UNITED KINGDOM ATOMIC ENERGY AUTHORITY,08/08/2016,PERSONAL PROTECTIVE EQUIPMENT,FUSION,ARCO LTD,5100340349,53.55
UNITED KINGDOM ATOMIC ENERGY AUTHORITY,UNITED KINGDOM ATOMIC ENERGY AUTHORITY,08/08/2016,PROFESSIONAL SERVICES,SUPPORT SERVICES,GOVERNMENT ACTUARY'S DEPARTMENT,5100340350,52436.37
UNITED KINGDOM ATOMIC ENERGY AUTHORITY,UNITED KINGDOM ATOMIC ENERGY AUTHORITY,08/08/2016,MATERIALS & SPARES,FUSION,OXFORD BOLTS & BEARINGS,5100340354,356.48
UNITED KINGDOM ATOMIC ENERGY AUTHORITY,UNITED KINGDOM ATOMIC ENERGY AUTHORITY,08/08/2016,MATERIALS & SPARES,FUSION,FORWARD 2000 LTD,5100340355,61.5
UNITED KINGDOM ATOMIC ENERGY AUTHORITY,UNITED KINGDOM ATOMIC ENERGY AUTHORITY,08/08/2016,PRINTING & GRAPHICS,FUSION,HUNTS,5100340365,297
UNITED KINGDOM ATOMIC ENERGY AUTHORITY,UNITED KINGDOM ATOMIC ENERGY AUTHORITY,09/08/2016,PLANT & EQUIPMENT,FUSION,BARRETTS STEEL ENERGY PRODUCTS LTD,1900061641,756
UNITED KINGDOM ATOMIC ENERGY AUTHORITY,UNITED KINGDOM ATOMIC ENERGY AUTHORITY,09/08/2016,CONFERENCES/MEETINGS,FUSION,VISITOR EXPENSES,1900061642,561.98
UNITED KINGDOM ATOMIC ENERGY AUTHORITY,UNITED KINGDOM ATOMIC ENERGY AUTHORITY,09/08/2016,BUILDING REPAIRS,PROPERTY,LORNE STEWART PLC,5100340269,76.88
UNITED KINGDOM ATOMIC ENERGY AUTHORITY,UNITED KINGDOM ATOMIC ENERGY AUTHORITY,09/08/2016,BUILDING REPAIRS,PROPERTY,LORNE STEWART PLC,5100340445,-76.88
UNITED KINGDOM ATOMIC ENERGY AUTHORITY,UNITED KINGDOM ATOMIC ENERGY AUTHORITY,10/08/2016,OTHER EXTERNAL COSTS,FUSION,VISITOR EXPENSES,1900061643,240
UNITED KINGDOM ATOMIC ENERGY AUTHORITY,UNITED KINGDOM ATOMIC ENERGY AUTHORITY,10/08/2016,CONFERENCES/MEETINGS,FUSION,VISITOR EXPENSES,1900061644,511.13
UNITED KINGDOM ATOMIC ENERGY AUTHORITY,UNITED KINGDOM ATOMIC ENERGY AUTHORITY,10/08/2016,CONFERENCES/MEETINGS,FUSION,VISITOR EXPENSES,1900061645,293.7
UNITED KINGDOM ATOMIC ENERGY AUTHORITY,UNITED KINGDOM ATOMIC ENERGY AUTHORITY,10/08/2016,CONFERENCES/MEETINGS,FUSION,VISITOR EXPENSES,1900061646,270.3
UNITED KINGDOM ATOMIC ENERGY AUTHORITY,UNITED KINGDOM ATOMIC ENERGY AUTHORITY,10/08/2016,CONFERENCES/MEETINGS,FUSION,VISITOR EXPENSES,1900061647,120
UNITED KINGDOM ATOMIC ENERGY AUTHORITY,UNITED KINGDOM ATOMIC ENERGY AUTHORITY,10/08/2016,CONFERENCES/MEETINGS,FUSION,VISITOR EXPENSES,1900061648,80
UNITED KINGDOM ATOMIC ENERGY AUTHORITY,UNITED KINGDOM ATOMIC ENERGY AUTHORITY,10/08/2016,CONFERENCES/MEETINGS,FUSION,VISITOR EXPENSES,1900061649,105
UNITED KINGDOM ATOMIC ENERGY AUTHORITY,UNITED KINGDOM ATOMIC ENERGY AUTHORITY,10/08/2016,REPAIRS & MAINTENANCE,FUSION,NIKON METROLOGY EUROPE NV,1900061650,1296
UNITED KINGDOM ATOMIC ENERGY AUTHORITY,UNITED KINGDOM ATOMIC ENERGY AUTHORITY,10/08/2016,COMPENSATION & LEGAL FEES,,NOVUM LAW,1900061652,9320.04
UNITED KINGDOM ATOMIC ENERGY AUTHORITY,UNITED KINGDOM ATOMIC ENERGY AUTHORITY,10/08/2016,RAW MATERIALS & CONSUMABLES,FUSION,FIBERSTAR DRUMS LIMITED,1900061653,108.6
UNITED KINGDOM ATOMIC ENERGY AUTHORITY,UNITED KINGDOM ATOMIC ENERGY AUTHORITY,10/08/2016,CONFERENCES/MEETINGS,FUSION,VISITOR EXPENSES,1900061654,80
UNITED KINGDOM ATOMIC ENERGY AUTHORITY,UNITED KINGDOM ATOMIC ENERGY AUTHORITY,10/08/2016,SECURITY & EMERGENCY,FUSION,TRINITY PROTETION SYSTEMS,5100338069,154.7
UNITED KINGDOM ATOMIC ENERGY AUTHORITY,UNITED KINGDOM ATOMIC ENERGY AUTHORITY,10/08/2016,SECURITY & EMERGENCY,PROPERTY,TRINITY PROTETION SYSTEMS,5100338070,107.67
UNITED KINGDOM ATOMIC ENERGY AUTHORITY,UNITED KINGDOM ATOMIC ENERGY AUTHORITY,10/08/2016,SECURITY & EMERGENCY,FUSION,TRINITY PROTETION SYSTEMS,5100338073,107.67
UNITED KINGDOM ATOMIC ENERGY AUTHORITY,UNITED KINGDOM ATOMIC ENERGY AUTHORITY,10/08/2016,TELECOMMUNICATIONS,SUPPORT SERVICES,CISCO SYSTEMS FINANCE INTERNATIONAL,5100338841,3306.13
UNITED KINGDOM ATOMIC ENERGY AUTHORITY,UNITED KINGDOM ATOMIC ENERGY AUTHORITY,10/08/2016,SECURITY & EMERGENCY,PROPERTY,TRINITY PROTETION SYSTEMS,5100338927,750
UNITED KINGDOM ATOMIC ENERGY AUTHORITY,UNITED KINGDOM ATOMIC ENERGY AUTHORITY,10/08/2016,MATERIALS & SPARES,FUSION,RS COMPONENTS LTD,5100339110,208.28
UNITED KINGDOM ATOMIC ENERGY AUTHORITY,UNITED KINGDOM ATOMIC ENERGY AUTHORITY,10/08/2016,MATERIALS & SPARES,FUSION,RS COMPONENTS LTD,5100339256,116.47
UNITED KINGDOM ATOMIC ENERGY AUTHORITY,UNITED KINGDOM ATOMIC ENERGY AUTHORITY,10/08/2016,F&F,PROPERTY,POSTURITE UK LTD,5100339546,49.96
UNITED KINGDOM ATOMIC ENERGY AUTHORITY,UNITED KINGDOM ATOMIC ENERGY AUTHORITY,10/08/2016,PROFESSIONAL SERVICES,FUSION,HYTEC ELECTRONICS LTD,5100339649,916
UNITED KINGDOM ATOMIC ENERGY AUTHORITY,UNITED KINGDOM ATOMIC ENERGY AUTHORITY,10/08/2016,MATERIALS & SPARES,FUSION,RS COMPONENTS LTD,5100339718,288.98
UNITED KINGDOM ATOMIC ENERGY AUTHORITY,UNITED KINGDOM ATOMIC ENERGY AUTHORITY,10/08/2016,UNIVERSITY PLACEMENT,FUSION,WARWICK UNIVERSITY,5100339795,1440.5
UNITED KINGDOM ATOMIC ENERGY AUTHORITY,UNITED KINGDOM ATOMIC ENERGY AUTHORITY,10/08/2016,TRAINING COURSE FEES,FUSION,OXFORD UNIVERSITY,5100339812,9100
UNITED KINGDOM ATOMIC ENERGY AUTHORITY,UNITED KINGDOM ATOMIC ENERGY AUTHORITY,10/08/2016,MATERIALS & SPARES,FUSION,LAMBERT ENGINEERING LTD,5100339824,826
UNITED KINGDOM ATOMIC ENERGY AUTHORITY,UNITED KINGDOM ATOMIC ENERGY AUTHORITY,10/08/2016,MATERIALS & SPARES,FUSION,RS COMPONENTS LTD,5100339863,70.45
UNITED KINGDOM ATOMIC ENERGY AUTHORITY,UNITED KINGDOM ATOMIC ENERGY AUTHORITY,10/08/2016,MATERIALS & SPARES,FUSION,RS COMPONENTS LTD,5100339970,16.91
UNITED KINGDOM ATOMIC ENERGY AUTHORITY,UNITED KINGDOM ATOMIC ENERGY AUTHORITY,10/08/2016,MATERIALS & SPARES,FUSION,AGILENT TECHNOLOGIES LDA UL LTD,5100339985,21408
UNITED KINGDOM ATOMIC ENERGY AUTHORITY,UNITED KINGDOM ATOMIC ENERGY AUTHORITY,10/08/2016,MATERIALS & SPARES,FUSION,FARNELL ELECTRONIC,5100340011,66.94
UNITED KINGDOM ATOMIC ENERGY AUTHORITY,UNITED KINGDOM ATOMIC ENERGY AUTHORITY,10/08/2016,MATERIALS & SPARES,FUSION,FARNELL ELECTRONIC,5100340012,4.96
UNITED KINGDOM ATOMIC ENERGY AUTHORITY,UNITED KINGDOM ATOMIC ENERGY AUTHORITY,10/08/2016,PLANT & EQUIPMENT,FUSION,LEMO UK LTD,5100340060,78.91
UNITED KINGDOM ATOMIC ENERGY AUTHORITY,UNITED KINGDOM ATOMIC ENERGY AUTHORITY,10/08/2016,MATERIALS & SPARES,FUSION,BOA FLEXIBLE SOLUTION,5100340071,17970.86
UNITED KINGDOM ATOMIC ENERGY AUTHORITY,UNITED KINGDOM ATOMIC ENERGY AUTHORITY,10/08/2016,ELECTRICITY,FUSION,NATIONAL GRID TRANSCO,5100340086,3704.24
UNITED KINGDOM ATOMIC ENERGY AUTHORITY,UNITED KINGDOM ATOMIC ENERGY AUTHORITY,10/08/2016,UNIVERSITY PLACEMENT,FUSION,UNIVERSITY OF YORK,5100340088,682.98
UNITED KINGDOM ATOMIC ENERGY AUTHORITY,UNITED KINGDOM ATOMIC ENERGY AUTHORITY,10/08/2016,PLANT SPARES,FUSION,A W CLARKE,5100340104,154.5
UNITED KINGDOM ATOMIC ENERGY AUTHORITY,UNITED KINGDOM ATOMIC ENERGY AUTHORITY,10/08/2016,PLANT & EQUIPMENT,FUSION,PROFESSIONALFABRICATION SERVICES LTD,5100340115,1215
UNITED KINGDOM ATOMIC ENERGY AUTHORITY,UNITED KINGDOM ATOMIC ENERGY AUTHORITY,10/08/2016,MATERIALS & SPARES,FUSION,AGILENT TECHNOLOGIES LDA UL LTD,5100340138,2450
UNITED KINGDOM ATOMIC ENERGY AUTHORITY,UNITED KINGDOM ATOMIC ENERGY AUTHORITY,10/08/2016,MATERIALS & SPARES,FUSION,HOVERDALE (UK) LTD,5100340145,1068
UNITED KINGDOM ATOMIC ENERGY AUTHORITY,UNITED KINGDOM ATOMIC ENERGY AUTHORITY,10/08/2016,MATERIALS & SPARES,FUSION,CASELLA CEL LTD,5100340146,1010
UNITED KINGDOM ATOMIC ENERGY AUTHORITY,UNITED KINGDOM ATOMIC ENERGY AUTHORITY,10/08/2016,UNIVERSITY PLACEMENT,FUSION,UNIVERSITY OF YORK,5100340149,2763.67
UNITED KINGDOM ATOMIC ENERGY AUTHORITY,UNITED KINGDOM ATOMIC ENERGY AUTHORITY,10/08/2016,BOOKS & PUBLICATIONS,FUSION,IOP PUBLISHING LTD - EUR,5100340159,750
UNITED KINGDOM ATOMIC ENERGY AUTHORITY,UNITED KINGDOM ATOMIC ENERGY AUTHORITY,10/08/2016,BOOKS & PUBLICATIONS,FUSION,IOP PUBLISHING LTD - EUR,5100340160,1687.49
UNITED KINGDOM ATOMIC ENERGY AUTHORITY,UNITED KINGDOM ATOMIC ENERGY AUTHORITY,10/08/2016,BOOKS & PUBLICATIONS,FUSION,IOP PUBLISHING LTD - EUR,5100340162,1031.25
UNITED KINGDOM ATOMIC ENERGY AUTHORITY,UNITED KINGDOM ATOMIC ENERGY AUTHORITY,10/08/2016,BOOKS & PUBLICATIONS,FUSION,IOP PUBLISHING LTD - EUR,5100340165,1699.99
UNITED KINGDOM ATOMIC ENERGY AUTHORITY,UNITED KINGDOM ATOMIC ENERGY AUTHORITY,10/08/2016,CONSUMABLES,FUSION,CYFAS SYSTEMS LTD,5100340166,3392
UNITED KINGDOM ATOMIC ENERGY AUTHORITY,UNITED KINGDOM ATOMIC ENERGY AUTHORITY,10/08/2016,MATERIALS & SPARES,FUSION,FARNELL ELECTRONIC,5100340172,190.61
UNITED KINGDOM ATOMIC ENERGY AUTHORITY,UNITED KINGDOM ATOMIC ENERGY AUTHORITY,10/08/2016,PLANT & EQUIPMENT,FUSION,MILLHILL TOOLS LTD,5100340199,20.96
UNITED KINGDOM ATOMIC ENERGY AUTHORITY,UNITED KINGDOM ATOMIC ENERGY AUTHORITY,10/08/2016,MATERIALS & SPARES,FUSION,OXFORD BOLTS & BEARINGS,5100340225,64.5
UNITED KINGDOM ATOMIC ENERGY AUTHORITY,UNITED KINGDOM ATOMIC ENERGY AUTHORITY,10/08/2016,MATERIALS & SPARES,FUSION,ACRONA ENGINEERING LTD,5100340231,1191.26
UNITED KINGDOM ATOMIC ENERGY AUTHORITY,UNITED KINGDOM ATOMIC ENERGY AUTHORITY,10/08/2016,REPAIRS & MAINTENANCE,FUSION,HEXAGON METROLOGY,5100340243,214.01
UNITED KINGDOM ATOMIC ENERGY AUTHORITY,UNITED KINGDOM ATOMIC ENERGY AUTHORITY,10/08/2016,MATERIALS & SPARES,FUSION,RS COMPONENTS LTD,5100340249,781.79
UNITED KINGDOM ATOMIC ENERGY AUTHORITY,UNITED KINGDOM ATOMIC ENERGY AUTHORITY,10/08/2016,UNIVERSITY PLACEMENT,FUSION,UNIVERSITY OF OXFORD,5100340253,4392.81
UNITED KINGDOM ATOMIC ENERGY AUTHORITY,UNITED KINGDOM ATOMIC ENERGY AUTHORITY,10/08/2016,UNIVERSITY PLACEMENT,FUSION,UNIVERSITY OF OXFORD,5100340257,4392.81
UNITED KINGDOM ATOMIC ENERGY AUTHORITY,UNITED KINGDOM ATOMIC ENERGY AUTHORITY,10/08/2016,ELECTRICITY,FUSION,E.ON (UK) LTD,5100340263,321093.67
UNITED KINGDOM ATOMIC ENERGY AUTHORITY,UNITED KINGDOM ATOMIC ENERGY AUTHORITY,10/08/2016,BUILDING REPAIRS,PROPERTY,LORNE STEWART PLC,5100340265,2436.85
UNITED KINGDOM ATOMIC ENERGY AUTHORITY,UNITED KINGDOM ATOMIC ENERGY AUTHORITY,10/08/2016,BUILDING REPAIRS,FUSION,LORNE STEWART PLC,5100340266,3250
UNITED KINGDOM ATOMIC ENERGY AUTHORITY,UNITED KINGDOM ATOMIC ENERGY AUTHORITY,10/08/2016,BUILDING REPAIRS,FUSION,LORNE STEWART PLC,5100340267,29430.56
UNITED KINGDOM ATOMIC ENERGY AUTHORITY,UNITED KINGDOM ATOMIC ENERGY AUTHORITY,10/08/2016,BUILDING REPAIRS,PROPERTY,LORNE STEWART PLC,5100340268,985.92
UNITED KINGDOM ATOMIC ENERGY AUTHORITY,UNITED KINGDOM ATOMIC ENERGY AUTHORITY,10/08/2016,BUILDING REPAIRS,PROPERTY,LORNE STEWART PLC,5100340271,18496.36
UNITED KINGDOM ATOMIC ENERGY AUTHORITY,UNITED KINGDOM ATOMIC ENERGY AUTHORITY,10/08/2016,MATERIALS & SPARES,FUSION,OXFORD BOLTS & BEARINGS,5100340353,11
UNITED KINGDOM ATOMIC ENERGY AUTHORITY,UNITED KINGDOM ATOMIC ENERGY AUTHORITY,10/08/2016,MATERIALS & SPARES,FUSION,RS COMPONENTS LTD,5100340366,-500.47
UNITED KINGDOM ATOMIC ENERGY AUTHORITY,UNITED KINGDOM ATOMIC ENERGY AUTHORITY,10/08/2016,PROFESSIONAL SERVICES,PROPERTY,KELLY LEAPR,5100340378,1251
UNITED KINGDOM ATOMIC ENERGY AUTHORITY,UNITED KINGDOM ATOMIC ENERGY AUTHORITY,10/08/2016,UNIVERSITY PLACEMENT,FUSION,UNIVERSITY OF OXFORD,5100340410,931.75
UNITED KINGDOM ATOMIC ENERGY AUTHORITY,UNITED KINGDOM ATOMIC ENERGY AUTHORITY,10/08/2016,LEGAL FEES,SUPPORT SERVICES,KEOGHS,5100340430,1365
UNITED KINGDOM ATOMIC ENERGY AUTHORITY,UNITED KINGDOM ATOMIC ENERGY AUTHORITY,10/08/2016,LEGAL FEES,SUPPORT SERVICES,KEOGHS,5100340431,567
UNITED KINGDOM ATOMIC ENERGY AUTHORITY,UNITED KINGDOM ATOMIC ENERGY AUTHORITY,10/08/2016,MATERIALS & SPARES,FUSION,RS COMPONENTS LTD,5100340449,-116.47
UNITED KINGDOM ATOMIC ENERGY AUTHORITY,UNITED KINGDOM ATOMIC ENERGY AUTHORITY,10/08/2016,MATERIALS & SPARES,FUSION,RS COMPONENTS LTD,5100340453,61.36
UNITED KINGDOM ATOMIC ENERGY AUTHORITY,UNITED KINGDOM ATOMIC ENERGY AUTHORITY,10/08/2016,SOFTWARE,PROPERTY,LIFTSHARE.COM,5100340475,3693.65
UNITED KINGDOM ATOMIC ENERGY AUTHORITY,UNITED KINGDOM ATOMIC ENERGY AUTHORITY,10/08/2016,MATERIALS & SPARES,FUSION,MPD EXHIBITION LTD,5100340476,1187.2
UNITED KINGDOM ATOMIC ENERGY AUTHORITY,UNITED KINGDOM ATOMIC ENERGY AUTHORITY,10/08/2016,SECURITY & EMERGENCY,FUSION,TRINITY PROTETION SYSTEMS,5100340500,-37.13
UNITED KINGDOM ATOMIC ENERGY AUTHORITY,UNITED KINGDOM ATOMIC ENERGY AUTHORITY,10/08/2016,SECURITY & EMERGENCY,PROPERTY,TRINITY PROTETION SYSTEMS,5100340503,-37.13
UNITED KINGDOM ATOMIC ENERGY AUTHORITY,UNITED KINGDOM ATOMIC ENERGY AUTHORITY,10/08/2016,SECURITY & EMERGENCY,FUSION,TRINITY PROTETION SYSTEMS,5100340505,-37.2
UNITED KINGDOM ATOMIC ENERGY AUTHORITY,UNITED KINGDOM ATOMIC ENERGY AUTHORITY,10/08/2016,F&F,PROPERTY,POSTURITE UK LTD,5100340532,-38.95
UNITED KINGDOM ATOMIC ENERGY AUTHORITY,UNITED KINGDOM ATOMIC ENERGY AUTHORITY,10/08/2016,LEGAL FEES,SUPPORT SERVICES,KEOGHS,5100340533,31.5
UNITED KINGDOM ATOMIC ENERGY AUTHORITY,UNITED KINGDOM ATOMIC ENERGY AUTHORITY,10/08/2016,LEGAL FEES,SUPPORT SERVICES,KEOGHS,5100340534,231
UNITED KINGDOM ATOMIC ENERGY AUTHORITY,UNITED KINGDOM ATOMIC ENERGY AUTHORITY,10/08/2016,MATERIALS & SPARES,FUSION,LASEROPTIK,5100340546,1275.4
UNITED KINGDOM ATOMIC ENERGY AUTHORITY,UNITED KINGDOM ATOMIC ENERGY AUTHORITY,10/08/2016,MATERIALS & SPARES,FUSION,THE VALVE AND ACTUATOR LTD,5100340555,1376
UNITED KINGDOM ATOMIC ENERGY AUTHORITY,UNITED KINGDOM ATOMIC ENERGY AUTHORITY,11/08/2016,MILEAGE ALLOWANCE,FUSION,EMPLOYEE EXPENSES,100816668,7.20
UNITED KINGDOM ATOMIC ENERGY AUTHORITY,UNITED KINGDOM ATOMIC ENERGY AUTHORITY,11/08/2016,ROAD TRAVEL,FUSION,EMPLOYEE EXPENSES,100816669,37.07
UNITED KINGDOM ATOMIC ENERGY AUTHORITY,UNITED KINGDOM ATOMIC ENERGY AUTHORITY,11/08/2016,ROAD TRAVEL,FUSION,EMPLOYEE EXPENSES,100816670,5.37
UNITED KINGDOM ATOMIC ENERGY AUTHORITY,UNITED KINGDOM ATOMIC ENERGY AUTHORITY,11/08/2016,SUBSISTENCE,FUSION,EMPLOYEE EXPENSES,100816670,22.83
UNITED KINGDOM ATOMIC ENERGY AUTHORITY,UNITED KINGDOM ATOMIC ENERGY AUTHORITY,11/08/2016,ROAD TRAVEL,FUSION,EMPLOYEE EXPENSES,100816671,30.00
UNITED KINGDOM ATOMIC ENERGY AUTHORITY,UNITED KINGDOM ATOMIC ENERGY AUTHORITY,11/08/2016,SUBSISTENCE,FUSION,EMPLOYEE EXPENSES,100816671,370.05
UNITED KINGDOM ATOMIC ENERGY AUTHORITY,UNITED KINGDOM ATOMIC ENERGY AUTHORITY,11/08/2016,SUBSISTENCE,FUSION,EMPLOYEE EXPENSES,100816672,660.60
UNITED KINGDOM ATOMIC ENERGY AUTHORITY,UNITED KINGDOM ATOMIC ENERGY AUTHORITY,11/08/2016,CAR HIRE,FUSION,EMPLOYEE EXPENSES,100816673,88.74
UNITED KINGDOM ATOMIC ENERGY AUTHORITY,UNITED KINGDOM ATOMIC ENERGY AUTHORITY,11/08/2016,SUBSISTENCE,FUSION,EMPLOYEE EXPENSES,100816673,163.80
UNITED KINGDOM ATOMIC ENERGY AUTHORITY,UNITED KINGDOM ATOMIC ENERGY AUTHORITY,11/08/2016,RAIL TRAVEL,FUSION,EMPLOYEE EXPENSES,100816674,15.98
UNITED KINGDOM ATOMIC ENERGY AUTHORITY,UNITED KINGDOM ATOMIC ENERGY AUTHORITY,11/08/2016,SUBSISTENCE,FUSION,EMPLOYEE EXPENSES,100816674,536.52
UNITED KINGDOM ATOMIC ENERGY AUTHORITY,UNITED KINGDOM ATOMIC ENERGY AUTHORITY,11/08/2016,RAIL TRAVEL,FUSION,EMPLOYEE EXPENSES,100816675,105.03
UNITED KINGDOM ATOMIC ENERGY AUTHORITY,UNITED KINGDOM ATOMIC ENERGY AUTHORITY,11/08/2016,SUBSISTENCE,FUSION,EMPLOYEE EXPENSES,100816675,"2,176.03"
UNITED KINGDOM ATOMIC ENERGY AUTHORITY,UNITED KINGDOM ATOMIC ENERGY AUTHORITY,11/08/2016,SUBSISTENCE,SUPPORT SERVICES,EMPLOYEE EXPENSES,100816676,4.08
UNITED KINGDOM ATOMIC ENERGY AUTHORITY,UNITED KINGDOM ATOMIC ENERGY AUTHORITY,11/08/2016,ROAD TRAVEL,SUPPORT SERVICES,EMPLOYEE EXPENSES,100816676,6.17
UNITED KINGDOM ATOMIC ENERGY AUTHORITY,UNITED KINGDOM ATOMIC ENERGY AUTHORITY,11/08/2016,RAIL TRAVEL,SUPPORT SERVICES,EMPLOYEE EXPENSES,100816676,29.40
UNITED KINGDOM ATOMIC ENERGY AUTHORITY,UNITED KINGDOM ATOMIC ENERGY AUTHORITY,11/08/2016,SUBSISTENCE,SUPPORT SERVICES,EMPLOYEE EXPENSES,100816677,4.49
UNITED KINGDOM ATOMIC ENERGY AUTHORITY,UNITED KINGDOM ATOMIC ENERGY AUTHORITY,11/08/2016,SUBSISTENCE,SUPPORT SERVICES,EMPLOYEE EXPENSES,100816677,5.00
UNITED KINGDOM ATOMIC ENERGY AUTHORITY,UNITED KINGDOM ATOMIC ENERGY AUTHORITY,11/08/2016,ROAD TRAVEL,SUPPORT SERVICES,EMPLOYEE EXPENSES,100816677,9.92
UNITED KINGDOM ATOMIC ENERGY AUTHORITY,UNITED KINGDOM ATOMIC ENERGY AUTHORITY,11/08/2016,RAIL TRAVEL,FUSION,EMPLOYEE EXPENSES,100816678,93.85
UNITED KINGDOM ATOMIC ENERGY AUTHORITY,UNITED KINGDOM ATOMIC ENERGY AUTHORITY,11/08/2016,SUBSISTENCE,FUSION,EMPLOYEE EXPENSES,100816678,"1,699.71"
UNITED KINGDOM ATOMIC ENERGY AUTHORITY,UNITED KINGDOM ATOMIC ENERGY AUTHORITY,11/08/2016,OTHER EMPLOYEE EXPENSES,FUSION,EMPLOYEE EXPENSES,100816679,"1,140.60"
UNITED KINGDOM ATOMIC ENERGY AUTHORITY,UNITED KINGDOM ATOMIC ENERGY AUTHORITY,11/08/2016,PROFESSIONAL SUBSCRIPTION,FUSION,EMPLOYEE EXPENSES,100816680,55.00
UNITED KINGDOM ATOMIC ENERGY AUTHORITY,UNITED KINGDOM ATOMIC ENERGY AUTHORITY,11/08/2016,RAIL TRAVEL,FUSION,EMPLOYEE EXPENSES,100816681,29.50
UNITED KINGDOM ATOMIC ENERGY AUTHORITY,UNITED KINGDOM ATOMIC ENERGY AUTHORITY,11/08/2016,TRAINING COURSE FEES,FUSION,EMPLOYEE EXPENSES,100816681,47.80
UNITED KINGDOM ATOMIC ENERGY AUTHORITY,UNITED KINGDOM ATOMIC ENERGY AUTHORITY,11/08/2016,PROFESSIONAL SUBSCRIPTION,FUSION,EMPLOYEE EXPENSES,100816681,205.00
UNITED KINGDOM ATOMIC ENERGY AUTHORITY,UNITED KINGDOM ATOMIC ENERGY AUTHORITY,11/08/2016,ROAD TRAVEL,FUSION,EMPLOYEE EXPENSES,100816682,5.50
UNITED KINGDOM ATOMIC ENERGY AUTHORITY,UNITED KINGDOM ATOMIC ENERGY AUTHORITY,11/08/2016,MILEAGE ALLOWANCE,FUSION,EMPLOYEE EXPENSES,100816682,41.40
UNITED KINGDOM ATOMIC ENERGY AUTHORITY,UNITED KINGDOM ATOMIC ENERGY AUTHORITY,11/08/2016,MILEAGE ALLOWANCE,FUSION,EMPLOYEE EXPENSES,100816683,27.90
UNITED KINGDOM ATOMIC ENERGY AUTHORITY,UNITED KINGDOM ATOMIC ENERGY AUTHORITY,11/08/2016,ROAD TRAVEL,FUSION,EMPLOYEE EXPENSES,100816683,37.40
UNITED KINGDOM ATOMIC ENERGY AUTHORITY,UNITED KINGDOM ATOMIC ENERGY AUTHORITY,11/08/2016,SUBSISTENCE,FUSION,EMPLOYEE EXPENSES,100816684,9.33
UNITED KINGDOM ATOMIC ENERGY AUTHORITY,UNITED KINGDOM ATOMIC ENERGY AUTHORITY,11/08/2016,ROAD TRAVEL,FUSION,EMPLOYEE EXPENSES,100816684,15.62
UNITED KINGDOM ATOMIC ENERGY AUTHORITY,UNITED KINGDOM ATOMIC ENERGY AUTHORITY,11/08/2016,RAIL TRAVEL,FUSION,EMPLOYEE EXPENSES,100816685,35.09
UNITED KINGDOM ATOMIC ENERGY AUTHORITY,UNITED KINGDOM ATOMIC ENERGY AUTHORITY,11/08/2016,SUBSISTENCE,FUSION,EMPLOYEE EXPENSES,100816685,153.94
UNITED KINGDOM ATOMIC ENERGY AUTHORITY,UNITED KINGDOM ATOMIC ENERGY AUTHORITY,11/08/2016,SUBSISTENCE,FUSION,EMPLOYEE EXPENSES,100816686,6.74
UNITED KINGDOM ATOMIC ENERGY AUTHORITY,UNITED KINGDOM ATOMIC ENERGY AUTHORITY,11/08/2016,TAXIS,FUSION,EMPLOYEE EXPENSES,100816686,42.11
UNITED KINGDOM ATOMIC ENERGY AUTHORITY,UNITED KINGDOM ATOMIC ENERGY AUTHORITY,11/08/2016,CHARITABLE DONATIONS,SUPPORT SERVICES,WATERAID,1900061655,50
UNITED KINGDOM ATOMIC ENERGY AUTHORITY,UNITED KINGDOM ATOMIC ENERGY AUTHORITY,11/08/2016,CHARITABLE DONATIONS,SUPPORT SERVICES,MND ASSOCIATION,1900061656,50
UNITED KINGDOM ATOMIC ENERGY AUTHORITY,UNITED KINGDOM ATOMIC ENERGY AUTHORITY,11/08/2016,CHARITABLE DONATIONS,SUPPORT SERVICES,SOBELL HOUSE HOSPICE CHARITY LTD,1900061657,50
UNITED KINGDOM ATOMIC ENERGY AUTHORITY,UNITED KINGDOM ATOMIC ENERGY AUTHORITY,11/08/2016,CHARITABLE DONATIONS,SUPPORT SERVICES,GUIDE DOGS ,1900061658,50
UNITED KINGDOM ATOMIC ENERGY AUTHORITY,UNITED KINGDOM ATOMIC ENERGY AUTHORITY,11/08/2016,CHARITABLE DONATIONS,SUPPORT SERVICES,CHERNOBYL CHILDREN'S LIFELINE,1900061660,50
UNITED KINGDOM ATOMIC ENERGY AUTHORITY,UNITED KINGDOM ATOMIC ENERGY AUTHORITY,11/08/2016,CHARITABLE DONATIONS,SUPPORT SERVICES,REFUGEE COUNCIL,1900061661,50
UNITED KINGDOM ATOMIC ENERGY AUTHORITY,UNITED KINGDOM ATOMIC ENERGY AUTHORITY,12/08/2016,PLANT & EQUIPMENT,FUSION,MAJESTIC TRANSFORMER CO,1900061662,927.6
UNITED KINGDOM ATOMIC ENERGY AUTHORITY,UNITED KINGDOM ATOMIC ENERGY AUTHORITY,12/08/2016,SUBSISTENCE,FUSION,VISITOR EXPENSES,1900061663,215.45
UNITED KINGDOM ATOMIC ENERGY AUTHORITY,UNITED KINGDOM ATOMIC ENERGY AUTHORITY,15/08/2016,CATERING,PROPERTY,ELIOR UK PLC,1700001734,-1860.82
UNITED KINGDOM ATOMIC ENERGY AUTHORITY,UNITED KINGDOM ATOMIC ENERGY AUTHORITY,15/08/2016,CATERING,PROPERTY,ELIOR UK PLC,1700001736,-2835.62
UNITED KINGDOM ATOMIC ENERGY AUTHORITY,UNITED KINGDOM ATOMIC ENERGY AUTHORITY,15/08/2016,,,SPECIALIST LIABILITY SERVICES LTD ELECTRA,1900061639,3450
UNITED KINGDOM ATOMIC ENERGY AUTHORITY,UNITED KINGDOM ATOMIC ENERGY AUTHORITY,15/08/2016,PROFESSIONAL SERVICES,FUSION,ONE FIX RECRUITMENT,5100337734,525
UNITED KINGDOM ATOMIC ENERGY AUTHORITY,UNITED KINGDOM ATOMIC ENERGY AUTHORITY,15/08/2016,CATERING,PROPERTY,AVENANCE PLC,5100338589,185.01
UNITED KINGDOM ATOMIC ENERGY AUTHORITY,UNITED KINGDOM ATOMIC ENERGY AUTHORITY,15/08/2016,PLANT SPARES,FUSION,MACHER DISTRIBUTION LTD,5100338986,6150
UNITED KINGDOM ATOMIC ENERGY AUTHORITY,UNITED KINGDOM ATOMIC ENERGY AUTHORITY,15/08/2016,MATERIALS & SPARES,FUSION,UNDERWOODS ELECTRICAL DISTRIBUTORS,5100339171,518
UNITED KINGDOM ATOMIC ENERGY AUTHORITY,UNITED KINGDOM ATOMIC ENERGY AUTHORITY,15/08/2016,CATERING,PROPERTY,AVENANCE PLC,5100339336,509.42
UNITED KINGDOM ATOMIC ENERGY AUTHORITY,UNITED KINGDOM ATOMIC ENERGY AUTHORITY,15/08/2016,IT EQUIPMENT NON CAPITAL,FUSION,PROBRAND LIMITED,5100339520,2334.15
UNITED KINGDOM ATOMIC ENERGY AUTHORITY,UNITED KINGDOM ATOMIC ENERGY AUTHORITY,15/08/2016,CATERING,PROPERTY,AVENANCE PLC,5100339577,1481.67
UNITED KINGDOM ATOMIC ENERGY AUTHORITY,UNITED KINGDOM ATOMIC ENERGY AUTHORITY,15/08/2016,CATERING,FUSION,AVENANCE PLC,5100339579,622.88
UNITED KINGDOM ATOMIC ENERGY AUTHORITY,UNITED KINGDOM ATOMIC ENERGY AUTHORITY,15/08/2016,CATERING,PROPERTY,AVENANCE PLC,5100339580,575.87
UNITED KINGDOM ATOMIC ENERGY AUTHORITY,UNITED KINGDOM ATOMIC ENERGY AUTHORITY,15/08/2016,CATERING,FUSION,AVENANCE PLC,5100339582,465.98
UNITED KINGDOM ATOMIC ENERGY AUTHORITY,UNITED KINGDOM ATOMIC ENERGY AUTHORITY,15/08/2016,MATERIALS & SPARES,FUSION,SM SYSTEM UK LTD,5100339595,1866
UNITED KINGDOM ATOMIC ENERGY AUTHORITY,UNITED KINGDOM ATOMIC ENERGY AUTHORITY,15/08/2016,PLANT & EQUIPMENT,FUSION,ISLAND OPTICS LTD,5100339632,1070
UNITED KINGDOM ATOMIC ENERGY AUTHORITY,UNITED KINGDOM ATOMIC ENERGY AUTHORITY,15/08/2016,PLANT & EQUIPMENT,FUSION,ISLAND OPTICS LTD,5100339633,1065
UNITED KINGDOM ATOMIC ENERGY AUTHORITY,UNITED KINGDOM ATOMIC ENERGY AUTHORITY,15/08/2016,PLANT & EQUIPMENT,FUSION,EDWARDS LIMITED,5100339661,2230.37
UNITED KINGDOM ATOMIC ENERGY AUTHORITY,UNITED KINGDOM ATOMIC ENERGY AUTHORITY,15/08/2016,PROFESSIONAL SERVICES,FUSION,SWAGELOK LONDON,5100339665,65.71
UNITED KINGDOM ATOMIC ENERGY AUTHORITY,UNITED KINGDOM ATOMIC ENERGY AUTHORITY,15/08/2016,CONSUMABLES,FUSION,MACHOWIE TRANSPORT LTD,5100339666,750
UNITED KINGDOM ATOMIC ENERGY AUTHORITY,UNITED KINGDOM ATOMIC ENERGY AUTHORITY,15/08/2016,GASES,FUSION,BOC LTD,5100339677,52
UNITED KINGDOM ATOMIC ENERGY AUTHORITY,UNITED KINGDOM ATOMIC ENERGY AUTHORITY,15/08/2016,GASES,FUSION,BOC LTD,5100339694,88.1
UNITED KINGDOM ATOMIC ENERGY AUTHORITY,UNITED KINGDOM ATOMIC ENERGY AUTHORITY,15/08/2016,MATERIALS & SPARES,FUSION,FARNELL ELECTRONIC,5100339758,69.19
UNITED KINGDOM ATOMIC ENERGY AUTHORITY,UNITED KINGDOM ATOMIC ENERGY AUTHORITY,15/08/2016,MATERIALS & SPARES,FUSION,PIPELINE PEOPLE.COM,5100339851,24.35
UNITED KINGDOM ATOMIC ENERGY AUTHORITY,UNITED KINGDOM ATOMIC ENERGY AUTHORITY,15/08/2016,MATERIALS & SPARES,FUSION,FORWARD 2000 LTD,5100339853,139.5
UNITED KINGDOM ATOMIC ENERGY AUTHORITY,UNITED KINGDOM ATOMIC ENERGY AUTHORITY,15/08/2016,PLANT & EQUIPMENT,FUSION,SM GAUGE COMPANY LIMITED,5100339877,261
UNITED KINGDOM ATOMIC ENERGY AUTHORITY,UNITED KINGDOM ATOMIC ENERGY AUTHORITY,15/08/2016,PLANT & EQUIPMENT,FUSION,LC AUTOMATION LTD,5100339878,1937.8
UNITED KINGDOM ATOMIC ENERGY AUTHORITY,UNITED KINGDOM ATOMIC ENERGY AUTHORITY,15/08/2016,PLANT & EQUIPMENT,FUSION,PULSE POWER AND MEASUREMENT LTD,5100339880,1087
UNITED KINGDOM ATOMIC ENERGY AUTHORITY,UNITED KINGDOM ATOMIC ENERGY AUTHORITY,15/08/2016,MATERIALS & SPARES,FUSION,OXFORD BOLTS & BEARINGS,5100339891,129.8
UNITED KINGDOM ATOMIC ENERGY AUTHORITY,UNITED KINGDOM ATOMIC ENERGY AUTHORITY,15/08/2016,MATERIALS & SPARES,FUSION,RS COMPONENTS LTD,5100339893,475.32
UNITED KINGDOM ATOMIC ENERGY AUTHORITY,UNITED KINGDOM ATOMIC ENERGY AUTHORITY,15/08/2016,MATERIALS & SPARES,FUSION,RS COMPONENTS LTD,5100339897,400.25
UNITED KINGDOM ATOMIC ENERGY AUTHORITY,UNITED KINGDOM ATOMIC ENERGY AUTHORITY,15/08/2016,MATERIALS & SPARES,FUSION,RS COMPONENTS LTD,5100339903,549.36
UNITED KINGDOM ATOMIC ENERGY AUTHORITY,UNITED KINGDOM ATOMIC ENERGY AUTHORITY,15/08/2016,PLANT & EQUIPMENT,FUSION,DATA TRACK PROCESS INSTRUMENTS LIM,5100339933,715
UNITED KINGDOM ATOMIC ENERGY AUTHORITY,UNITED KINGDOM ATOMIC ENERGY AUTHORITY,15/08/2016,MATERIALS & SPARES,FUSION,INDUSTRIAL TECHNICAL LTD,5100339945,162.7
UNITED KINGDOM ATOMIC ENERGY AUTHORITY,UNITED KINGDOM ATOMIC ENERGY AUTHORITY,15/08/2016,MATERIALS & SPARES,FUSION,INDUSTRIAL TECHNICAL LTD,5100339946,140.4
UNITED KINGDOM ATOMIC ENERGY AUTHORITY,UNITED KINGDOM ATOMIC ENERGY AUTHORITY,15/08/2016,MATERIALS & SPARES,FUSION,FARNELL ELECTRONIC,5100339947,68.56
UNITED KINGDOM ATOMIC ENERGY AUTHORITY,UNITED KINGDOM ATOMIC ENERGY AUTHORITY,15/08/2016,GASES,FUSION,BOC LTD,5100339961,414.6
UNITED KINGDOM ATOMIC ENERGY AUTHORITY,UNITED KINGDOM ATOMIC ENERGY AUTHORITY,15/08/2016,MATERIALS & SPARES,FUSION,RS COMPONENTS LTD,5100339975,114.76
UNITED KINGDOM ATOMIC ENERGY AUTHORITY,UNITED KINGDOM ATOMIC ENERGY AUTHORITY,15/08/2016,MATERIALS & SPARES,FUSION,RS COMPONENTS LTD,5100339986,110.14
UNITED KINGDOM ATOMIC ENERGY AUTHORITY,UNITED KINGDOM ATOMIC ENERGY AUTHORITY,15/08/2016,PROFESSIONAL SERVICES,FUSION,QUEENS UNIVERSITY BELFAST,5100339997,23133.22
UNITED KINGDOM ATOMIC ENERGY AUTHORITY,UNITED KINGDOM ATOMIC ENERGY AUTHORITY,15/08/2016,MATERIALS & SPARES,FUSION,FARNELL ELECTRONIC,5100340014,328.75
UNITED KINGDOM ATOMIC ENERGY AUTHORITY,UNITED KINGDOM ATOMIC ENERGY AUTHORITY,15/08/2016,MATERIALS & SPARES,FUSION,OXFORD BOLTS & BEARINGS,5100340049,116.31
UNITED KINGDOM ATOMIC ENERGY AUTHORITY,UNITED KINGDOM ATOMIC ENERGY AUTHORITY,15/08/2016,MATERIALS & SPARES,FUSION,ANIXTER (UK) LTD,5100340059,1004.4
UNITED KINGDOM ATOMIC ENERGY AUTHORITY,UNITED KINGDOM ATOMIC ENERGY AUTHORITY,15/08/2016,MATERIALS & SPARES,FUSION,SCREWFIX DIRECT LTD,5100340066,33.74
UNITED KINGDOM ATOMIC ENERGY AUTHORITY,UNITED KINGDOM ATOMIC ENERGY AUTHORITY,15/08/2016,MATERIALS & SPARES,FUSION,NEWEY & EYRE LTD,5100340070,27.79
UNITED KINGDOM ATOMIC ENERGY AUTHORITY,UNITED KINGDOM ATOMIC ENERGY AUTHORITY,15/08/2016,MATERIALS & SPARES,FUSION,NEWEY & EYRE LTD,5100340074,426.43
UNITED KINGDOM ATOMIC ENERGY AUTHORITY,UNITED KINGDOM ATOMIC ENERGY AUTHORITY,15/08/2016,IT EQUIPMENT NON CAPITAL,FUSION,PROBRAND LIMITED,5100340080,439.95
UNITED KINGDOM ATOMIC ENERGY AUTHORITY,UNITED KINGDOM ATOMIC ENERGY AUTHORITY,15/08/2016,STATIONERY,FUSION,HOBS REPROGRAPHICS PLC,5100340100,78.72
UNITED KINGDOM ATOMIC ENERGY AUTHORITY,UNITED KINGDOM ATOMIC ENERGY AUTHORITY,15/08/2016,STATIONERY,FUSION,HOBS REPROGRAPHICS PLC,5100340102,569
UNITED KINGDOM ATOMIC ENERGY AUTHORITY,UNITED KINGDOM ATOMIC ENERGY AUTHORITY,15/08/2016,MATERIALS & SPARES,FUSION,R&M ELECTRICAL GROUP LTD,5100340105,9
UNITED KINGDOM ATOMIC ENERGY AUTHORITY,UNITED KINGDOM ATOMIC ENERGY AUTHORITY,15/08/2016,MATERIALS & SPARES,FUSION,R&M ELECTRICAL GROUP LTD,5100340106,10.5
UNITED KINGDOM ATOMIC ENERGY AUTHORITY,UNITED KINGDOM ATOMIC ENERGY AUTHORITY,15/08/2016,PLANT & EQUIPMENT,FUSION,INSIGHT DIRECT LTD,5100340114,65.05
UNITED KINGDOM ATOMIC ENERGY AUTHORITY,UNITED KINGDOM ATOMIC ENERGY AUTHORITY,15/08/2016,MATERIALS & SPARES,FUSION,ADHECTIC LIMITED,5100340126,116.12
UNITED KINGDOM ATOMIC ENERGY AUTHORITY,UNITED KINGDOM ATOMIC ENERGY AUTHORITY,15/08/2016,PROFESSIONAL SERVICES,FUSION,ONE FIX RECRUITMENT,5100340128,725
UNITED KINGDOM ATOMIC ENERGY AUTHORITY,UNITED KINGDOM ATOMIC ENERGY AUTHORITY,15/08/2016,MATERIALS & SPARES,FUSION,ANIXTER (UK) LTD,5100340136,838.8
UNITED KINGDOM ATOMIC ENERGY AUTHORITY,UNITED KINGDOM ATOMIC ENERGY AUTHORITY,15/08/2016,MATERIALS & SPARES,FUSION,SM SYSTEM UK LTD,5100340155,-749
UNITED KINGDOM ATOMIC ENERGY AUTHORITY,UNITED KINGDOM ATOMIC ENERGY AUTHORITY,15/08/2016,PROFESSIONAL SERVICES,SUPPORT SERVICES,CSC COMPUTER SERVICES,5100340168,32715.81
UNITED KINGDOM ATOMIC ENERGY AUTHORITY,UNITED KINGDOM ATOMIC ENERGY AUTHORITY,15/08/2016,MATERIALS & SPARES,FUSION,FARNELL ELECTRONIC,5100340171,61.93
UNITED KINGDOM ATOMIC ENERGY AUTHORITY,UNITED KINGDOM ATOMIC ENERGY AUTHORITY,15/08/2016,MATERIALS & SPARES,FUSION,RS COMPONENTS LTD,5100340188,55.07
UNITED KINGDOM ATOMIC ENERGY AUTHORITY,UNITED KINGDOM ATOMIC ENERGY AUTHORITY,15/08/2016,MATERIALS & SPARES,FUSION,INDUSTRIAL TECHNICAL LTD,5100340208,83.73
UNITED KINGDOM ATOMIC ENERGY AUTHORITY,UNITED KINGDOM ATOMIC ENERGY AUTHORITY,15/08/2016,MATERIALS & SPARES,FUSION,INDUSTRIAL TECHNICAL LTD,5100340210,30
UNITED KINGDOM ATOMIC ENERGY AUTHORITY,UNITED KINGDOM ATOMIC ENERGY AUTHORITY,15/08/2016,MATERIALS & SPARES,FUSION,INDUSTRIAL TECHNICAL LTD,5100340224,138.9
UNITED KINGDOM ATOMIC ENERGY AUTHORITY,UNITED KINGDOM ATOMIC ENERGY AUTHORITY,15/08/2016,PLANT & EQUIPMENT,FUSION,FISHER SCIENTIFIC UK LTD,5100340236,3494.99
UNITED KINGDOM ATOMIC ENERGY AUTHORITY,UNITED KINGDOM ATOMIC ENERGY AUTHORITY,15/08/2016,PLANT & EQUIPMENT,FUSION,FISHER SCIENTIFIC UK LTD,5100340238,785.7
UNITED KINGDOM ATOMIC ENERGY AUTHORITY,UNITED KINGDOM ATOMIC ENERGY AUTHORITY,15/08/2016,STATIONERY,FUSION,PREMIER PAPER GROUP LTD,5100340239,83.53
UNITED KINGDOM ATOMIC ENERGY AUTHORITY,UNITED KINGDOM ATOMIC ENERGY AUTHORITY,15/08/2016,MATERIALS & SPARES,FUSION,R&M ELECTRICAL GROUP LTD,5100340242,79.6
UNITED KINGDOM ATOMIC ENERGY AUTHORITY,UNITED KINGDOM ATOMIC ENERGY AUTHORITY,15/08/2016,MATERIALS & SPARES,FUSION,RS COMPONENTS LTD,5100340251,171.81
UNITED KINGDOM ATOMIC ENERGY AUTHORITY,UNITED KINGDOM ATOMIC ENERGY AUTHORITY,15/08/2016,PROFESSIONAL SERVICES,FUSION,HYTEC ELECTRONICS LTD,5100340285,916
UNITED KINGDOM ATOMIC ENERGY AUTHORITY,UNITED KINGDOM ATOMIC ENERGY AUTHORITY,15/08/2016,PROFESSIONAL SERVICES,PROPERTY,GERALD HONEY PARTNERSHIP,5100340288,3344
UNITED KINGDOM ATOMIC ENERGY AUTHORITY,UNITED KINGDOM ATOMIC ENERGY AUTHORITY,15/08/2016,PROFESSIONAL SERVICES,PROPERTY,GERALD HONEY PARTNERSHIP,5100340289,3344
UNITED KINGDOM ATOMIC ENERGY AUTHORITY,UNITED KINGDOM ATOMIC ENERGY AUTHORITY,15/08/2016,MATERIALS & SPARES,FUSION,R&M ELECTRICAL GROUP LTD,5100340303,24.41
UNITED KINGDOM ATOMIC ENERGY AUTHORITY,UNITED KINGDOM ATOMIC ENERGY AUTHORITY,15/08/2016,PROFESSIONAL SERVICES,FUSION,ONE FIX RECRUITMENT,5100340309,600
UNITED KINGDOM ATOMIC ENERGY AUTHORITY,UNITED KINGDOM ATOMIC ENERGY AUTHORITY,15/08/2016,PLANT & EQUIPMENT,FUSION,INSIGHT DIRECT LTD,5100340313,-57.99
UNITED KINGDOM ATOMIC ENERGY AUTHORITY,UNITED KINGDOM ATOMIC ENERGY AUTHORITY,15/08/2016,MATERIALS & SPARES,FUSION,UNDERWOODS ELECTRICAL DISTRIBUTORS,5100340314,-527.75
UNITED KINGDOM ATOMIC ENERGY AUTHORITY,UNITED KINGDOM ATOMIC ENERGY AUTHORITY,15/08/2016,PLANT & EQUIPMENT,FUSION,MF HYDRAULICS LTD,5100340317,3337
UNITED KINGDOM ATOMIC ENERGY AUTHORITY,UNITED KINGDOM ATOMIC ENERGY AUTHORITY,15/08/2016,MATERIALS & SPARES,FUSION,EDMUND OPTICS LTD,5100340318,138.4
UNITED KINGDOM ATOMIC ENERGY AUTHORITY,UNITED KINGDOM ATOMIC ENERGY AUTHORITY,15/08/2016,PROFESSIONAL SERVICES,PROPERTY,SCIENTIFICS LTD,5100340329,840
UNITED KINGDOM ATOMIC ENERGY AUTHORITY,UNITED KINGDOM ATOMIC ENERGY AUTHORITY,15/08/2016,GASES,FUSION,BOC LTD,5100340330,57.65
UNITED KINGDOM ATOMIC ENERGY AUTHORITY,UNITED KINGDOM ATOMIC ENERGY AUTHORITY,15/08/2016,GASES,FUSION,BOC LTD,5100340332,368.75
UNITED KINGDOM ATOMIC ENERGY AUTHORITY,UNITED KINGDOM ATOMIC ENERGY AUTHORITY,15/08/2016,GASES,FUSION,BOC LTD,5100340334,447.18
UNITED KINGDOM ATOMIC ENERGY AUTHORITY,UNITED KINGDOM ATOMIC ENERGY AUTHORITY,15/08/2016,GASES,FUSION,BOC LTD,5100340336,45
UNITED KINGDOM ATOMIC ENERGY AUTHORITY,UNITED KINGDOM ATOMIC ENERGY AUTHORITY,15/08/2016,GASES,FUSION,BOC LTD,5100340338,233.11
UNITED KINGDOM ATOMIC ENERGY AUTHORITY,UNITED KINGDOM ATOMIC ENERGY AUTHORITY,15/08/2016,GASES,FUSION,BOC LTD,5100340339,49.5
UNITED KINGDOM ATOMIC ENERGY AUTHORITY,UNITED KINGDOM ATOMIC ENERGY AUTHORITY,15/08/2016,PLANT & EQUIPMENT,FUSION,NOR-CAL UK LTD,5100340340,1981.67
UNITED KINGDOM ATOMIC ENERGY AUTHORITY,UNITED KINGDOM ATOMIC ENERGY AUTHORITY,15/08/2016,PLANT & EQUIPMENT,FUSION,NOR-CAL UK LTD,5100340342,5165.95
UNITED KINGDOM ATOMIC ENERGY AUTHORITY,UNITED KINGDOM ATOMIC ENERGY AUTHORITY,15/08/2016,GASES,FUSION,BOC LTD,5100340343,43
UNITED KINGDOM ATOMIC ENERGY AUTHORITY,UNITED KINGDOM ATOMIC ENERGY AUTHORITY,15/08/2016,GASES,FUSION,BOC LTD,5100340345,287
UNITED KINGDOM ATOMIC ENERGY AUTHORITY,UNITED KINGDOM ATOMIC ENERGY AUTHORITY,15/08/2016,PERSONAL PROTECTIVE EQUIPMENT,FUSION,ARCO LTD,5100340346,387.8
UNITED KINGDOM ATOMIC ENERGY AUTHORITY,UNITED KINGDOM ATOMIC ENERGY AUTHORITY,15/08/2016,CLEANING,FUSION,HYDROBLAST,5100340352,253
UNITED KINGDOM ATOMIC ENERGY AUTHORITY,UNITED KINGDOM ATOMIC ENERGY AUTHORITY,15/08/2016,SAFETY STORES,SUPPORT SERVICES,SPECSAVERS CORPORATE EYE CARE,5100340358,170
UNITED KINGDOM ATOMIC ENERGY AUTHORITY,UNITED KINGDOM ATOMIC ENERGY AUTHORITY,15/08/2016,MATERIALS & SPARES,FUSION,RS COMPONENTS LTD,5100340359,147.45
UNITED KINGDOM ATOMIC ENERGY AUTHORITY,UNITED KINGDOM ATOMIC ENERGY AUTHORITY,15/08/2016,MATERIALS & SPARES,FUSION,RS COMPONENTS LTD,5100340360,159.97
UNITED KINGDOM ATOMIC ENERGY AUTHORITY,UNITED KINGDOM ATOMIC ENERGY AUTHORITY,15/08/2016,MATERIALS & SPARES,FUSION,RS COMPONENTS LTD,5100340361,137.08
UNITED KINGDOM ATOMIC ENERGY AUTHORITY,UNITED KINGDOM ATOMIC ENERGY AUTHORITY,15/08/2016,MATERIALS & SPARES,FUSION,RS COMPONENTS LTD,5100340362,148.93
UNITED KINGDOM ATOMIC ENERGY AUTHORITY,UNITED KINGDOM ATOMIC ENERGY AUTHORITY,15/08/2016,MATERIALS & SPARES,FUSION,RS COMPONENTS LTD,5100340363,35.3
UNITED KINGDOM ATOMIC ENERGY AUTHORITY,UNITED KINGDOM ATOMIC ENERGY AUTHORITY,15/08/2016,MATERIALS & SPARES,FUSION,RS COMPONENTS LTD,5100340364,41.44
UNITED KINGDOM ATOMIC ENERGY AUTHORITY,UNITED KINGDOM ATOMIC ENERGY AUTHORITY,15/08/2016,MATERIALS & SPARES,FUSION,RS COMPONENTS LTD,5100340367,393.06
UNITED KINGDOM ATOMIC ENERGY AUTHORITY,UNITED KINGDOM ATOMIC ENERGY AUTHORITY,15/08/2016,MATERIALS & SPARES,FUSION,RS COMPONENTS LTD,5100340368,500.5
UNITED KINGDOM ATOMIC ENERGY AUTHORITY,UNITED KINGDOM ATOMIC ENERGY AUTHORITY,15/08/2016,MATERIALS & SPARES,FUSION,RS COMPONENTS LTD,5100340369,794.85
UNITED KINGDOM ATOMIC ENERGY AUTHORITY,UNITED KINGDOM ATOMIC ENERGY AUTHORITY,15/08/2016,MATERIALS & SPARES,FUSION,RS COMPONENTS LTD,5100340370,66.9
UNITED KINGDOM ATOMIC ENERGY AUTHORITY,UNITED KINGDOM ATOMIC ENERGY AUTHORITY,15/08/2016,MATERIALS & SPARES,FUSION,RS COMPONENTS LTD,5100340371,143.07
UNITED KINGDOM ATOMIC ENERGY AUTHORITY,UNITED KINGDOM ATOMIC ENERGY AUTHORITY,15/08/2016,MATERIALS & SPARES,FUSION,RS COMPONENTS LTD,5100340372,30.76
UNITED KINGDOM ATOMIC ENERGY AUTHORITY,UNITED KINGDOM ATOMIC ENERGY AUTHORITY,15/08/2016,MATERIALS & SPARES,FUSION,RS COMPONENTS LTD,5100340374,21.44
UNITED KINGDOM ATOMIC ENERGY AUTHORITY,UNITED KINGDOM ATOMIC ENERGY AUTHORITY,15/08/2016,MATERIALS & SPARES,FUSION,RS COMPONENTS LTD,5100340375,31.81
UNITED KINGDOM ATOMIC ENERGY AUTHORITY,UNITED KINGDOM ATOMIC ENERGY AUTHORITY,15/08/2016,MATERIALS & SPARES,FUSION,RS COMPONENTS LTD,5100340377,82.73
UNITED KINGDOM ATOMIC ENERGY AUTHORITY,UNITED KINGDOM ATOMIC ENERGY AUTHORITY,15/08/2016,BUILDING REPAIRS,PROPERTY,LORNE STEWART PLC,5100340379,8785.95
UNITED KINGDOM ATOMIC ENERGY AUTHORITY,UNITED KINGDOM ATOMIC ENERGY AUTHORITY,15/08/2016,MATERIALS & SPARES,FUSION,FARNELL ELECTRONIC,5100340380,33.42
UNITED KINGDOM ATOMIC ENERGY AUTHORITY,UNITED KINGDOM ATOMIC ENERGY AUTHORITY,15/08/2016,MATERIALS & SPARES,FUSION,FARNELL ELECTRONIC,5100340381,324.61
UNITED KINGDOM ATOMIC ENERGY AUTHORITY,UNITED KINGDOM ATOMIC ENERGY AUTHORITY,15/08/2016,MATERIALS & SPARES,FUSION,FARNELL ELECTRONIC,5100340382,1.6
UNITED KINGDOM ATOMIC ENERGY AUTHORITY,UNITED KINGDOM ATOMIC ENERGY AUTHORITY,15/08/2016,CLEANING,PROPERTY,OCS CLEANING & SUPPORT SERVICES,5100340387,28075.48
UNITED KINGDOM ATOMIC ENERGY AUTHORITY,UNITED KINGDOM ATOMIC ENERGY AUTHORITY,15/08/2016,MATERIALS & SPARES,FUSION,FARNELL ELECTRONIC,5100340388,55.43
UNITED KINGDOM ATOMIC ENERGY AUTHORITY,UNITED KINGDOM ATOMIC ENERGY AUTHORITY,15/08/2016,MATERIALS & SPARES,FUSION,UNDERWOODS ELECTRICAL DISTRIBUTORS,5100340389,257.25
UNITED KINGDOM ATOMIC ENERGY AUTHORITY,UNITED KINGDOM ATOMIC ENERGY AUTHORITY,15/08/2016,MATERIALS & SPARES,FUSION,FARNELL ELECTRONIC,5100340390,125.8
UNITED KINGDOM ATOMIC ENERGY AUTHORITY,UNITED KINGDOM ATOMIC ENERGY AUTHORITY,15/08/2016,MATERIALS & SPARES,FUSION,FARNELL ELECTRONIC,5100340391,71.99
UNITED KINGDOM ATOMIC ENERGY AUTHORITY,UNITED KINGDOM ATOMIC ENERGY AUTHORITY,15/08/2016,MATERIALS & SPARES,FUSION,UNDERWOODS ELECTRICAL DISTRIBUTORS,5100340392,388.1
UNITED KINGDOM ATOMIC ENERGY AUTHORITY,UNITED KINGDOM ATOMIC ENERGY AUTHORITY,15/08/2016,MATERIALS & SPARES,FUSION,INDUSTRIAL TECHNICAL LTD,5100340396,227.8
UNITED KINGDOM ATOMIC ENERGY AUTHORITY,UNITED KINGDOM ATOMIC ENERGY AUTHORITY,15/08/2016,CLEANING,PROPERTY,OCS CLEANING & SUPPORT SERVICES,5100340397,3856.77
UNITED KINGDOM ATOMIC ENERGY AUTHORITY,UNITED KINGDOM ATOMIC ENERGY AUTHORITY,15/08/2016,MATERIALS & SPARES,FUSION,NEWEY & EYRE LTD,5100340399,891.24
UNITED KINGDOM ATOMIC ENERGY AUTHORITY,UNITED KINGDOM ATOMIC ENERGY AUTHORITY,15/08/2016,MATERIALS & SPARES,FUSION,NEWEY & EYRE LTD,5100340400,561.88
UNITED KINGDOM ATOMIC ENERGY AUTHORITY,UNITED KINGDOM ATOMIC ENERGY AUTHORITY,15/08/2016,MATERIALS & SPARES,FUSION,NEWEY & EYRE LTD,5100340401,184.28
UNITED KINGDOM ATOMIC ENERGY AUTHORITY,UNITED KINGDOM ATOMIC ENERGY AUTHORITY,15/08/2016,MATERIALS & SPARES,FUSION,BRONKHORST (UK)LTD,5100340403,4947.32
UNITED KINGDOM ATOMIC ENERGY AUTHORITY,UNITED KINGDOM ATOMIC ENERGY AUTHORITY,15/08/2016,MATERIALS & SPARES,FUSION,ALLECTRA LTD,5100340404,2262
UNITED KINGDOM ATOMIC ENERGY AUTHORITY,UNITED KINGDOM ATOMIC ENERGY AUTHORITY,15/08/2016,MATERIALS & SPARES,FUSION,ALLECTRA LTD,5100340405,1460
UNITED KINGDOM ATOMIC ENERGY AUTHORITY,UNITED KINGDOM ATOMIC ENERGY AUTHORITY,15/08/2016,MATERIALS & SPARES,FUSION,R&M ELECTRICAL GROUP LTD,5100340409,353.36
UNITED KINGDOM ATOMIC ENERGY AUTHORITY,UNITED KINGDOM ATOMIC ENERGY AUTHORITY,15/08/2016,MATERIALS & SPARES,FUSION,RS COMPONENTS LTD,5100340415,203.66
UNITED KINGDOM ATOMIC ENERGY AUTHORITY,UNITED KINGDOM ATOMIC ENERGY AUTHORITY,15/08/2016,MATERIALS & SPARES,FUSION,RS COMPONENTS LTD,5100340416,175.87
UNITED KINGDOM ATOMIC ENERGY AUTHORITY,UNITED KINGDOM ATOMIC ENERGY AUTHORITY,15/08/2016,MATERIALS & SPARES,FUSION,RS COMPONENTS LTD,5100340417,21.34
UNITED KINGDOM ATOMIC ENERGY AUTHORITY,UNITED KINGDOM ATOMIC ENERGY AUTHORITY,15/08/2016,PLANT & EQUIPMENT,FUSION,MSC/J & L INDUSTRIAL SUPPLY,5100340419,86.49
UNITED KINGDOM ATOMIC ENERGY AUTHORITY,UNITED KINGDOM ATOMIC ENERGY AUTHORITY,15/08/2016,PLANT & EQUIPMENT,FUSION,MSC/J & L INDUSTRIAL SUPPLY,5100340421,-231.96
UNITED KINGDOM ATOMIC ENERGY AUTHORITY,UNITED KINGDOM ATOMIC ENERGY AUTHORITY,15/08/2016,PLANT & EQUIPMENT,FUSION,MSC/J & L INDUSTRIAL SUPPLY,5100340423,231.96
UNITED KINGDOM ATOMIC ENERGY AUTHORITY,UNITED KINGDOM ATOMIC ENERGY AUTHORITY,15/08/2016,MATERIALS & SPARES,FUSION,TR ENGINEERING PROJECTS LTD,5100340427,648
UNITED KINGDOM ATOMIC ENERGY AUTHORITY,UNITED KINGDOM ATOMIC ENERGY AUTHORITY,15/08/2016,PLANT & EQUIPMENT,FUSION,NORBAR TORQUE TOOLS LTD,5100340429,283.27
UNITED KINGDOM ATOMIC ENERGY AUTHORITY,UNITED KINGDOM ATOMIC ENERGY AUTHORITY,15/08/2016,LAUNDRY,FUSION,CLEAN LINEN SERVICES LTD,5100340435,65.54
UNITED KINGDOM ATOMIC ENERGY AUTHORITY,UNITED KINGDOM ATOMIC ENERGY AUTHORITY,15/08/2016,MATERIALS & SPARES,FUSION,RS COMPONENTS LTD,5100340439,26.99
UNITED KINGDOM ATOMIC ENERGY AUTHORITY,UNITED KINGDOM ATOMIC ENERGY AUTHORITY,15/08/2016,MATERIALS & SPARES,FUSION,RS COMPONENTS LTD,5100340440,217.35
UNITED KINGDOM ATOMIC ENERGY AUTHORITY,UNITED KINGDOM ATOMIC ENERGY AUTHORITY,15/08/2016,MATERIALS & SPARES,FUSION,RS COMPONENTS LTD,5100340444,928.92
UNITED KINGDOM ATOMIC ENERGY AUTHORITY,UNITED KINGDOM ATOMIC ENERGY AUTHORITY,15/08/2016,BUILDING REPAIRS,PROPERTY,LORNE STEWART PLC,5100340446,76.88
UNITED KINGDOM ATOMIC ENERGY AUTHORITY,UNITED KINGDOM ATOMIC ENERGY AUTHORITY,15/08/2016,MATERIALS & SPARES,FUSION,RS COMPONENTS LTD,5100340448,72.81
UNITED KINGDOM ATOMIC ENERGY AUTHORITY,UNITED KINGDOM ATOMIC ENERGY AUTHORITY,15/08/2016,MATERIALS & SPARES,FUSION,RS COMPONENTS LTD,5100340450,9.08
UNITED KINGDOM ATOMIC ENERGY AUTHORITY,UNITED KINGDOM ATOMIC ENERGY AUTHORITY,15/08/2016,MATERIALS & SPARES,FUSION,RS COMPONENTS LTD,5100340451,35.17
UNITED KINGDOM ATOMIC ENERGY AUTHORITY,UNITED KINGDOM ATOMIC ENERGY AUTHORITY,15/08/2016,MATERIALS & SPARES,FUSION,RS COMPONENTS LTD,5100340452,197.92
UNITED KINGDOM ATOMIC ENERGY AUTHORITY,UNITED KINGDOM ATOMIC ENERGY AUTHORITY,15/08/2016,MATERIALS & SPARES,FUSION,RS COMPONENTS LTD,5100340454,400.01
UNITED KINGDOM ATOMIC ENERGY AUTHORITY,UNITED KINGDOM ATOMIC ENERGY AUTHORITY,15/08/2016,MATERIALS & SPARES,FUSION,RS COMPONENTS LTD,5100340455,258.02
UNITED KINGDOM ATOMIC ENERGY AUTHORITY,UNITED KINGDOM ATOMIC ENERGY AUTHORITY,15/08/2016,MATERIALS & SPARES,FUSION,RS COMPONENTS LTD,5100340456,60.54
UNITED KINGDOM ATOMIC ENERGY AUTHORITY,UNITED KINGDOM ATOMIC ENERGY AUTHORITY,15/08/2016,MATERIALS & SPARES,FUSION,RS COMPONENTS LTD,5100340458,74.91
UNITED KINGDOM ATOMIC ENERGY AUTHORITY,UNITED KINGDOM ATOMIC ENERGY AUTHORITY,15/08/2016,MATERIALS & SPARES,FUSION,RS COMPONENTS LTD,5100340459,223.33
UNITED KINGDOM ATOMIC ENERGY AUTHORITY,UNITED KINGDOM ATOMIC ENERGY AUTHORITY,15/08/2016,MATERIALS & SPARES,FUSION,RS COMPONENTS LTD,5100340461,18.93
UNITED KINGDOM ATOMIC ENERGY AUTHORITY,UNITED KINGDOM ATOMIC ENERGY AUTHORITY,15/08/2016,MATERIALS & SPARES,FUSION,RS COMPONENTS LTD,5100340462,102.9
UNITED KINGDOM ATOMIC ENERGY AUTHORITY,UNITED KINGDOM ATOMIC ENERGY AUTHORITY,15/08/2016,MATERIALS & SPARES,FUSION,RS COMPONENTS LTD,5100340465,15.95
UNITED KINGDOM ATOMIC ENERGY AUTHORITY,UNITED KINGDOM ATOMIC ENERGY AUTHORITY,15/08/2016,MATERIALS & SPARES,FUSION,RS COMPONENTS LTD,5100340466,63.37
UNITED KINGDOM ATOMIC ENERGY AUTHORITY,UNITED KINGDOM ATOMIC ENERGY AUTHORITY,15/08/2016,MATERIALS & SPARES,FUSION,RS COMPONENTS LTD,5100340467,24.34
UNITED KINGDOM ATOMIC ENERGY AUTHORITY,UNITED KINGDOM ATOMIC ENERGY AUTHORITY,15/08/2016,MATERIALS & SPARES,FUSION,RS COMPONENTS LTD,5100340470,16.41
UNITED KINGDOM ATOMIC ENERGY AUTHORITY,UNITED KINGDOM ATOMIC ENERGY AUTHORITY,15/08/2016,MATERIALS & SPARES,FUSION,RS COMPONENTS LTD,5100340471,313.59
UNITED KINGDOM ATOMIC ENERGY AUTHORITY,UNITED KINGDOM ATOMIC ENERGY AUTHORITY,15/08/2016,MATERIALS & SPARES,FUSION,RS COMPONENTS LTD,5100340472,119.82
UNITED KINGDOM ATOMIC ENERGY AUTHORITY,UNITED KINGDOM ATOMIC ENERGY AUTHORITY,15/08/2016,MATERIALS & SPARES,FUSION,RS COMPONENTS LTD,5100340473,52.88
UNITED KINGDOM ATOMIC ENERGY AUTHORITY,UNITED KINGDOM ATOMIC ENERGY AUTHORITY,15/08/2016,MATERIALS & SPARES,FUSION,RS COMPONENTS LTD,5100340474,42.85
UNITED KINGDOM ATOMIC ENERGY AUTHORITY,UNITED KINGDOM ATOMIC ENERGY AUTHORITY,15/08/2016,PLANT & EQUIPMENT,FUSION,TC LTD,5100340477,148.8
UNITED KINGDOM ATOMIC ENERGY AUTHORITY,UNITED KINGDOM ATOMIC ENERGY AUTHORITY,15/08/2016,ELECTRICITY,FUSION,E.ON (UK) LTD,5100340478,126.14
UNITED KINGDOM ATOMIC ENERGY AUTHORITY,UNITED KINGDOM ATOMIC ENERGY AUTHORITY,15/08/2016,PROFESSIONAL SERVICES,SUPPORT SERVICES,MEDIGOLD HEALTH CONSULTANCY LTD,5100340479,170
UNITED KINGDOM ATOMIC ENERGY AUTHORITY,UNITED KINGDOM ATOMIC ENERGY AUTHORITY,15/08/2016,UTILITIES/ELECTRICITY,PROPERTY,EDF ENERGY,5100340480,1399.9
UNITED KINGDOM ATOMIC ENERGY AUTHORITY,UNITED KINGDOM ATOMIC ENERGY AUTHORITY,15/08/2016,PROFESSIONAL SERVICES,PROPERTY,GRUNDON WASTE MANAGEMENT LTD,5100340482,975.65
UNITED KINGDOM ATOMIC ENERGY AUTHORITY,UNITED KINGDOM ATOMIC ENERGY AUTHORITY,15/08/2016,PROFESSIONAL SERVICES,PROPERTY,GRUNDON WASTE MANAGEMENT LTD,5100340483,122.12
UNITED KINGDOM ATOMIC ENERGY AUTHORITY,UNITED KINGDOM ATOMIC ENERGY AUTHORITY,15/08/2016,PROFESSIONAL SERVICES,PROPERTY,GRUNDON WASTE MANAGEMENT LTD,5100340484,270.24
UNITED KINGDOM ATOMIC ENERGY AUTHORITY,UNITED KINGDOM ATOMIC ENERGY AUTHORITY,15/08/2016,PROFESSIONAL SERVICES,PROPERTY,GRUNDON WASTE MANAGEMENT LTD,5100340485,122.12
UNITED KINGDOM ATOMIC ENERGY AUTHORITY,UNITED KINGDOM ATOMIC ENERGY AUTHORITY,15/08/2016,PROFESSIONAL SERVICES,PROPERTY,GRUNDON WASTE MANAGEMENT LTD,5100340486,636.6
UNITED KINGDOM ATOMIC ENERGY AUTHORITY,UNITED KINGDOM ATOMIC ENERGY AUTHORITY,15/08/2016,PROFESSIONAL SERVICES,PROPERTY,GRUNDON WASTE MANAGEMENT LTD,5100340487,96.12
UNITED KINGDOM ATOMIC ENERGY AUTHORITY,UNITED KINGDOM ATOMIC ENERGY AUTHORITY,15/08/2016,PROFESSIONAL SERVICES,PROPERTY,GRUNDON WASTE MANAGEMENT LTD,5100340488,79.4
UNITED KINGDOM ATOMIC ENERGY AUTHORITY,UNITED KINGDOM ATOMIC ENERGY AUTHORITY,15/08/2016,PROFESSIONAL SERVICES,PROPERTY,GRUNDON WASTE MANAGEMENT LTD,5100340489,122.12
UNITED KINGDOM ATOMIC ENERGY AUTHORITY,UNITED KINGDOM ATOMIC ENERGY AUTHORITY,15/08/2016,PROFESSIONAL SERVICES,PROPERTY,GRUNDON WASTE MANAGEMENT LTD,5100340490,122.12
UNITED KINGDOM ATOMIC ENERGY AUTHORITY,UNITED KINGDOM ATOMIC ENERGY AUTHORITY,15/08/2016,PROFESSIONAL SERVICES,PROPERTY,GRUNDON WASTE MANAGEMENT LTD,5100340491,110
UNITED KINGDOM ATOMIC ENERGY AUTHORITY,UNITED KINGDOM ATOMIC ENERGY AUTHORITY,15/08/2016,GASES,FUSION,BOC LTD,5100340492,43522.32
UNITED KINGDOM ATOMIC ENERGY AUTHORITY,UNITED KINGDOM ATOMIC ENERGY AUTHORITY,15/08/2016,MATERIALS & SPARES,FUSION,WELLINGTON TUBE SUPPLIES LTD,5100340494,164.53
UNITED KINGDOM ATOMIC ENERGY AUTHORITY,UNITED KINGDOM ATOMIC ENERGY AUTHORITY,15/08/2016,MATERIALS & SPARES,FUSION,NEWBURY ELECTRONICS,5100340495,262.1
UNITED KINGDOM ATOMIC ENERGY AUTHORITY,UNITED KINGDOM ATOMIC ENERGY AUTHORITY,15/08/2016,CAR HIRE,FUSION,LEASEDRIVE VELO,5100340498,94.31
UNITED KINGDOM ATOMIC ENERGY AUTHORITY,UNITED KINGDOM ATOMIC ENERGY AUTHORITY,15/08/2016,CAR HIRE,SUPPORT SERVICES,LEASEDRIVE VELO,5100340504,73.83
UNITED KINGDOM ATOMIC ENERGY AUTHORITY,UNITED KINGDOM ATOMIC ENERGY AUTHORITY,15/08/2016,SECURITY & EMERGENCY,PROPERTY,TRINITY PROTETION SYSTEMS,5100340506,168.75
UNITED KINGDOM ATOMIC ENERGY AUTHORITY,UNITED KINGDOM ATOMIC ENERGY AUTHORITY,15/08/2016,SECURITY & EMERGENCY,FUSION,TRINITY PROTETION SYSTEMS,5100340508,636.57
UNITED KINGDOM ATOMIC ENERGY AUTHORITY,UNITED KINGDOM ATOMIC ENERGY AUTHORITY,15/08/2016,PROFESSIONAL SERVICES,FUSION,SWAGELOK LONDON,5100340512,617.79
UNITED KINGDOM ATOMIC ENERGY AUTHORITY,UNITED KINGDOM ATOMIC ENERGY AUTHORITY,15/08/2016,PROFESSIONAL SERVICES,FUSION,SWAGELOK LONDON,5100340513,172.58
UNITED KINGDOM ATOMIC ENERGY AUTHORITY,UNITED KINGDOM ATOMIC ENERGY AUTHORITY,15/08/2016,PROFESSIONAL SERVICES,FUSION,SWAGELOK LONDON,5100340515,198.45
UNITED KINGDOM ATOMIC ENERGY AUTHORITY,UNITED KINGDOM ATOMIC ENERGY AUTHORITY,15/08/2016,CAR HIRE,FUSION,LEASEDRIVE VELO,5100340517,32.67
UNITED KINGDOM ATOMIC ENERGY AUTHORITY,UNITED KINGDOM ATOMIC ENERGY AUTHORITY,15/08/2016,PROFESSIONAL SERVICES,PROPERTY,CARTER JONAS LLP,5100340518,733.62
UNITED KINGDOM ATOMIC ENERGY AUTHORITY,UNITED KINGDOM ATOMIC ENERGY AUTHORITY,15/08/2016,CAR HIRE,FUSION,LEASEDRIVE VELO,5100340520,65.34
UNITED KINGDOM ATOMIC ENERGY AUTHORITY,UNITED KINGDOM ATOMIC ENERGY AUTHORITY,15/08/2016,PLANT & EQUIPMENT,FUSION,BELLEVILLE SPRINGS LTD,5100340521,48.42
UNITED KINGDOM ATOMIC ENERGY AUTHORITY,UNITED KINGDOM ATOMIC ENERGY AUTHORITY,15/08/2016,MATERIALS & SPARES,FUSION,OXFORD BOLTS & BEARINGS,5100340522,609.38
UNITED KINGDOM ATOMIC ENERGY AUTHORITY,UNITED KINGDOM ATOMIC ENERGY AUTHORITY,15/08/2016,PLANT & EQUIPMENT,FUSION,ISLAND OPTICS LTD,5100340523,1510
UNITED KINGDOM ATOMIC ENERGY AUTHORITY,UNITED KINGDOM ATOMIC ENERGY AUTHORITY,15/08/2016,HIRED STAFF,FUSION,MORSON INTERNATIONAL,5100340529,128.53
UNITED KINGDOM ATOMIC ENERGY AUTHORITY,UNITED KINGDOM ATOMIC ENERGY AUTHORITY,15/08/2016,PLANT SPARES,FUSION,AURIGA EUROPE PLC,5100340535,110
UNITED KINGDOM ATOMIC ENERGY AUTHORITY,UNITED KINGDOM ATOMIC ENERGY AUTHORITY,15/08/2016,PROFESSIONAL SERVICES,PROPERTY,GRUNDON WASTE MANAGEMENT LTD,5100340537,79.4
UNITED KINGDOM ATOMIC ENERGY AUTHORITY,UNITED KINGDOM ATOMIC ENERGY AUTHORITY,15/08/2016,MATERIALS & SPARES,FUSION,RS COMPONENTS LTD,5100340538,14.31
UNITED KINGDOM ATOMIC ENERGY AUTHORITY,UNITED KINGDOM ATOMIC ENERGY AUTHORITY,15/08/2016,MATERIALS & SPARES,FUSION,RS COMPONENTS LTD,5100340542,71.01
UNITED KINGDOM ATOMIC ENERGY AUTHORITY,UNITED KINGDOM ATOMIC ENERGY AUTHORITY,15/08/2016,MATERIALS & SPARES,FUSION,RS COMPONENTS LTD,5100340543,941.33
UNITED KINGDOM ATOMIC ENERGY AUTHORITY,UNITED KINGDOM ATOMIC ENERGY AUTHORITY,15/08/2016,MATERIALS & SPARES,FUSION,RS COMPONENTS LTD,5100340544,416.5
UNITED KINGDOM ATOMIC ENERGY AUTHORITY,UNITED KINGDOM ATOMIC ENERGY AUTHORITY,15/08/2016,MATERIALS & SPARES,FUSION,RS COMPONENTS LTD,5100340545,35.73
UNITED KINGDOM ATOMIC ENERGY AUTHORITY,UNITED KINGDOM ATOMIC ENERGY AUTHORITY,15/08/2016,MATERIALS & SPARES,FUSION,RS COMPONENTS LTD,5100340547,29.49
UNITED KINGDOM ATOMIC ENERGY AUTHORITY,UNITED KINGDOM ATOMIC ENERGY AUTHORITY,15/08/2016,MATERIALS & SPARES,FUSION,RS COMPONENTS LTD,5100340548,14.73
UNITED KINGDOM ATOMIC ENERGY AUTHORITY,UNITED KINGDOM ATOMIC ENERGY AUTHORITY,15/08/2016,MATERIALS & SPARES,FUSION,RS COMPONENTS LTD,5100340549,425.58
UNITED KINGDOM ATOMIC ENERGY AUTHORITY,UNITED KINGDOM ATOMIC ENERGY AUTHORITY,15/08/2016,MATERIALS & SPARES,FUSION,RS COMPONENTS LTD,5100340554,21.99
UNITED KINGDOM ATOMIC ENERGY AUTHORITY,UNITED KINGDOM ATOMIC ENERGY AUTHORITY,15/08/2016,MATERIALS & SPARES,FUSION,RS COMPONENTS LTD,5100340560,203.75
UNITED KINGDOM ATOMIC ENERGY AUTHORITY,UNITED KINGDOM ATOMIC ENERGY AUTHORITY,15/08/2016,MATERIALS & SPARES,FUSION,RS COMPONENTS LTD,5100340561,44.19
UNITED KINGDOM ATOMIC ENERGY AUTHORITY,UNITED KINGDOM ATOMIC ENERGY AUTHORITY,15/08/2016,MATERIALS & SPARES,FUSION,WYCHWOOD WATER SYSTEMS LTD,5100340562,3998
UNITED KINGDOM ATOMIC ENERGY AUTHORITY,UNITED KINGDOM ATOMIC ENERGY AUTHORITY,15/08/2016,MATERIALS & SPARES,FUSION,RS COMPONENTS LTD,5100340563,42.42
UNITED KINGDOM ATOMIC ENERGY AUTHORITY,UNITED KINGDOM ATOMIC ENERGY AUTHORITY,15/08/2016,MATERIALS & SPARES,FUSION,RS COMPONENTS LTD,5100340564,28
UNITED KINGDOM ATOMIC ENERGY AUTHORITY,UNITED KINGDOM ATOMIC ENERGY AUTHORITY,15/08/2016,MATERIALS & SPARES,FUSION,RS COMPONENTS LTD,5100340565,482.01
UNITED KINGDOM ATOMIC ENERGY AUTHORITY,UNITED KINGDOM ATOMIC ENERGY AUTHORITY,15/08/2016,MATERIALS & SPARES,FUSION,RS COMPONENTS LTD,5100340567,21.77
UNITED KINGDOM ATOMIC ENERGY AUTHORITY,UNITED KINGDOM ATOMIC ENERGY AUTHORITY,15/08/2016,MATERIALS & SPARES,FUSION,RS COMPONENTS LTD,5100340568,511.34
UNITED KINGDOM ATOMIC ENERGY AUTHORITY,UNITED KINGDOM ATOMIC ENERGY AUTHORITY,15/08/2016,MATERIALS & SPARES,FUSION,RS COMPONENTS LTD,5100340569,512.72
UNITED KINGDOM ATOMIC ENERGY AUTHORITY,UNITED KINGDOM ATOMIC ENERGY AUTHORITY,15/08/2016,MATERIALS & SPARES,FUSION,RS COMPONENTS LTD,5100340570,677.88
UNITED KINGDOM ATOMIC ENERGY AUTHORITY,UNITED KINGDOM ATOMIC ENERGY AUTHORITY,15/08/2016,MATERIALS & SPARES,FUSION,RS COMPONENTS LTD,5100340573,77.61
UNITED KINGDOM ATOMIC ENERGY AUTHORITY,UNITED KINGDOM ATOMIC ENERGY AUTHORITY,15/08/2016,MATERIALS & SPARES,FUSION,RS COMPONENTS LTD,5100340574,536.48
UNITED KINGDOM ATOMIC ENERGY AUTHORITY,UNITED KINGDOM ATOMIC ENERGY AUTHORITY,15/08/2016,MATERIALS & SPARES,FUSION,RS COMPONENTS LTD,5100340575,63.67
UNITED KINGDOM ATOMIC ENERGY AUTHORITY,UNITED KINGDOM ATOMIC ENERGY AUTHORITY,15/08/2016,MATERIALS & SPARES,FUSION,RS COMPONENTS LTD,5100340576,2226.65
UNITED KINGDOM ATOMIC ENERGY AUTHORITY,UNITED KINGDOM ATOMIC ENERGY AUTHORITY,15/08/2016,MATERIALS & SPARES,FUSION,RS COMPONENTS LTD,5100340577,169.38
UNITED KINGDOM ATOMIC ENERGY AUTHORITY,UNITED KINGDOM ATOMIC ENERGY AUTHORITY,15/08/2016,MATERIALS & SPARES,FUSION,THE VALVE AND ACTUATOR LTD,5100340581,1129.5
UNITED KINGDOM ATOMIC ENERGY AUTHORITY,UNITED KINGDOM ATOMIC ENERGY AUTHORITY,15/08/2016,MATERIALS & SPARES,FUSION,SCREWFIX DIRECT LTD,5100340582,71.25
UNITED KINGDOM ATOMIC ENERGY AUTHORITY,UNITED KINGDOM ATOMIC ENERGY AUTHORITY,15/08/2016,MATERIALS & SPARES,FUSION,SCREWFIX DIRECT LTD,5100340583,71.25
UNITED KINGDOM ATOMIC ENERGY AUTHORITY,UNITED KINGDOM ATOMIC ENERGY AUTHORITY,15/08/2016,MATERIALS & SPARES,FUSION,SCREWFIX DIRECT LTD,5100340584,794.93
UNITED KINGDOM ATOMIC ENERGY AUTHORITY,UNITED KINGDOM ATOMIC ENERGY AUTHORITY,15/08/2016,MATERIALS & SPARES,FUSION,SCREWFIX DIRECT LTD,5100340585,794.93
UNITED KINGDOM ATOMIC ENERGY AUTHORITY,UNITED KINGDOM ATOMIC ENERGY AUTHORITY,15/08/2016,MATERIALS & SPARES,FUSION,SCREWFIX DIRECT LTD,5100340586,-749.95
UNITED KINGDOM ATOMIC ENERGY AUTHORITY,UNITED KINGDOM ATOMIC ENERGY AUTHORITY,15/08/2016,STATIONERY,FUSION,LYRECO UK LIMITED,5100340590,417.33
UNITED KINGDOM ATOMIC ENERGY AUTHORITY,UNITED KINGDOM ATOMIC ENERGY AUTHORITY,15/08/2016,STATIONERY,FUSION,LYRECO UK LIMITED,5100340591,355.92
UNITED KINGDOM ATOMIC ENERGY AUTHORITY,UNITED KINGDOM ATOMIC ENERGY AUTHORITY,15/08/2016,STATIONERY,FUSION,LYRECO UK LIMITED,5100340592,77.94
UNITED KINGDOM ATOMIC ENERGY AUTHORITY,UNITED KINGDOM ATOMIC ENERGY AUTHORITY,15/08/2016,STATIONERY,SUPPORT SERVICES,LYRECO UK LIMITED,5100340593,356.99
UNITED KINGDOM ATOMIC ENERGY AUTHORITY,UNITED KINGDOM ATOMIC ENERGY AUTHORITY,15/08/2016,MATERIALS & SPARES,FUSION,UHV DESIGN LTD,5100340594,11074.3
UNITED KINGDOM ATOMIC ENERGY AUTHORITY,UNITED KINGDOM ATOMIC ENERGY AUTHORITY,15/08/2016,MATERIALS & SPARES,FUSION,ANIXTER (UK) LTD,5100340596,345.92
UNITED KINGDOM ATOMIC ENERGY AUTHORITY,UNITED KINGDOM ATOMIC ENERGY AUTHORITY,15/08/2016,HIRED STAFF,FUSION,PELICAN SOFTWARE LTD,5100340601,359.98
UNITED KINGDOM ATOMIC ENERGY AUTHORITY,UNITED KINGDOM ATOMIC ENERGY AUTHORITY,15/08/2016,PROFESSIONAL SERVICES,FUSION,MACHINING TECHNOLOGY (MACH-TECH),5100340602,3716.88
UNITED KINGDOM ATOMIC ENERGY AUTHORITY,UNITED KINGDOM ATOMIC ENERGY AUTHORITY,15/08/2016,MATERIALS & SPARES,FUSION,EDMUND OPTICS LTD,5100340612,216
UNITED KINGDOM ATOMIC ENERGY AUTHORITY,UNITED KINGDOM ATOMIC ENERGY AUTHORITY,15/08/2016,PROFESSIONAL SERVICES,FUSION,THE SCIENTIFIC INSTRUMENT CENTRE LT,5100340613,216.32
UNITED KINGDOM ATOMIC ENERGY AUTHORITY,UNITED KINGDOM ATOMIC ENERGY AUTHORITY,15/08/2016,PROFESSIONAL SERVICES,FUSION,THE SCIENTIFIC INSTRUMENT CENTRE LT,5100340614,270.99
UNITED KINGDOM ATOMIC ENERGY AUTHORITY,UNITED KINGDOM ATOMIC ENERGY AUTHORITY,15/08/2016,PROFESSIONAL SERVICES,FUSION,THE SCIENTIFIC INSTRUMENT CENTRE LT,5100340616,289.65
UNITED KINGDOM ATOMIC ENERGY AUTHORITY,UNITED KINGDOM ATOMIC ENERGY AUTHORITY,15/08/2016,PERSONAL PROTECTIVE EQUIPMENT,FUSION,ARCO LTD,5100340618,260.35
UNITED KINGDOM ATOMIC ENERGY AUTHORITY,UNITED KINGDOM ATOMIC ENERGY AUTHORITY,15/08/2016,MATERIALS & SPARES,FUSION,R&M ELECTRICAL GROUP LTD,5100340619,786.16
UNITED KINGDOM ATOMIC ENERGY AUTHORITY,UNITED KINGDOM ATOMIC ENERGY AUTHORITY,15/08/2016,MATERIALS: NON-HAZARDOUS,FUSION,INTAMET,5100340622,521
UNITED KINGDOM ATOMIC ENERGY AUTHORITY,UNITED KINGDOM ATOMIC ENERGY AUTHORITY,15/08/2016,PROFESSIONAL SERVICES,SUPPORT SERVICES,PENNINGTONS MANCHES LLP,5100340624,3963.5
UNITED KINGDOM ATOMIC ENERGY AUTHORITY,UNITED KINGDOM ATOMIC ENERGY AUTHORITY,15/08/2016,MATERIALS & SPARES,FUSION,TOTALPROTECTION (UK) LTD.,5100340625,550
UNITED KINGDOM ATOMIC ENERGY AUTHORITY,UNITED KINGDOM ATOMIC ENERGY AUTHORITY,15/08/2016,DESIGN & CONSTRUCTION,FUSION,MAYFLEX UK LTD,5100340627,161.64
UNITED KINGDOM ATOMIC ENERGY AUTHORITY,UNITED KINGDOM ATOMIC ENERGY AUTHORITY,15/08/2016,PROFESSIONAL SERVICES,FUSION,BNS NUCLEAR SERVICES,5100340631,26877.43
UNITED KINGDOM ATOMIC ENERGY AUTHORITY,UNITED KINGDOM ATOMIC ENERGY AUTHORITY,15/08/2016,TELECOMMUNICATIONS,FUSION,CABLEWISE,5100340632,153.45
UNITED KINGDOM ATOMIC ENERGY AUTHORITY,UNITED KINGDOM ATOMIC ENERGY AUTHORITY,15/08/2016,PERSONAL PROTECTIVE EQUIPMENT,FUSION,BUCK & HICKMAN LTD,5100340634,65.45
UNITED KINGDOM ATOMIC ENERGY AUTHORITY,UNITED KINGDOM ATOMIC ENERGY AUTHORITY,15/08/2016,CONSUMABLES,FUSION,SEAWARD ELECTRONIC LTD,5100340639,178
UNITED KINGDOM ATOMIC ENERGY AUTHORITY,UNITED KINGDOM ATOMIC ENERGY AUTHORITY,15/08/2016,CATERING,FUSION,AVENANCE PLC,5100340640,5976.9
UNITED KINGDOM ATOMIC ENERGY AUTHORITY,UNITED KINGDOM ATOMIC ENERGY AUTHORITY,15/08/2016,PROFESSIONAL SERVICES,SUPPORT SERVICES,DISCLOSURE SCOTLAND,5100340641,350
UNITED KINGDOM ATOMIC ENERGY AUTHORITY,UNITED KINGDOM ATOMIC ENERGY AUTHORITY,15/08/2016,GASES,FUSION,BOC LTD,5100340642,57.5
UNITED KINGDOM ATOMIC ENERGY AUTHORITY,UNITED KINGDOM ATOMIC ENERGY AUTHORITY,15/08/2016,MATERIALS & SPARES,FUSION,SETON,5100340643,87.43
UNITED KINGDOM ATOMIC ENERGY AUTHORITY,UNITED KINGDOM ATOMIC ENERGY AUTHORITY,15/08/2016,SECURITY & EMERGENCY,PROPERTY,RELIANCE SECURITY GROUP PLC,5100340644,5471.23
UNITED KINGDOM ATOMIC ENERGY AUTHORITY,UNITED KINGDOM ATOMIC ENERGY AUTHORITY,15/08/2016,SECURITY & EMERGENCY,PROPERTY,TRINITY PROTETION SYSTEMS,5100340645,35.59
UNITED KINGDOM ATOMIC ENERGY AUTHORITY,UNITED KINGDOM ATOMIC ENERGY AUTHORITY,15/08/2016,SECURITY & EMERGENCY,FUSION,TRINITY PROTETION SYSTEMS,5100340646,1416.67
UNITED KINGDOM ATOMIC ENERGY AUTHORITY,UNITED KINGDOM ATOMIC ENERGY AUTHORITY,15/08/2016,LEGAL FEES,SUPPORT SERVICES,BIGGART BAILLIE,5100340647,300
UNITED KINGDOM ATOMIC ENERGY AUTHORITY,UNITED KINGDOM ATOMIC ENERGY AUTHORITY,15/08/2016,LEGAL FEES,SUPPORT SERVICES,BIGGART BAILLIE,5100340648,280
UNITED KINGDOM ATOMIC ENERGY AUTHORITY,UNITED KINGDOM ATOMIC ENERGY AUTHORITY,15/08/2016,LEGAL FEES,SUPPORT SERVICES,BIGGART BAILLIE,5100340649,370
UNITED KINGDOM ATOMIC ENERGY AUTHORITY,UNITED KINGDOM ATOMIC ENERGY AUTHORITY,15/08/2016,GASES,FUSION,BOC LTD,5100340651,261.75
UNITED KINGDOM ATOMIC ENERGY AUTHORITY,UNITED KINGDOM ATOMIC ENERGY AUTHORITY,15/08/2016,GASES,FUSION,BOC LTD,5100340652,31.2
UNITED KINGDOM ATOMIC ENERGY AUTHORITY,UNITED KINGDOM ATOMIC ENERGY AUTHORITY,15/08/2016,PROFESSIONAL SERVICES,FUSION,MACHINING TECHNOLOGY (MACH-TECH),5100340655,815.36
UNITED KINGDOM ATOMIC ENERGY AUTHORITY,UNITED KINGDOM ATOMIC ENERGY AUTHORITY,15/08/2016,CONSUMABLES,FUSION,BRITISH SALT LTD,5100340656,2842.39
UNITED KINGDOM ATOMIC ENERGY AUTHORITY,UNITED KINGDOM ATOMIC ENERGY AUTHORITY,15/08/2016,F&F,SUPPORT SERVICES,BROADSTOCK OFFICE FURNITURE LTD,5100340657,204
UNITED KINGDOM ATOMIC ENERGY AUTHORITY,UNITED KINGDOM ATOMIC ENERGY AUTHORITY,15/08/2016,F&F,SUPPORT SERVICES,BROADSTOCK OFFICE FURNITURE LTD,5100340658,102
UNITED KINGDOM ATOMIC ENERGY AUTHORITY,UNITED KINGDOM ATOMIC ENERGY AUTHORITY,15/08/2016,F&F,SUPPORT SERVICES,BROADSTOCK OFFICE FURNITURE LTD,5100340659,116
UNITED KINGDOM ATOMIC ENERGY AUTHORITY,UNITED KINGDOM ATOMIC ENERGY AUTHORITY,15/08/2016,MATERIALS & SPARES,FUSION,HOTCHKISS AIR SUPPLY,5100340665,152.12
UNITED KINGDOM ATOMIC ENERGY AUTHORITY,UNITED KINGDOM ATOMIC ENERGY AUTHORITY,15/08/2016,HEALTH PHYSICS,FUSION,NUVIA LIMITED,5100340672,1083
UNITED KINGDOM ATOMIC ENERGY AUTHORITY,UNITED KINGDOM ATOMIC ENERGY AUTHORITY,15/08/2016,SECURITY & EMERGENCY,PROPERTY,TRINITY PROTETION SYSTEMS,5100340673,-35.59
UNITED KINGDOM ATOMIC ENERGY AUTHORITY,UNITED KINGDOM ATOMIC ENERGY AUTHORITY,15/08/2016,RATES,PROPERTY,SOUTH OXFORDSHIRE DISTRICT COUNCIL,5100340674,72562
UNITED KINGDOM ATOMIC ENERGY AUTHORITY,UNITED KINGDOM ATOMIC ENERGY AUTHORITY,15/08/2016,RATES,PROPERTY,SOUTH OXFORDSHIRE DISTRICT COUNCIL,5100340675,132202
UNITED KINGDOM ATOMIC ENERGY AUTHORITY,UNITED KINGDOM ATOMIC ENERGY AUTHORITY,15/08/2016,SECURITY & EMERGENCY,FUSION,TRINITY PROTETION SYSTEMS,5100340676,35.59
UNITED KINGDOM ATOMIC ENERGY AUTHORITY,UNITED KINGDOM ATOMIC ENERGY AUTHORITY,16/08/2016,CHARITABLE DONATIONS,SUPPORT SERVICES,SPECIALEFFECT,1900061659,50
UNITED KINGDOM ATOMIC ENERGY AUTHORITY,UNITED KINGDOM ATOMIC ENERGY AUTHORITY,16/08/2016,OTHER EXTERNAL COSTS,FUSION,PEARCES PRIVATE HIRE LIMITED,1900061665,970
UNITED KINGDOM ATOMIC ENERGY AUTHORITY,UNITED KINGDOM ATOMIC ENERGY AUTHORITY,17/08/2016,PLANT & EQUIPMENT,FUSION,4030 UK LTD,1900061670,1440
UNITED KINGDOM ATOMIC ENERGY AUTHORITY,UNITED KINGDOM ATOMIC ENERGY AUTHORITY,17/08/2016,REPAIRS & MAINTENANCE,FUSION,MOORFIELD NANOTECHNOLOGY LTD ,1900061671,2549.04
UNITED KINGDOM ATOMIC ENERGY AUTHORITY,UNITED KINGDOM ATOMIC ENERGY AUTHORITY,17/08/2016,ADVERTISING  ,FUSION,CENTAUR COMMUNICATIONS LTD,1900061672,1000
UNITED KINGDOM ATOMIC ENERGY AUTHORITY,UNITED KINGDOM ATOMIC ENERGY AUTHORITY,17/08/2016,PLANT & EQUIPMENT,FUSION,EDWARDS LIMITED,5100339662,1890.37
UNITED KINGDOM ATOMIC ENERGY AUTHORITY,UNITED KINGDOM ATOMIC ENERGY AUTHORITY,17/08/2016,PLANT & EQUIPMENT,FUSION,AALCO LIMITED,5100339847,84
UNITED KINGDOM ATOMIC ENERGY AUTHORITY,UNITED KINGDOM ATOMIC ENERGY AUTHORITY,17/08/2016,PLANT & EQUIPMENT,FUSION,INNOLAS UK LTD,5100340030,1960
UNITED KINGDOM ATOMIC ENERGY AUTHORITY,UNITED KINGDOM ATOMIC ENERGY AUTHORITY,17/08/2016,CLEANING,PROPERTY,OCS CLEANING & SUPPORT SERVICES,5100340043,28075.48
UNITED KINGDOM ATOMIC ENERGY AUTHORITY,UNITED KINGDOM ATOMIC ENERGY AUTHORITY,17/08/2016,GASES,FUSION,BOC LTD,5100340044,1652.4
UNITED KINGDOM ATOMIC ENERGY AUTHORITY,UNITED KINGDOM ATOMIC ENERGY AUTHORITY,17/08/2016,PLANT & EQUIPMENT,FUSION,EDMUNDSON ELECTRICALS LTD,5100340046,48
UNITED KINGDOM ATOMIC ENERGY AUTHORITY,UNITED KINGDOM ATOMIC ENERGY AUTHORITY,17/08/2016,PLANT & EQUIPMENT,FUSION,EDMUNDSON ELECTRICALS LTD,5100340047,214.93
UNITED KINGDOM ATOMIC ENERGY AUTHORITY,UNITED KINGDOM ATOMIC ENERGY AUTHORITY,17/08/2016,PLANT & EQUIPMENT,FUSION,EDMUNDSON ELECTRICALS LTD,5100340048,867.95
UNITED KINGDOM ATOMIC ENERGY AUTHORITY,UNITED KINGDOM ATOMIC ENERGY AUTHORITY,17/08/2016,PLANT & EQUIPMENT,FUSION,NU START ELECTONICS,5100340055,959.16
UNITED KINGDOM ATOMIC ENERGY AUTHORITY,UNITED KINGDOM ATOMIC ENERGY AUTHORITY,17/08/2016,PLANT & EQUIPMENT,FUSION,PFEIFFER VACUUM UK,5100340076,1977.91
UNITED KINGDOM ATOMIC ENERGY AUTHORITY,UNITED KINGDOM ATOMIC ENERGY AUTHORITY,17/08/2016,PLANT & EQUIPMENT,FUSION,LINDAB LTD,5100340107,31.96
UNITED KINGDOM ATOMIC ENERGY AUTHORITY,UNITED KINGDOM ATOMIC ENERGY AUTHORITY,17/08/2016,PLANT & EQUIPMENT,FUSION,INSIGHT DIRECT LTD,5100340112,34.99
UNITED KINGDOM ATOMIC ENERGY AUTHORITY,UNITED KINGDOM ATOMIC ENERGY AUTHORITY,17/08/2016,TRAINING COURSE FEES,FUSION,MACGREGOR INDUSTRIES LTD,5100340167,90.48
UNITED KINGDOM ATOMIC ENERGY AUTHORITY,UNITED KINGDOM ATOMIC ENERGY AUTHORITY,17/08/2016,PROFESSIONAL SERVICES,FUSION,SWAGELOK LONDON,5100340212,24401.93
UNITED KINGDOM ATOMIC ENERGY AUTHORITY,UNITED KINGDOM ATOMIC ENERGY AUTHORITY,17/08/2016,MATERIALS & SPARES,FUSION,RS COMPONENTS LTD,5100340219,81.51
UNITED KINGDOM ATOMIC ENERGY AUTHORITY,UNITED KINGDOM ATOMIC ENERGY AUTHORITY,17/08/2016,MATERIALS & SPARES,FUSION,RS COMPONENTS LTD,5100340237,135.62
UNITED KINGDOM ATOMIC ENERGY AUTHORITY,UNITED KINGDOM ATOMIC ENERGY AUTHORITY,17/08/2016,MATERIALS & SPARES,FUSION,RS COMPONENTS LTD,5100340240,151.68
UNITED KINGDOM ATOMIC ENERGY AUTHORITY,UNITED KINGDOM ATOMIC ENERGY AUTHORITY,17/08/2016,MATERIALS & SPARES,FUSION,R&M ELECTRICAL GROUP LTD,5100340241,24.41
UNITED KINGDOM ATOMIC ENERGY AUTHORITY,UNITED KINGDOM ATOMIC ENERGY AUTHORITY,17/08/2016,MATERIALS & SPARES,FUSION,RS COMPONENTS LTD,5100340254,342.15
UNITED KINGDOM ATOMIC ENERGY AUTHORITY,UNITED KINGDOM ATOMIC ENERGY AUTHORITY,17/08/2016,MATERIALS & SPARES,FUSION,LASER 2000 (UK) LTD (EUR),5100340255,46875.42
UNITED KINGDOM ATOMIC ENERGY AUTHORITY,UNITED KINGDOM ATOMIC ENERGY AUTHORITY,17/08/2016,MATERIALS & SPARES,FUSION,LASER 2000 (UK) LTD (EUR),5100340256,68019.9
UNITED KINGDOM ATOMIC ENERGY AUTHORITY,UNITED KINGDOM ATOMIC ENERGY AUTHORITY,17/08/2016,TRAVEL,SUPPORT SERVICES,HOGG ROBINSON(TRAVEL)LTD T/A HRG UK,5100340264,31376.61
UNITED KINGDOM ATOMIC ENERGY AUTHORITY,UNITED KINGDOM ATOMIC ENERGY AUTHORITY,17/08/2016,IT EQUIPMENT NON CAPITAL,FUSION,SCAN COMPUTERS INTERNATIONAL LTD,5100340270,1376.08
UNITED KINGDOM ATOMIC ENERGY AUTHORITY,UNITED KINGDOM ATOMIC ENERGY AUTHORITY,17/08/2016,MATERIALS & SPARES,FUSION,FARNELL ELECTRONIC,5100340291,157.11
UNITED KINGDOM ATOMIC ENERGY AUTHORITY,UNITED KINGDOM ATOMIC ENERGY AUTHORITY,17/08/2016,PROFESSIONAL SERVICES,FUSION,HILLS WASTE SOLUTIONS LTD,5100340292,2328.01
UNITED KINGDOM ATOMIC ENERGY AUTHORITY,UNITED KINGDOM ATOMIC ENERGY AUTHORITY,17/08/2016,PROFESSIONAL SERVICES,FUSION,HILLS WASTE SOLUTIONS LTD,5100340293,25
UNITED KINGDOM ATOMIC ENERGY AUTHORITY,UNITED KINGDOM ATOMIC ENERGY AUTHORITY,17/08/2016,PROFESSIONAL SERVICES,FUSION,HILLS WASTE SOLUTIONS LTD,5100340294,30
UNITED KINGDOM ATOMIC ENERGY AUTHORITY,UNITED KINGDOM ATOMIC ENERGY AUTHORITY,17/08/2016,PROFESSIONAL SERVICES,FUSION,HILLS WASTE SOLUTIONS LTD,5100340295,10
UNITED KINGDOM ATOMIC ENERGY AUTHORITY,UNITED KINGDOM ATOMIC ENERGY AUTHORITY,17/08/2016,PROFESSIONAL SERVICES,FUSION,HILLS WASTE SOLUTIONS LTD,5100340296,15
UNITED KINGDOM ATOMIC ENERGY AUTHORITY,UNITED KINGDOM ATOMIC ENERGY AUTHORITY,17/08/2016,PROFESSIONAL SERVICES,FUSION,HILLS WASTE SOLUTIONS LTD,5100340297,10
UNITED KINGDOM ATOMIC ENERGY AUTHORITY,UNITED KINGDOM ATOMIC ENERGY AUTHORITY,17/08/2016,IT EQUIPMENT NON CAPITAL,FUSION,PROBRAND LIMITED,5100340299,145.12
UNITED KINGDOM ATOMIC ENERGY AUTHORITY,UNITED KINGDOM ATOMIC ENERGY AUTHORITY,17/08/2016,PERSONAL PROTECTIVE EQUIPMENT,FUSION,ARCO LTD,5100340305,13.98
UNITED KINGDOM ATOMIC ENERGY AUTHORITY,UNITED KINGDOM ATOMIC ENERGY AUTHORITY,17/08/2016,MATERIALS & SPARES,FUSION,CROMWELL LTD,5100340315,41.34
UNITED KINGDOM ATOMIC ENERGY AUTHORITY,UNITED KINGDOM ATOMIC ENERGY AUTHORITY,17/08/2016,MATERIALS & SPARES,FUSION,FARNELL ELECTRONIC,5100340323,89.83
UNITED KINGDOM ATOMIC ENERGY AUTHORITY,UNITED KINGDOM ATOMIC ENERGY AUTHORITY,17/08/2016,GASES,FUSION,BOC LTD,5100340331,16.44
UNITED KINGDOM ATOMIC ENERGY AUTHORITY,UNITED KINGDOM ATOMIC ENERGY AUTHORITY,17/08/2016,MATERIALS & SPARES,FUSION,VACOM VAKUUM KOMPONENTEN,5100340337,11702.89
UNITED KINGDOM ATOMIC ENERGY AUTHORITY,UNITED KINGDOM ATOMIC ENERGY AUTHORITY,17/08/2016,GASES,FUSION,BOC LTD,5100340344,400
UNITED KINGDOM ATOMIC ENERGY AUTHORITY,UNITED KINGDOM ATOMIC ENERGY AUTHORITY,17/08/2016,GASES,FUSION,BOC LTD,5100340347,109
UNITED KINGDOM ATOMIC ENERGY AUTHORITY,UNITED KINGDOM ATOMIC ENERGY AUTHORITY,17/08/2016,MATERIALS & SPARES,FUSION,TR FASTENINGS LTD,5100340356,515.29
UNITED KINGDOM ATOMIC ENERGY AUTHORITY,UNITED KINGDOM ATOMIC ENERGY AUTHORITY,17/08/2016,MATERIALS & SPARES,FUSION,TR FASTENINGS LTD,5100340357,95.42
UNITED KINGDOM ATOMIC ENERGY AUTHORITY,UNITED KINGDOM ATOMIC ENERGY AUTHORITY,17/08/2016,MATERIALS & SPARES,FUSION,RS COMPONENTS LTD,5100340376,89.88
UNITED KINGDOM ATOMIC ENERGY AUTHORITY,UNITED KINGDOM ATOMIC ENERGY AUTHORITY,17/08/2016,MATERIALS & SPARES,FUSION,FARNELL ELECTRONIC,5100340383,507.24
UNITED KINGDOM ATOMIC ENERGY AUTHORITY,UNITED KINGDOM ATOMIC ENERGY AUTHORITY,17/08/2016,MATERIALS & SPARES,FUSION,FARNELL ELECTRONIC,5100340384,37.27
UNITED KINGDOM ATOMIC ENERGY AUTHORITY,UNITED KINGDOM ATOMIC ENERGY AUTHORITY,17/08/2016,MATERIALS & SPARES,FUSION,FARNELL ELECTRONIC,5100340385,53.63
UNITED KINGDOM ATOMIC ENERGY AUTHORITY,UNITED KINGDOM ATOMIC ENERGY AUTHORITY,17/08/2016,PLANT & EQUIPMENT,FUSION,NEW PIG LTD,5100340394,33.4
UNITED KINGDOM ATOMIC ENERGY AUTHORITY,UNITED KINGDOM ATOMIC ENERGY AUTHORITY,17/08/2016,PERSONAL PROTECTIVE EQUIPMENT,FUSION,ARCO LTD,5100340408,47.58
UNITED KINGDOM ATOMIC ENERGY AUTHORITY,UNITED KINGDOM ATOMIC ENERGY AUTHORITY,17/08/2016,MATERIALS & SPARES,FUSION,OLSON ELECTRONICS LTD,5100340411,587
UNITED KINGDOM ATOMIC ENERGY AUTHORITY,UNITED KINGDOM ATOMIC ENERGY AUTHORITY,17/08/2016,MATERIALS & SPARES,FUSION,FC LANE ELECTRONICS LTD,5100340412,2213.6
UNITED KINGDOM ATOMIC ENERGY AUTHORITY,UNITED KINGDOM ATOMIC ENERGY AUTHORITY,17/08/2016,PROFESSIONAL SERVICES,FUSION,PERKIN ELMER LAS UK LTD,5100340414,581.28
UNITED KINGDOM ATOMIC ENERGY AUTHORITY,UNITED KINGDOM ATOMIC ENERGY AUTHORITY,17/08/2016,PLANT & EQUIPMENT,FUSION,ALPHA LABORATORIES,5100340424,141
UNITED KINGDOM ATOMIC ENERGY AUTHORITY,UNITED KINGDOM ATOMIC ENERGY AUTHORITY,17/08/2016,MATERIALS & SPARES,FUSION,PROMEGA UK,5100340425,634
UNITED KINGDOM ATOMIC ENERGY AUTHORITY,UNITED KINGDOM ATOMIC ENERGY AUTHORITY,17/08/2016,PROFESSIONAL SERVICES,SUPPORT SERVICES,PI CONSULTING (UK) LTD,5100340426,147
UNITED KINGDOM ATOMIC ENERGY AUTHORITY,UNITED KINGDOM ATOMIC ENERGY AUTHORITY,17/08/2016,PLANT & EQUIPMENT,FUSION,NOR-CAL UK LTD,5100340428,410
UNITED KINGDOM ATOMIC ENERGY AUTHORITY,UNITED KINGDOM ATOMIC ENERGY AUTHORITY,17/08/2016,CONSUMABLES,FUSION,CARILLON INDUSTRIAL SERVICES LTD,5100340432,11.91
UNITED KINGDOM ATOMIC ENERGY AUTHORITY,UNITED KINGDOM ATOMIC ENERGY AUTHORITY,17/08/2016,PROFESSIONAL SERVICES,FUSION,SCIENCE AND TECHNOLOGY FACILITIES,5100340437,768
UNITED KINGDOM ATOMIC ENERGY AUTHORITY,UNITED KINGDOM ATOMIC ENERGY AUTHORITY,17/08/2016,MATERIALS & SPARES,FUSION,TR FASTENINGS LTD,5100340441,2.23
UNITED KINGDOM ATOMIC ENERGY AUTHORITY,UNITED KINGDOM ATOMIC ENERGY AUTHORITY,17/08/2016,PLANT & EQUIPMENT,FUSION,NEW PIG LTD,5100340442,455.63
UNITED KINGDOM ATOMIC ENERGY AUTHORITY,UNITED KINGDOM ATOMIC ENERGY AUTHORITY,17/08/2016,MATERIALS & SPARES,FUSION,RS COMPONENTS LTD,5100340443,24.46
UNITED KINGDOM ATOMIC ENERGY AUTHORITY,UNITED KINGDOM ATOMIC ENERGY AUTHORITY,17/08/2016,MATERIALS & SPARES,FUSION,RS COMPONENTS LTD,5100340447,193.72
UNITED KINGDOM ATOMIC ENERGY AUTHORITY,UNITED KINGDOM ATOMIC ENERGY AUTHORITY,17/08/2016,MATERIALS & SPARES,FUSION,RS COMPONENTS LTD,5100340464,117.03
UNITED KINGDOM ATOMIC ENERGY AUTHORITY,UNITED KINGDOM ATOMIC ENERGY AUTHORITY,17/08/2016,MATERIALS & SPARES,FUSION,RS COMPONENTS LTD,5100340468,30.66
UNITED KINGDOM ATOMIC ENERGY AUTHORITY,UNITED KINGDOM ATOMIC ENERGY AUTHORITY,17/08/2016,MATERIALS & SPARES,FUSION,RS COMPONENTS LTD,5100340469,939.21
UNITED KINGDOM ATOMIC ENERGY AUTHORITY,UNITED KINGDOM ATOMIC ENERGY AUTHORITY,17/08/2016,MATERIALS & SPARES,FUSION,CK SPECIAL GASES LIMITED,5100340481,515
UNITED KINGDOM ATOMIC ENERGY AUTHORITY,UNITED KINGDOM ATOMIC ENERGY AUTHORITY,17/08/2016,PROFESSIONAL SERVICES,FUSION,SCIENTIFICS LTD,5100340493,297
UNITED KINGDOM ATOMIC ENERGY AUTHORITY,UNITED KINGDOM ATOMIC ENERGY AUTHORITY,17/08/2016,CAR HIRE,FUSION,LEASEDRIVE VELO,5100340497,43.57
UNITED KINGDOM ATOMIC ENERGY AUTHORITY,UNITED KINGDOM ATOMIC ENERGY AUTHORITY,17/08/2016,CAR HIRE,FUSION,LEASEDRIVE VELO,5100340502,65.34
UNITED KINGDOM ATOMIC ENERGY AUTHORITY,UNITED KINGDOM ATOMIC ENERGY AUTHORITY,17/08/2016,CAR HIRE,FUSION,LEASEDRIVE VELO,5100340511,65.34
UNITED KINGDOM ATOMIC ENERGY AUTHORITY,UNITED KINGDOM ATOMIC ENERGY AUTHORITY,17/08/2016,PLANT & EQUIPMENT,FUSION,EDMUNDSON ELECTRICALS LTD,5100340525,173.25
UNITED KINGDOM ATOMIC ENERGY AUTHORITY,UNITED KINGDOM ATOMIC ENERGY AUTHORITY,17/08/2016,PLANT & EQUIPMENT,FUSION,EDMUNDSON ELECTRICALS LTD,5100340526,236.1
UNITED KINGDOM ATOMIC ENERGY AUTHORITY,UNITED KINGDOM ATOMIC ENERGY AUTHORITY,17/08/2016,PLANT & EQUIPMENT,FUSION,NEWPORT SPECTRA-PHYSICS LTD,5100340530,444.1
UNITED KINGDOM ATOMIC ENERGY AUTHORITY,UNITED KINGDOM ATOMIC ENERGY AUTHORITY,17/08/2016,MATERIALS & SPARES,FUSION,RS COMPONENTS LTD,5100340539,231.66
UNITED KINGDOM ATOMIC ENERGY AUTHORITY,UNITED KINGDOM ATOMIC ENERGY AUTHORITY,17/08/2016,MATERIALS & SPARES,FUSION,RS COMPONENTS LTD,5100340550,138.75
UNITED KINGDOM ATOMIC ENERGY AUTHORITY,UNITED KINGDOM ATOMIC ENERGY AUTHORITY,17/08/2016,MATERIALS & SPARES,FUSION,RS COMPONENTS LTD,5100340553,22.64
UNITED KINGDOM ATOMIC ENERGY AUTHORITY,UNITED KINGDOM ATOMIC ENERGY AUTHORITY,17/08/2016,MATERIALS & SPARES,FUSION,RS COMPONENTS LTD,5100340566,35.16
UNITED KINGDOM ATOMIC ENERGY AUTHORITY,UNITED KINGDOM ATOMIC ENERGY AUTHORITY,17/08/2016,BOOKS & PUBLICATIONS,FUSION,IOP PUBLISHING LTD - EUR,5100340578,1031.25
UNITED KINGDOM ATOMIC ENERGY AUTHORITY,UNITED KINGDOM ATOMIC ENERGY AUTHORITY,17/08/2016,BOOKS & PUBLICATIONS,FUSION,IOP PUBLISHING LTD - EUR,5100340579,1312.49
UNITED KINGDOM ATOMIC ENERGY AUTHORITY,UNITED KINGDOM ATOMIC ENERGY AUTHORITY,17/08/2016,BOOKS & PUBLICATIONS,FUSION,IOP PUBLISHING LTD - EUR,5100340580,1031.25
UNITED KINGDOM ATOMIC ENERGY AUTHORITY,UNITED KINGDOM ATOMIC ENERGY AUTHORITY,17/08/2016,MATERIALS & SPARES,FUSION,AMPLICON LIVELINE LTD,5100340599,189
UNITED KINGDOM ATOMIC ENERGY AUTHORITY,UNITED KINGDOM ATOMIC ENERGY AUTHORITY,17/08/2016,PROFESSIONAL SERVICES,FUSION,MACHINING TECHNOLOGY (MACH-TECH),5100340603,3386.68
UNITED KINGDOM ATOMIC ENERGY AUTHORITY,UNITED KINGDOM ATOMIC ENERGY AUTHORITY,17/08/2016,PROFESSIONAL SERVICES,FUSION,SCIENTIFICS LTD,5100340605,297
UNITED KINGDOM ATOMIC ENERGY AUTHORITY,UNITED KINGDOM ATOMIC ENERGY AUTHORITY,17/08/2016,MATERIALS & SPARES,FUSION,ROCHLING ENGINEERING PLASTICS,5100340606,720.02
UNITED KINGDOM ATOMIC ENERGY AUTHORITY,UNITED KINGDOM ATOMIC ENERGY AUTHORITY,17/08/2016,PLANT & EQUIPMENT,FUSION,FISHER SCIENTIFIC UK LTD,5100340617,39.14
UNITED KINGDOM ATOMIC ENERGY AUTHORITY,UNITED KINGDOM ATOMIC ENERGY AUTHORITY,17/08/2016,MATERIALS & SPARES,FUSION,CABLECRAFT LTD,5100340626,202.09
UNITED KINGDOM ATOMIC ENERGY AUTHORITY,UNITED KINGDOM ATOMIC ENERGY AUTHORITY,17/08/2016,MATERIALS & SPARES,FUSION,BRUNEL ENGRAVING COMPANY LIMITED,5100340633,41.95
UNITED KINGDOM ATOMIC ENERGY AUTHORITY,UNITED KINGDOM ATOMIC ENERGY AUTHORITY,17/08/2016,PLANT & EQUIPMENT,FUSION,INSIGHT DIRECT LTD,5100340660,40.96
UNITED KINGDOM ATOMIC ENERGY AUTHORITY,UNITED KINGDOM ATOMIC ENERGY AUTHORITY,17/08/2016,PLANT & EQUIPMENT,FUSION,INSIGHT DIRECT LTD,5100340661,116.97
UNITED KINGDOM ATOMIC ENERGY AUTHORITY,UNITED KINGDOM ATOMIC ENERGY AUTHORITY,17/08/2016,PLANT & EQUIPMENT,FUSION,ISLAND OPTICS LTD,5100340662,1215
UNITED KINGDOM ATOMIC ENERGY AUTHORITY,UNITED KINGDOM ATOMIC ENERGY AUTHORITY,17/08/2016,MATERIALS & SPARES,FUSION,VAT VACUUM PRODUCTS LTD,5100340699,2320.5
UNITED KINGDOM ATOMIC ENERGY AUTHORITY,UNITED KINGDOM ATOMIC ENERGY AUTHORITY,17/08/2016,PLANT SPARES,FUSION,TRENZ ELECTRONIC GMBH,5100340756,276.66
UNITED KINGDOM ATOMIC ENERGY AUTHORITY,UNITED KINGDOM ATOMIC ENERGY AUTHORITY,17/08/2016,PLANT & EQUIPMENT,FUSION,INSTRUMENT TECHNOLOGY LTD,5100340758,97.5
UNITED KINGDOM ATOMIC ENERGY AUTHORITY,UNITED KINGDOM ATOMIC ENERGY AUTHORITY,17/08/2016,PLANT & EQUIPMENT,FUSION,INSTRUMENT TECHNOLOGY LTD,5100340759,19.5
UNITED KINGDOM ATOMIC ENERGY AUTHORITY,UNITED KINGDOM ATOMIC ENERGY AUTHORITY,17/08/2016,MATERIALS & SPARES,FUSION,RS COMPONENTS LTD,5100340793,-135.62
UNITED KINGDOM ATOMIC ENERGY AUTHORITY,UNITED KINGDOM ATOMIC ENERGY AUTHORITY,17/08/2016,PROFESSIONAL SERVICES,SUPPORT SERVICES,OFFICE OF NUCLEAR REGULATION,5100340799,568.83
UNITED KINGDOM ATOMIC ENERGY AUTHORITY,UNITED KINGDOM ATOMIC ENERGY AUTHORITY,18/08/2016,MILEAGE ALLOWANCE,FUSION,EMPLOYEE EXPENSES,100816837,7.20
UNITED KINGDOM ATOMIC ENERGY AUTHORITY,UNITED KINGDOM ATOMIC ENERGY AUTHORITY,18/08/2016,SUBSISTENCE,SUPPORT SERVICES,EMPLOYEE EXPENSES,100816838,8.00
UNITED KINGDOM ATOMIC ENERGY AUTHORITY,UNITED KINGDOM ATOMIC ENERGY AUTHORITY,18/08/2016,ROAD TRAVEL,SUPPORT SERVICES,EMPLOYEE EXPENSES,100816838,10.83
UNITED KINGDOM ATOMIC ENERGY AUTHORITY,UNITED KINGDOM ATOMIC ENERGY AUTHORITY,18/08/2016,MILEAGE ALLOWANCE,SUPPORT SERVICES,EMPLOYEE EXPENSES,100816838,13.05
UNITED KINGDOM ATOMIC ENERGY AUTHORITY,UNITED KINGDOM ATOMIC ENERGY AUTHORITY,18/08/2016,SUBSISTENCE,SUPPORT SERVICES,EMPLOYEE EXPENSES,100816838,92.87
UNITED KINGDOM ATOMIC ENERGY AUTHORITY,UNITED KINGDOM ATOMIC ENERGY AUTHORITY,18/08/2016,TAXIS,FUSION,EMPLOYEE EXPENSES,100816839,17.00
UNITED KINGDOM ATOMIC ENERGY AUTHORITY,UNITED KINGDOM ATOMIC ENERGY AUTHORITY,18/08/2016,SUBSISTENCE,FUSION,EMPLOYEE EXPENSES,100816839,65.25
UNITED KINGDOM ATOMIC ENERGY AUTHORITY,UNITED KINGDOM ATOMIC ENERGY AUTHORITY,18/08/2016,SUBSISTENCE,FUSION,EMPLOYEE EXPENSES,100816839,373.64
UNITED KINGDOM ATOMIC ENERGY AUTHORITY,UNITED KINGDOM ATOMIC ENERGY AUTHORITY,18/08/2016,AIR TRAVEL,FUSION,EMPLOYEE EXPENSES,100816840,102.95
UNITED KINGDOM ATOMIC ENERGY AUTHORITY,UNITED KINGDOM ATOMIC ENERGY AUTHORITY,18/08/2016,ROAD TRAVEL,FUSION,EMPLOYEE EXPENSES,100816840,106.04
UNITED KINGDOM ATOMIC ENERGY AUTHORITY,UNITED KINGDOM ATOMIC ENERGY AUTHORITY,18/08/2016,SUBSISTENCE,FUSION,EMPLOYEE EXPENSES,100816840,742.86
UNITED KINGDOM ATOMIC ENERGY AUTHORITY,UNITED KINGDOM ATOMIC ENERGY AUTHORITY,18/08/2016,OTHER EMPLOYEE EXPENSES,FUSION,EMPLOYEE EXPENSES,100816841,174.02
UNITED KINGDOM ATOMIC ENERGY AUTHORITY,UNITED KINGDOM ATOMIC ENERGY AUTHORITY,18/08/2016,EFDA TRAVEL EXPENSES,FUSION,EMPLOYEE EXPENSES,100816842,446.57
UNITED KINGDOM ATOMIC ENERGY AUTHORITY,UNITED KINGDOM ATOMIC ENERGY AUTHORITY,18/08/2016,ROAD TRAVEL,FUSION,EMPLOYEE EXPENSES,100816843,19.24
UNITED KINGDOM ATOMIC ENERGY AUTHORITY,UNITED KINGDOM ATOMIC ENERGY AUTHORITY,18/08/2016,SUBSISTENCE,FUSION,EMPLOYEE EXPENSES,100816843,324.97
UNITED KINGDOM ATOMIC ENERGY AUTHORITY,UNITED KINGDOM ATOMIC ENERGY AUTHORITY,18/08/2016,MILEAGE ALLOWANCE,FUSION,EMPLOYEE EXPENSES,100816844,34.20
UNITED KINGDOM ATOMIC ENERGY AUTHORITY,UNITED KINGDOM ATOMIC ENERGY AUTHORITY,18/08/2016,SUBSISTENCE,FUSION,EMPLOYEE EXPENSES,100816844,"1,615.34"
UNITED KINGDOM ATOMIC ENERGY AUTHORITY,UNITED KINGDOM ATOMIC ENERGY AUTHORITY,18/08/2016,RAIL TRAVEL,FUSION,EMPLOYEE EXPENSES,100816845,5.50
UNITED KINGDOM ATOMIC ENERGY AUTHORITY,UNITED KINGDOM ATOMIC ENERGY AUTHORITY,18/08/2016,MILEAGE ALLOWANCE,FUSION,EMPLOYEE EXPENSES,100816845,15.75
UNITED KINGDOM ATOMIC ENERGY AUTHORITY,UNITED KINGDOM ATOMIC ENERGY AUTHORITY,18/08/2016,ROAD TRAVEL,FUSION,EMPLOYEE EXPENSES,100816845,20.00
UNITED KINGDOM ATOMIC ENERGY AUTHORITY,UNITED KINGDOM ATOMIC ENERGY AUTHORITY,18/08/2016,CAR HIRE,FUSION,EMPLOYEE EXPENSES,100816845,204.31
UNITED KINGDOM ATOMIC ENERGY AUTHORITY,UNITED KINGDOM ATOMIC ENERGY AUTHORITY,18/08/2016,SUBSISTENCE,FUSION,EMPLOYEE EXPENSES,100816845,"1,407.53"
UNITED KINGDOM ATOMIC ENERGY AUTHORITY,UNITED KINGDOM ATOMIC ENERGY AUTHORITY,18/08/2016,EFDA TRAVEL EXPENSES,FUSION,EMPLOYEE EXPENSES,100816846,118.55
UNITED KINGDOM ATOMIC ENERGY AUTHORITY,UNITED KINGDOM ATOMIC ENERGY AUTHORITY,18/08/2016,PROFESSIONAL SUBSCRIPTION,SUPPORT SERVICES,EMPLOYEE EXPENSES,100816847,132.00
UNITED KINGDOM ATOMIC ENERGY AUTHORITY,UNITED KINGDOM ATOMIC ENERGY AUTHORITY,18/08/2016,SUBSISTENCE,FUSION,EMPLOYEE EXPENSES,100816848,1.67
UNITED KINGDOM ATOMIC ENERGY AUTHORITY,UNITED KINGDOM ATOMIC ENERGY AUTHORITY,18/08/2016,TAXIS,FUSION,EMPLOYEE EXPENSES,100816848,23.76
UNITED KINGDOM ATOMIC ENERGY AUTHORITY,UNITED KINGDOM ATOMIC ENERGY AUTHORITY,18/08/2016,RAIL TRAVEL,FUSION,EMPLOYEE EXPENSES,100816848,23.98
UNITED KINGDOM ATOMIC ENERGY AUTHORITY,UNITED KINGDOM ATOMIC ENERGY AUTHORITY,18/08/2016,AIR TRAVEL,FUSION,EMPLOYEE EXPENSES,100816848,65.00
UNITED KINGDOM ATOMIC ENERGY AUTHORITY,UNITED KINGDOM ATOMIC ENERGY AUTHORITY,18/08/2016,SUBSISTENCE,FUSION,EMPLOYEE EXPENSES,100816848,333.15
UNITED KINGDOM ATOMIC ENERGY AUTHORITY,UNITED KINGDOM ATOMIC ENERGY AUTHORITY,18/08/2016,SUBSISTENCE,FUSION,EMPLOYEE EXPENSES,100816849,13.53
UNITED KINGDOM ATOMIC ENERGY AUTHORITY,UNITED KINGDOM ATOMIC ENERGY AUTHORITY,18/08/2016,RAIL TRAVEL,FUSION,EMPLOYEE EXPENSES,100816850,34.57
UNITED KINGDOM ATOMIC ENERGY AUTHORITY,UNITED KINGDOM ATOMIC ENERGY AUTHORITY,18/08/2016,SUBSISTENCE,FUSION,EMPLOYEE EXPENSES,100816850,149.65
UNITED KINGDOM ATOMIC ENERGY AUTHORITY,UNITED KINGDOM ATOMIC ENERGY AUTHORITY,18/08/2016,ROAD TRAVEL,FUSION,EMPLOYEE EXPENSES,100816851,1.22
UNITED KINGDOM ATOMIC ENERGY AUTHORITY,UNITED KINGDOM ATOMIC ENERGY AUTHORITY,18/08/2016,TAXIS,FUSION,EMPLOYEE EXPENSES,100816851,10.00
UNITED KINGDOM ATOMIC ENERGY AUTHORITY,UNITED KINGDOM ATOMIC ENERGY AUTHORITY,18/08/2016,RAIL TRAVEL,FUSION,EMPLOYEE EXPENSES,100816851,22.80
UNITED KINGDOM ATOMIC ENERGY AUTHORITY,UNITED KINGDOM ATOMIC ENERGY AUTHORITY,18/08/2016,ROAD TRAVEL,FUSION,EMPLOYEE EXPENSES,100816851,30.00
UNITED KINGDOM ATOMIC ENERGY AUTHORITY,UNITED KINGDOM ATOMIC ENERGY AUTHORITY,18/08/2016,SUBSISTENCE,FUSION,EMPLOYEE EXPENSES,100816851,803.64
UNITED KINGDOM ATOMIC ENERGY AUTHORITY,UNITED KINGDOM ATOMIC ENERGY AUTHORITY,18/08/2016,SUBSISTENCE,FUSION,EMPLOYEE EXPENSES,100816852,15.00
UNITED KINGDOM ATOMIC ENERGY AUTHORITY,UNITED KINGDOM ATOMIC ENERGY AUTHORITY,18/08/2016,SUBSISTENCE,FUSION,EMPLOYEE EXPENSES,100816853,6.78
UNITED KINGDOM ATOMIC ENERGY AUTHORITY,UNITED KINGDOM ATOMIC ENERGY AUTHORITY,18/08/2016,ROAD TRAVEL,FUSION,EMPLOYEE EXPENSES,100816853,50.94
UNITED KINGDOM ATOMIC ENERGY AUTHORITY,UNITED KINGDOM ATOMIC ENERGY AUTHORITY,18/08/2016,MILEAGE ALLOWANCE,FUSION,EMPLOYEE EXPENSES,100816854,77.40
UNITED KINGDOM ATOMIC ENERGY AUTHORITY,UNITED KINGDOM ATOMIC ENERGY AUTHORITY,18/08/2016,OTHER EMPLOYEE EXPENSES,FUSION,EMPLOYEE EXPENSES,100816855,3.00
UNITED KINGDOM ATOMIC ENERGY AUTHORITY,UNITED KINGDOM ATOMIC ENERGY AUTHORITY,18/08/2016,ROAD TRAVEL,FUSION,EMPLOYEE EXPENSES,100816855,42.48
UNITED KINGDOM ATOMIC ENERGY AUTHORITY,UNITED KINGDOM ATOMIC ENERGY AUTHORITY,18/08/2016,CAR HIRE,FUSION,EMPLOYEE EXPENSES,100816855,213.63
UNITED KINGDOM ATOMIC ENERGY AUTHORITY,UNITED KINGDOM ATOMIC ENERGY AUTHORITY,18/08/2016,SUBSISTENCE,FUSION,EMPLOYEE EXPENSES,100816855,"1,565.41"
UNITED KINGDOM ATOMIC ENERGY AUTHORITY,UNITED KINGDOM ATOMIC ENERGY AUTHORITY,18/08/2016,ROAD TRAVEL,FUSION,EMPLOYEE EXPENSES,100816856,20.00
UNITED KINGDOM ATOMIC ENERGY AUTHORITY,UNITED KINGDOM ATOMIC ENERGY AUTHORITY,18/08/2016,PROFESSIONAL SUBSCRIPTION,FUSION,EMPLOYEE EXPENSES,100816857,50.00
UNITED KINGDOM ATOMIC ENERGY AUTHORITY,UNITED KINGDOM ATOMIC ENERGY AUTHORITY,18/08/2016,ROAD TRAVEL,FUSION,EMPLOYEE EXPENSES,100816858,49.20
UNITED KINGDOM ATOMIC ENERGY AUTHORITY,UNITED KINGDOM ATOMIC ENERGY AUTHORITY,18/08/2016,SUBSISTENCE,FUSION,EMPLOYEE EXPENSES,100816858,97.49
UNITED KINGDOM ATOMIC ENERGY AUTHORITY,UNITED KINGDOM ATOMIC ENERGY AUTHORITY,18/08/2016,RAIL TRAVEL,FUSION,EMPLOYEE EXPENSES,100816859,37.00
UNITED KINGDOM ATOMIC ENERGY AUTHORITY,UNITED KINGDOM ATOMIC ENERGY AUTHORITY,18/08/2016,ROAD TRAVEL,FUSION,EMPLOYEE EXPENSES,100816859,46.76
UNITED KINGDOM ATOMIC ENERGY AUTHORITY,UNITED KINGDOM ATOMIC ENERGY AUTHORITY,18/08/2016,OTHER EMPLOYEE EXPENSES,FUSION,EMPLOYEE EXPENSES,100816860,7.00
UNITED KINGDOM ATOMIC ENERGY AUTHORITY,UNITED KINGDOM ATOMIC ENERGY AUTHORITY,18/08/2016,SUBSISTENCE,FUSION,EMPLOYEE EXPENSES,100816860,43.18
UNITED KINGDOM ATOMIC ENERGY AUTHORITY,UNITED KINGDOM ATOMIC ENERGY AUTHORITY,18/08/2016,RAIL TRAVEL,FUSION,EMPLOYEE EXPENSES,100816860,74.00
UNITED KINGDOM ATOMIC ENERGY AUTHORITY,UNITED KINGDOM ATOMIC ENERGY AUTHORITY,18/08/2016,SUBSISTENCE,FUSION,EMPLOYEE EXPENSES,100816860,300.06
UNITED KINGDOM ATOMIC ENERGY AUTHORITY,UNITED KINGDOM ATOMIC ENERGY AUTHORITY,18/08/2016,PROFESSIONAL SUBSCRIPTION,FUSION,EMPLOYEE EXPENSES,100816861,187.00
UNITED KINGDOM ATOMIC ENERGY AUTHORITY,UNITED KINGDOM ATOMIC ENERGY AUTHORITY,18/08/2016,SUBSISTENCE,FUSION,EMPLOYEE EXPENSES,100816862,75.68
UNITED KINGDOM ATOMIC ENERGY AUTHORITY,UNITED KINGDOM ATOMIC ENERGY AUTHORITY,18/08/2016,PROFESSIONAL SUBSCRIPTION,FUSION,EMPLOYEE EXPENSES,100816863,55.00
UNITED KINGDOM ATOMIC ENERGY AUTHORITY,UNITED KINGDOM ATOMIC ENERGY AUTHORITY,18/08/2016,SUBSISTENCE,FUSION,EMPLOYEE EXPENSES,100816864,5.00
UNITED KINGDOM ATOMIC ENERGY AUTHORITY,UNITED KINGDOM ATOMIC ENERGY AUTHORITY,18/08/2016,ROAD TRAVEL,FUSION,EMPLOYEE EXPENSES,100816864,9.17
UNITED KINGDOM ATOMIC ENERGY AUTHORITY,UNITED KINGDOM ATOMIC ENERGY AUTHORITY,18/08/2016,SUBSISTENCE,FUSION,EMPLOYEE EXPENSES,100816864,84.17
UNITED KINGDOM ATOMIC ENERGY AUTHORITY,UNITED KINGDOM ATOMIC ENERGY AUTHORITY,18/08/2016,MILEAGE ALLOWANCE,FUSION,EMPLOYEE EXPENSES,100816864,243.90
UNITED KINGDOM ATOMIC ENERGY AUTHORITY,UNITED KINGDOM ATOMIC ENERGY AUTHORITY,18/08/2016,PROFESSIONAL SUBSCRIPTION,FUSION,EMPLOYEE EXPENSES,100816865,148.00
UNITED KINGDOM ATOMIC ENERGY AUTHORITY,UNITED KINGDOM ATOMIC ENERGY AUTHORITY,18/08/2016,RELOCATION COSTS,FUSION,EMPLOYEE EXPENSES,100816866,70.40
UNITED KINGDOM ATOMIC ENERGY AUTHORITY,UNITED KINGDOM ATOMIC ENERGY AUTHORITY,18/08/2016,RELOCATION COSTS,FUSION,EMPLOYEE EXPENSES,100816866,159.43
UNITED KINGDOM ATOMIC ENERGY AUTHORITY,UNITED KINGDOM ATOMIC ENERGY AUTHORITY,18/08/2016,RELOCATION COSTS,FUSION,EMPLOYEE EXPENSES,100816867,"2,141.91"
UNITED KINGDOM ATOMIC ENERGY AUTHORITY,UNITED KINGDOM ATOMIC ENERGY AUTHORITY,18/08/2016,RELOCATION COSTS,FUSION,EMPLOYEE EXPENSES,100816868,70.40
UNITED KINGDOM ATOMIC ENERGY AUTHORITY,UNITED KINGDOM ATOMIC ENERGY AUTHORITY,18/08/2016,RELOCATION COSTS,FUSION,EMPLOYEE EXPENSES,100816868,159.43
UNITED KINGDOM ATOMIC ENERGY AUTHORITY,UNITED KINGDOM ATOMIC ENERGY AUTHORITY,18/08/2016,RELOCATION COSTS,FUSION,EMPLOYEE EXPENSES,100816869,859.00
UNITED KINGDOM ATOMIC ENERGY AUTHORITY,UNITED KINGDOM ATOMIC ENERGY AUTHORITY,18/08/2016,RELOCATION COSTS,FUSION,EMPLOYEE EXPENSES,100816869,"1,475.05"
UNITED KINGDOM ATOMIC ENERGY AUTHORITY,UNITED KINGDOM ATOMIC ENERGY AUTHORITY,18/08/2016,PLANT & EQUIPMENT,FUSION,ROTALINK LIMITED,1900061673,312
UNITED KINGDOM ATOMIC ENERGY AUTHORITY,UNITED KINGDOM ATOMIC ENERGY AUTHORITY,18/08/2016,PLANT & EQUIPMENT,FUSION,DIGIKEY CORPORATION,5100340020,113.42
UNITED KINGDOM ATOMIC ENERGY AUTHORITY,UNITED KINGDOM ATOMIC ENERGY AUTHORITY,18/08/2016,PLANT & EQUIPMENT,FUSION,DIGIKEY CORPORATION,5100340164,119.19
UNITED KINGDOM ATOMIC ENERGY AUTHORITY,UNITED KINGDOM ATOMIC ENERGY AUTHORITY,19/08/2016,PLANT & EQUIPMENT,FUSION,CONSULTANTSEA LIMITED T/A BUDGET SHIPPING CONTAINERS CO UK,1900061674,3430
UNITED KINGDOM ATOMIC ENERGY AUTHORITY,UNITED KINGDOM ATOMIC ENERGY AUTHORITY,19/08/2016,MATERIALS & SPARES,FUSION,KLINGER LTD ,1900061675,1299.89
UNITED KINGDOM ATOMIC ENERGY AUTHORITY,UNITED KINGDOM ATOMIC ENERGY AUTHORITY,19/08/2016,MATERIALS & SPARES,FUSION,AVANTES UK LTD,1900061676,250.2
UNITED KINGDOM ATOMIC ENERGY AUTHORITY,UNITED KINGDOM ATOMIC ENERGY AUTHORITY,19/08/2016,RENT OF VEHICLE & EQUIPMENT,FUSION,MILLMOLL LTD,1900061677,1521.08
UNITED KINGDOM ATOMIC ENERGY AUTHORITY,UNITED KINGDOM ATOMIC ENERGY AUTHORITY,22/08/2016,CATERING,PROPERTY,ELIOR UK PLC,1700001737,-4163.98
UNITED KINGDOM ATOMIC ENERGY AUTHORITY,UNITED KINGDOM ATOMIC ENERGY AUTHORITY,22/08/2016,CONFERENCES/MEETINGS,FUSION,VISITOR EXPENSES,1900061678,83.48
UNITED KINGDOM ATOMIC ENERGY AUTHORITY,UNITED KINGDOM ATOMIC ENERGY AUTHORITY,22/08/2016,PLANT SPARES,FUSION,ELECRO MECHANICAL INTEGRATORS INC,1900061681,3576.14
UNITED KINGDOM ATOMIC ENERGY AUTHORITY,UNITED KINGDOM ATOMIC ENERGY AUTHORITY,22/08/2016,MATERIALS & SPARES,FUSION,OERLIKON LEYBOLD VACUUM UK LTD,5100337717,434.7
UNITED KINGDOM ATOMIC ENERGY AUTHORITY,UNITED KINGDOM ATOMIC ENERGY AUTHORITY,22/08/2016,PLANT & EQUIPMENT,FUSION,INSIGHT DIRECT LTD,5100338500,347.98
UNITED KINGDOM ATOMIC ENERGY AUTHORITY,UNITED KINGDOM ATOMIC ENERGY AUTHORITY,22/08/2016,PLANT & EQUIPMENT,FUSION,INSIGHT DIRECT LTD,5100338502,1356.97
UNITED KINGDOM ATOMIC ENERGY AUTHORITY,UNITED KINGDOM ATOMIC ENERGY AUTHORITY,22/08/2016,GASES,FUSION,BOC LTD,5100339680,33.2
UNITED KINGDOM ATOMIC ENERGY AUTHORITY,UNITED KINGDOM ATOMIC ENERGY AUTHORITY,22/08/2016,MATERIALS & SPARES,FUSION,RS COMPONENTS LTD,5100339719,86.94
UNITED KINGDOM ATOMIC ENERGY AUTHORITY,UNITED KINGDOM ATOMIC ENERGY AUTHORITY,22/08/2016,MATERIALS & SPARES,FUSION,RS COMPONENTS LTD,5100339782,182.32
UNITED KINGDOM ATOMIC ENERGY AUTHORITY,UNITED KINGDOM ATOMIC ENERGY AUTHORITY,22/08/2016,MATERIALS & SPARES,FUSION,FARNELL ELECTRONIC,5100339953,78.4
UNITED KINGDOM ATOMIC ENERGY AUTHORITY,UNITED KINGDOM ATOMIC ENERGY AUTHORITY,22/08/2016,MEDICAL EXPENSES,FUSION,IMASS LTD,5100340036,4562.5
UNITED KINGDOM ATOMIC ENERGY AUTHORITY,UNITED KINGDOM ATOMIC ENERGY AUTHORITY,22/08/2016,GASES,FUSION,BOC LTD,5100340045,9551.46
UNITED KINGDOM ATOMIC ENERGY AUTHORITY,UNITED KINGDOM ATOMIC ENERGY AUTHORITY,22/08/2016,PROFESSIONAL SERVICES,SUPPORT SERVICES,FINANCIAL REPORTING COUNCIL,5100340057,1217.38
UNITED KINGDOM ATOMIC ENERGY AUTHORITY,UNITED KINGDOM ATOMIC ENERGY AUTHORITY,22/08/2016,MATERIALS & SPARES,FUSION,FC LANE ELECTRONICS LTD,5100340065,85.79
UNITED KINGDOM ATOMIC ENERGY AUTHORITY,UNITED KINGDOM ATOMIC ENERGY AUTHORITY,22/08/2016,PLANT & EQUIPMENT,FUSION,INSIGHT DIRECT LTD,5100340067,999.3
UNITED KINGDOM ATOMIC ENERGY AUTHORITY,UNITED KINGDOM ATOMIC ENERGY AUTHORITY,22/08/2016,PLANT & EQUIPMENT,FUSION,NEW PIG LTD,5100340085,828.15
UNITED KINGDOM ATOMIC ENERGY AUTHORITY,UNITED KINGDOM ATOMIC ENERGY AUTHORITY,22/08/2016,PROFESSIONAL SERVICES,FUSION,HUTTON ENGINEERING (PRECISION) LTD,5100340139,1710.33
UNITED KINGDOM ATOMIC ENERGY AUTHORITY,UNITED KINGDOM ATOMIC ENERGY AUTHORITY,22/08/2016,MATERIALS & SPARES,FUSION,RS COMPONENTS LTD,5100340248,678.55
UNITED KINGDOM ATOMIC ENERGY AUTHORITY,UNITED KINGDOM ATOMIC ENERGY AUTHORITY,22/08/2016,AUDIT FEES,SUPPORT SERVICES,AFAQ-EAQA LTD,5100340290,6170.83
UNITED KINGDOM ATOMIC ENERGY AUTHORITY,UNITED KINGDOM ATOMIC ENERGY AUTHORITY,22/08/2016,PROFESSIONAL SERVICES,FUSION,ONE FIX RECRUITMENT,5100340300,350
UNITED KINGDOM ATOMIC ENERGY AUTHORITY,UNITED KINGDOM ATOMIC ENERGY AUTHORITY,22/08/2016,PLANT & EQUIPMENT,FUSION,EDMUNDSON ELECTRICALS LTD,5100340304,295
UNITED KINGDOM ATOMIC ENERGY AUTHORITY,UNITED KINGDOM ATOMIC ENERGY AUTHORITY,22/08/2016,PLANT & EQUIPMENT,FUSION,EDMUNDSON ELECTRICALS LTD,5100340307,49.75
UNITED KINGDOM ATOMIC ENERGY AUTHORITY,UNITED KINGDOM ATOMIC ENERGY AUTHORITY,22/08/2016,PLANT & EQUIPMENT,FUSION,EDMUNDSON ELECTRICALS LTD,5100340310,240
UNITED KINGDOM ATOMIC ENERGY AUTHORITY,UNITED KINGDOM ATOMIC ENERGY AUTHORITY,22/08/2016,MATERIALS & SPARES,FUSION,TLC DIRECT,5100340311,50
UNITED KINGDOM ATOMIC ENERGY AUTHORITY,UNITED KINGDOM ATOMIC ENERGY AUTHORITY,22/08/2016,PLANT & EQUIPMENT,FUSION,INSIGHT DIRECT LTD,5100340312,-231.98
UNITED KINGDOM ATOMIC ENERGY AUTHORITY,UNITED KINGDOM ATOMIC ENERGY AUTHORITY,22/08/2016,GASES,FUSION,BOC LTD,5100340333,344.51
UNITED KINGDOM ATOMIC ENERGY AUTHORITY,UNITED KINGDOM ATOMIC ENERGY AUTHORITY,22/08/2016,GASES,FUSION,BOC LTD,5100340335,201
UNITED KINGDOM ATOMIC ENERGY AUTHORITY,UNITED KINGDOM ATOMIC ENERGY AUTHORITY,22/08/2016,PLANT & EQUIPMENT,FUSION,NEW PIG LTD,5100340393,676.05
UNITED KINGDOM ATOMIC ENERGY AUTHORITY,UNITED KINGDOM ATOMIC ENERGY AUTHORITY,22/08/2016,MATERIALS & SPARES,FUSION,INDUSTRIAL TECHNICAL LTD,5100340395,41
UNITED KINGDOM ATOMIC ENERGY AUTHORITY,UNITED KINGDOM ATOMIC ENERGY AUTHORITY,22/08/2016,MATERIALS & SPARES,FUSION,ALLECTRA LTD,5100340402,135.5
UNITED KINGDOM ATOMIC ENERGY AUTHORITY,UNITED KINGDOM ATOMIC ENERGY AUTHORITY,22/08/2016,MATERIALS & SPARES,FUSION,AMODIL SUPPLIES LTD,5100340418,1800
UNITED KINGDOM ATOMIC ENERGY AUTHORITY,UNITED KINGDOM ATOMIC ENERGY AUTHORITY,22/08/2016,PROFESSIONAL SERVICES,FUSION,RADIOCARBON DATING,5100340420,20167
UNITED KINGDOM ATOMIC ENERGY AUTHORITY,UNITED KINGDOM ATOMIC ENERGY AUTHORITY,22/08/2016,STORAGE,FUSION,PENTALVER TRANSPORT LTD,5100340422,4425
UNITED KINGDOM ATOMIC ENERGY AUTHORITY,UNITED KINGDOM ATOMIC ENERGY AUTHORITY,22/08/2016,CATERING SUPPLIES,SUPPORT SERVICES,BWT UK LTD,5100340433,936.3
UNITED KINGDOM ATOMIC ENERGY AUTHORITY,UNITED KINGDOM ATOMIC ENERGY AUTHORITY,22/08/2016,CATERING SUPPLIES,SUPPORT SERVICES,BWT UK LTD,5100340434,183.6
UNITED KINGDOM ATOMIC ENERGY AUTHORITY,UNITED KINGDOM ATOMIC ENERGY AUTHORITY,22/08/2016,PROFESSIONAL SERVICES,FUSION,SIGMA - ALDRICH CO LTD,5100340436,49.4
UNITED KINGDOM ATOMIC ENERGY AUTHORITY,UNITED KINGDOM ATOMIC ENERGY AUTHORITY,22/08/2016,MATERIALS & SPARES,FUSION,RS COMPONENTS LTD,5100340460,72.05
UNITED KINGDOM ATOMIC ENERGY AUTHORITY,UNITED KINGDOM ATOMIC ENERGY AUTHORITY,22/08/2016,CAR HIRE,FUSION,LEASEDRIVE VELO,5100340496,34.61
UNITED KINGDOM ATOMIC ENERGY AUTHORITY,UNITED KINGDOM ATOMIC ENERGY AUTHORITY,22/08/2016,PLANT SPARES,FUSION,CSE INDUSTRIAL ELECTRICAL DISTRIBUT,5100340499,958.5
UNITED KINGDOM ATOMIC ENERGY AUTHORITY,UNITED KINGDOM ATOMIC ENERGY AUTHORITY,22/08/2016,CAR HIRE,FUSION,LEASEDRIVE VELO,5100340507,38.47
UNITED KINGDOM ATOMIC ENERGY AUTHORITY,UNITED KINGDOM ATOMIC ENERGY AUTHORITY,22/08/2016,CAR HIRE,FUSION,LEASEDRIVE VELO,5100340509,32.67
UNITED KINGDOM ATOMIC ENERGY AUTHORITY,UNITED KINGDOM ATOMIC ENERGY AUTHORITY,22/08/2016,PLANT & EQUIPMENT,FUSION,NU START ELECTONICS,5100340510,1344.9
UNITED KINGDOM ATOMIC ENERGY AUTHORITY,UNITED KINGDOM ATOMIC ENERGY AUTHORITY,22/08/2016,CAR HIRE,FUSION,LEASEDRIVE VELO,5100340514,32.67
UNITED KINGDOM ATOMIC ENERGY AUTHORITY,UNITED KINGDOM ATOMIC ENERGY AUTHORITY,22/08/2016,CAR HIRE,FUSION,LEASEDRIVE VELO,5100340516,34.61
UNITED KINGDOM ATOMIC ENERGY AUTHORITY,UNITED KINGDOM ATOMIC ENERGY AUTHORITY,22/08/2016,CAR HIRE,FUSION,LEASEDRIVE VELO,5100340519,106.17
UNITED KINGDOM ATOMIC ENERGY AUTHORITY,UNITED KINGDOM ATOMIC ENERGY AUTHORITY,22/08/2016,PLANT & EQUIPMENT,FUSION,FISHER SCIENTIFIC UK LTD,5100340524,211.19
UNITED KINGDOM ATOMIC ENERGY AUTHORITY,UNITED KINGDOM ATOMIC ENERGY AUTHORITY,22/08/2016,PLANT & EQUIPMENT,FUSION,EDMUNDSON ELECTRICALS LTD,5100340528,22
UNITED KINGDOM ATOMIC ENERGY AUTHORITY,UNITED KINGDOM ATOMIC ENERGY AUTHORITY,22/08/2016,SOFTWARE,FUSION,TRANSCENDATA EUROPE LIMITED,5100340556,2483.26
UNITED KINGDOM ATOMIC ENERGY AUTHORITY,UNITED KINGDOM ATOMIC ENERGY AUTHORITY,22/08/2016,MATERIALS & SPARES,PROPERTY,INSULATION CONTRACTING SERVICES,5100340557,2824.96
UNITED KINGDOM ATOMIC ENERGY AUTHORITY,UNITED KINGDOM ATOMIC ENERGY AUTHORITY,22/08/2016,MATERIALS & SPARES,FUSION,RS COMPONENTS LTD,5100340571,158.52
UNITED KINGDOM ATOMIC ENERGY AUTHORITY,UNITED KINGDOM ATOMIC ENERGY AUTHORITY,22/08/2016,MATERIALS & SPARES,FUSION,INDUSTRIAL TECHNICAL LTD,5100340588,472.27
UNITED KINGDOM ATOMIC ENERGY AUTHORITY,UNITED KINGDOM ATOMIC ENERGY AUTHORITY,22/08/2016,PLANT & EQUIPMENT,FUSION,FISHER SCIENTIFIC UK LTD,5100340589,242.83
UNITED KINGDOM ATOMIC ENERGY AUTHORITY,UNITED KINGDOM ATOMIC ENERGY AUTHORITY,22/08/2016,PLANT SPARES,FUSION,BEACON GROUP INTERNATIONAL LTD,5100340598,1702.6
UNITED KINGDOM ATOMIC ENERGY AUTHORITY,UNITED KINGDOM ATOMIC ENERGY AUTHORITY,22/08/2016,PLANT SPARES,FUSION,A W CLARKE,5100340607,331.25
UNITED KINGDOM ATOMIC ENERGY AUTHORITY,UNITED KINGDOM ATOMIC ENERGY AUTHORITY,22/08/2016,PLANT SPARES,FUSION,A W CLARKE,5100340608,149.5
UNITED KINGDOM ATOMIC ENERGY AUTHORITY,UNITED KINGDOM ATOMIC ENERGY AUTHORITY,22/08/2016,PLANT SPARES,FUSION,LEWVAC LLP,5100340610,1219
UNITED KINGDOM ATOMIC ENERGY AUTHORITY,UNITED KINGDOM ATOMIC ENERGY AUTHORITY,22/08/2016,MATERIALS & SPARES,FUSION,OXFORD BOLTS & BEARINGS,5100340611,160
UNITED KINGDOM ATOMIC ENERGY AUTHORITY,UNITED KINGDOM ATOMIC ENERGY AUTHORITY,22/08/2016,MATERIALS & SPARES,FUSION,VWR INTERNATIONAL LTD,5100340621,550.15
UNITED KINGDOM ATOMIC ENERGY AUTHORITY,UNITED KINGDOM ATOMIC ENERGY AUTHORITY,22/08/2016,PUBLICATIONS,SUPPORT SERVICES,IOP PUBLISHING LTD,5100340623,2956
UNITED KINGDOM ATOMIC ENERGY AUTHORITY,UNITED KINGDOM ATOMIC ENERGY AUTHORITY,22/08/2016,MATERIALS & SPARES,FUSION,ACRONA ENGINEERING LTD,5100340628,146.01
UNITED KINGDOM ATOMIC ENERGY AUTHORITY,UNITED KINGDOM ATOMIC ENERGY AUTHORITY,22/08/2016,PROFESSIONAL SERVICES,FUSION,EDM PRECISION TECHNOLOGIES,5100340629,575
UNITED KINGDOM ATOMIC ENERGY AUTHORITY,UNITED KINGDOM ATOMIC ENERGY AUTHORITY,22/08/2016,PROFESSIONAL SERVICES,FUSION,EDM PRECISION TECHNOLOGIES,5100340630,233
UNITED KINGDOM ATOMIC ENERGY AUTHORITY,UNITED KINGDOM ATOMIC ENERGY AUTHORITY,22/08/2016,CONSUMABLES,FUSION,STRUERS LTD,5100340638,98
UNITED KINGDOM ATOMIC ENERGY AUTHORITY,UNITED KINGDOM ATOMIC ENERGY AUTHORITY,22/08/2016,PROFESSIONAL SERVICES,FUSION,SWAGELOK LONDON,5100340650,116.82
UNITED KINGDOM ATOMIC ENERGY AUTHORITY,UNITED KINGDOM ATOMIC ENERGY AUTHORITY,22/08/2016,GASES,FUSION,BOC LTD,5100340654,135.16
UNITED KINGDOM ATOMIC ENERGY AUTHORITY,UNITED KINGDOM ATOMIC ENERGY AUTHORITY,22/08/2016,MATERIALS & SPARES,FUSION,AMODIL SUPPLIES LTD,5100340663,630
UNITED KINGDOM ATOMIC ENERGY AUTHORITY,UNITED KINGDOM ATOMIC ENERGY AUTHORITY,22/08/2016,PROFESSIONAL SERVICES,FUSION,NUCLEAR MANAGEMENT CONSULTANCE LTD,5100340664,912
UNITED KINGDOM ATOMIC ENERGY AUTHORITY,UNITED KINGDOM ATOMIC ENERGY AUTHORITY,22/08/2016,MATERIALS: NON-HAZARDOUS,FUSION,ILF LTD,5100340666,254
UNITED KINGDOM ATOMIC ENERGY AUTHORITY,UNITED KINGDOM ATOMIC ENERGY AUTHORITY,22/08/2016,PROFESSIONAL SERVICES,FUSION,HUTTON ENGINEERING (PRECISION) LTD,5100340667,373.4
UNITED KINGDOM ATOMIC ENERGY AUTHORITY,UNITED KINGDOM ATOMIC ENERGY AUTHORITY,22/08/2016,PROFESSIONAL SERVICES,SUPPORT SERVICES,METHODS ADVISORY LTD,5100340677,11000
UNITED KINGDOM ATOMIC ENERGY AUTHORITY,UNITED KINGDOM ATOMIC ENERGY AUTHORITY,22/08/2016,MATERIALS & SPARES,SUPPORT SERVICES,WOODSTOCK INDUSTRIAL SUPPLIES LTD,5100340678,164.23
UNITED KINGDOM ATOMIC ENERGY AUTHORITY,UNITED KINGDOM ATOMIC ENERGY AUTHORITY,22/08/2016,MATERIALS & SPARES,FUSION,ACRONA ENGINEERING LTD,5100340679,1000.32
UNITED KINGDOM ATOMIC ENERGY AUTHORITY,UNITED KINGDOM ATOMIC ENERGY AUTHORITY,22/08/2016,MATERIALS & SPARES,FUSION,CITY ELECTRICAL FACTORS,5100340680,1520.3
UNITED KINGDOM ATOMIC ENERGY AUTHORITY,UNITED KINGDOM ATOMIC ENERGY AUTHORITY,22/08/2016,MATERIALS & SPARES,FUSION,ACRONA ENGINEERING LTD,5100340681,532.76
UNITED KINGDOM ATOMIC ENERGY AUTHORITY,UNITED KINGDOM ATOMIC ENERGY AUTHORITY,22/08/2016,MATERIALS & SPARES,FUSION,METSPIN LTD,5100340682,774.5
UNITED KINGDOM ATOMIC ENERGY AUTHORITY,UNITED KINGDOM ATOMIC ENERGY AUTHORITY,22/08/2016,MATERIALS & SPARES,FUSION,ACRONA ENGINEERING LTD,5100340683,1492.56
UNITED KINGDOM ATOMIC ENERGY AUTHORITY,UNITED KINGDOM ATOMIC ENERGY AUTHORITY,22/08/2016,MATERIALS & SPARES,FUSION,NW KEYS LTD,5100340684,17.04
UNITED KINGDOM ATOMIC ENERGY AUTHORITY,UNITED KINGDOM ATOMIC ENERGY AUTHORITY,22/08/2016,SECURITY & EMERGENCY,PROPERTY,TRINITY PROTETION SYSTEMS,5100340685,782.46
UNITED KINGDOM ATOMIC ENERGY AUTHORITY,UNITED KINGDOM ATOMIC ENERGY AUTHORITY,22/08/2016,MATERIALS & SPARES,FUSION,CROSSMAN ENGINEERING,5100340686,939
UNITED KINGDOM ATOMIC ENERGY AUTHORITY,UNITED KINGDOM ATOMIC ENERGY AUTHORITY,22/08/2016,HIRED STAFF,FUSION,PELICAN SOFTWARE LTD,5100340687,5819.45
UNITED KINGDOM ATOMIC ENERGY AUTHORITY,UNITED KINGDOM ATOMIC ENERGY AUTHORITY,22/08/2016,HIRED STAFF,FUSION,PELICAN SOFTWARE LTD,5100340688,324.9
UNITED KINGDOM ATOMIC ENERGY AUTHORITY,UNITED KINGDOM ATOMIC ENERGY AUTHORITY,22/08/2016,HIRED STAFF,FUSION,PELICAN SOFTWARE LTD,5100340689,171.32
UNITED KINGDOM ATOMIC ENERGY AUTHORITY,UNITED KINGDOM ATOMIC ENERGY AUTHORITY,22/08/2016,HIRED STAFF,FUSION,PELICAN SOFTWARE LTD,5100340690,4971.23
UNITED KINGDOM ATOMIC ENERGY AUTHORITY,UNITED KINGDOM ATOMIC ENERGY AUTHORITY,22/08/2016,MATERIALS & SPARES,FUSION,UNDERWOODS ELECTRICAL DISTRIBUTORS,5100340692,1600.75
UNITED KINGDOM ATOMIC ENERGY AUTHORITY,UNITED KINGDOM ATOMIC ENERGY AUTHORITY,22/08/2016,MATERIALS & SPARES,FUSION,SCHROFF UK LTD,5100340693,264.3
UNITED KINGDOM ATOMIC ENERGY AUTHORITY,UNITED KINGDOM ATOMIC ENERGY AUTHORITY,22/08/2016,MATERIALS & SPARES,FUSION,INDUSTRIAL TECHNICAL LTD,5100340694,25.3
UNITED KINGDOM ATOMIC ENERGY AUTHORITY,UNITED KINGDOM ATOMIC ENERGY AUTHORITY,22/08/2016,MATERIALS & SPARES,FUSION,VAT VACUUM PRODUCTS LTD,5100340695,22880
UNITED KINGDOM ATOMIC ENERGY AUTHORITY,UNITED KINGDOM ATOMIC ENERGY AUTHORITY,22/08/2016,MATERIALS & SPARES,FUSION,ANIXTER (UK) LTD,5100340696,810.9
UNITED KINGDOM ATOMIC ENERGY AUTHORITY,UNITED KINGDOM ATOMIC ENERGY AUTHORITY,22/08/2016,MATERIALS & SPARES,FUSION,R&M ELECTRICAL GROUP LTD,5100340698,1021.15
UNITED KINGDOM ATOMIC ENERGY AUTHORITY,UNITED KINGDOM ATOMIC ENERGY AUTHORITY,22/08/2016,PERSONAL PROTECTIVE EQUIPMENT,SUPPORT SERVICES,ARCO LTD,5100340703,697.99
UNITED KINGDOM ATOMIC ENERGY AUTHORITY,UNITED KINGDOM ATOMIC ENERGY AUTHORITY,22/08/2016,PERSONAL PROTECTIVE EQUIPMENT,SUPPORT SERVICES,ARCO LTD,5100340704,34.11
UNITED KINGDOM ATOMIC ENERGY AUTHORITY,UNITED KINGDOM ATOMIC ENERGY AUTHORITY,22/08/2016,MATERIALS & SPARES,FUSION,KURT J LESKER,5100340711,104.5
UNITED KINGDOM ATOMIC ENERGY AUTHORITY,UNITED KINGDOM ATOMIC ENERGY AUTHORITY,22/08/2016,PLANT & EQUIPMENT,FUSION,JOHNSON MATTHEY PLC,5100340714,479.69
UNITED KINGDOM ATOMIC ENERGY AUTHORITY,UNITED KINGDOM ATOMIC ENERGY AUTHORITY,22/08/2016,MATERIALS & SPARES,FUSION,KEMET INTERNATIONAL LTD,5100340715,75
UNITED KINGDOM ATOMIC ENERGY AUTHORITY,UNITED KINGDOM ATOMIC ENERGY AUTHORITY,22/08/2016,MATERIALS & SPARES,FUSION,KEMET INTERNATIONAL LTD,5100340716,99.25
UNITED KINGDOM ATOMIC ENERGY AUTHORITY,UNITED KINGDOM ATOMIC ENERGY AUTHORITY,22/08/2016,PLANT & EQUIPMENT,FUSION,FISHER SCIENTIFIC UK LTD,5100340717,19.14
UNITED KINGDOM ATOMIC ENERGY AUTHORITY,UNITED KINGDOM ATOMIC ENERGY AUTHORITY,22/08/2016,PLANT & EQUIPMENT,FUSION,AALCO LIMITED,5100340718,384
UNITED KINGDOM ATOMIC ENERGY AUTHORITY,UNITED KINGDOM ATOMIC ENERGY AUTHORITY,22/08/2016,STATIONERY,FUSION,SPRINGFIELD BUSINESS PAPERS LTD,5100340719,380
UNITED KINGDOM ATOMIC ENERGY AUTHORITY,UNITED KINGDOM ATOMIC ENERGY AUTHORITY,22/08/2016,UTILITIES/ELECTRICITY,PROPERTY,BRITISH GAS BUSINESS,5100340721,216.62
UNITED KINGDOM ATOMIC ENERGY AUTHORITY,UNITED KINGDOM ATOMIC ENERGY AUTHORITY,22/08/2016,MATERIALS & SPARES,FUSION,FARNELL ELECTRONIC,5100340722,89.77
UNITED KINGDOM ATOMIC ENERGY AUTHORITY,UNITED KINGDOM ATOMIC ENERGY AUTHORITY,22/08/2016,UTILITIES/ELECTRICITY,PROPERTY,BRITISH GAS BUSINESS,5100340723,28.37
UNITED KINGDOM ATOMIC ENERGY AUTHORITY,UNITED KINGDOM ATOMIC ENERGY AUTHORITY,22/08/2016,UTILITIES/ELECTRICITY,PROPERTY,BRITISH GAS BUSINESS,5100340724,82.72
UNITED KINGDOM ATOMIC ENERGY AUTHORITY,UNITED KINGDOM ATOMIC ENERGY AUTHORITY,22/08/2016,UTILITIES/ELECTRICITY,PROPERTY,BRITISH GAS BUSINESS,5100340725,46.55
UNITED KINGDOM ATOMIC ENERGY AUTHORITY,UNITED KINGDOM ATOMIC ENERGY AUTHORITY,22/08/2016,UTILITIES/ELECTRICITY,PROPERTY,BRITISH GAS BUSINESS,5100340726,65.91
UNITED KINGDOM ATOMIC ENERGY AUTHORITY,UNITED KINGDOM ATOMIC ENERGY AUTHORITY,22/08/2016,UTILITIES/ELECTRICITY,PROPERTY,BRITISH GAS BUSINESS,5100340727,285.49
UNITED KINGDOM ATOMIC ENERGY AUTHORITY,UNITED KINGDOM ATOMIC ENERGY AUTHORITY,22/08/2016,UTILITIES/ELECTRICITY,PROPERTY,BRITISH GAS BUSINESS,5100340728,270.74
UNITED KINGDOM ATOMIC ENERGY AUTHORITY,UNITED KINGDOM ATOMIC ENERGY AUTHORITY,22/08/2016,UTILITIES/ELECTRICITY,PROPERTY,BRITISH GAS BUSINESS,5100340729,482.34
UNITED KINGDOM ATOMIC ENERGY AUTHORITY,UNITED KINGDOM ATOMIC ENERGY AUTHORITY,22/08/2016,UTILITIES/ELECTRICITY,PROPERTY,BRITISH GAS BUSINESS,5100340730,314.19
UNITED KINGDOM ATOMIC ENERGY AUTHORITY,UNITED KINGDOM ATOMIC ENERGY AUTHORITY,22/08/2016,MATERIALS & SPARES,FUSION,FARNELL ELECTRONIC,5100340732,130.1
UNITED KINGDOM ATOMIC ENERGY AUTHORITY,UNITED KINGDOM ATOMIC ENERGY AUTHORITY,22/08/2016,PLANT SPARES,FUSION,CONDEC INDUSTRIAL MAINTENANCE,5100340733,1515
UNITED KINGDOM ATOMIC ENERGY AUTHORITY,UNITED KINGDOM ATOMIC ENERGY AUTHORITY,22/08/2016,PLANT SPARES,FUSION,CONDEC INDUSTRIAL MAINTENANCE,5100340735,2220
UNITED KINGDOM ATOMIC ENERGY AUTHORITY,UNITED KINGDOM ATOMIC ENERGY AUTHORITY,22/08/2016,MATERIALS & SPARES,FUSION,FARNELL ELECTRONIC,5100340736,7.98
UNITED KINGDOM ATOMIC ENERGY AUTHORITY,UNITED KINGDOM ATOMIC ENERGY AUTHORITY,22/08/2016,PLANT & EQUIPMENT,FUSION,MSC/J & L INDUSTRIAL SUPPLY,5100340737,96.99
UNITED KINGDOM ATOMIC ENERGY AUTHORITY,UNITED KINGDOM ATOMIC ENERGY AUTHORITY,22/08/2016,MATERIALS & SPARES,FUSION,FARNELL ELECTRONIC,5100340738,120.94
UNITED KINGDOM ATOMIC ENERGY AUTHORITY,UNITED KINGDOM ATOMIC ENERGY AUTHORITY,22/08/2016,MATERIALS & SPARES,FUSION,FARNELL ELECTRONIC,5100340739,34.89
